Organisation Name,Organisation Code,Unique Ref No ,Effective Date,Directorate where expenditure incurred,Supplier Name ,Payment Date,Net Amount,Purpose of Spend,Procurement Classification (Higher Level),Procurement Classification (Lower Level),CAPITAL / REVENUE
Walsall Council,http://opendatacommunities.org/id/metropolitan-district-council/walsall ,WC140-1,31.07.2022,CHILDRENS,247 CARS (WILLENHALL) LIMITED,18/07/2022,"1,380.00",6241-Hire of Vehicle with Driver,TRANSPORT,DIRECT TRANSPORT COSTS,REVENUE
Walsall Council,http://opendatacommunities.org/id/metropolitan-district-council/walsall ,WC140-2,31.07.2022,CHILDRENS,247 CARS (WILLENHALL) LIMITED,18/07/2022,"1,330.00",6241-Hire of Vehicle with Driver,TRANSPORT,DIRECT TRANSPORT COSTS,REVENUE
Walsall Council,http://opendatacommunities.org/id/metropolitan-district-council/walsall ,WC140-3,31.07.2022,CHILDRENS,247 CARS (WILLENHALL) LIMITED,18/07/2022,"2,530.00",6241-Hire of Vehicle with Driver,TRANSPORT,DIRECT TRANSPORT COSTS,REVENUE
Walsall Council,http://opendatacommunities.org/id/metropolitan-district-council/walsall ,WC140-4,31.07.2022,CHILDRENS,247 CARS (WILLENHALL) LIMITED,18/07/2022,374.91,6241-Hire of Vehicle with Driver,TRANSPORT,DIRECT TRANSPORT COSTS,REVENUE
Walsall Council,http://opendatacommunities.org/id/metropolitan-district-council/walsall ,WC140-5,31.07.2022,CHILDRENS,247 CARS (WILLENHALL) LIMITED,18/07/2022,"1,665.00",6241-Hire of Vehicle with Driver,TRANSPORT,DIRECT TRANSPORT COSTS,REVENUE
Walsall Council,http://opendatacommunities.org/id/metropolitan-district-council/walsall ,WC140-6,31.07.2022,CHILDRENS,247 CARS (WILLENHALL) LIMITED,18/07/2022,"2,478.00",6241-Hire of Vehicle with Driver,TRANSPORT,DIRECT TRANSPORT COSTS,REVENUE
Walsall Council,http://opendatacommunities.org/id/metropolitan-district-council/walsall ,WC140-7,31.07.2022,CHILDRENS,247 CARS (WILLENHALL) LIMITED,18/07/2022,"1,757.50",6241-Hire of Vehicle with Driver,TRANSPORT,DIRECT TRANSPORT COSTS,REVENUE
Walsall Council,http://opendatacommunities.org/id/metropolitan-district-council/walsall ,WC140-8,31.07.2022,CHILDRENS,247 CARS (WILLENHALL) LIMITED,18/07/2022,"1,400.00",6241-Hire of Vehicle with Driver,TRANSPORT,DIRECT TRANSPORT COSTS,REVENUE
Walsall Council,http://opendatacommunities.org/id/metropolitan-district-council/walsall ,WC140-9,31.07.2022,CHILDRENS,247 CARS (WILLENHALL) LIMITED,18/07/2022,"1,757.50",6241-Hire of Vehicle with Driver,TRANSPORT,DIRECT TRANSPORT COSTS,REVENUE
Walsall Council,http://opendatacommunities.org/id/metropolitan-district-council/walsall ,WC140-10,31.07.2022,CHILDRENS,247 CARS (WILLENHALL) LIMITED,18/07/2022,"1,757.50",6241-Hire of Vehicle with Driver,TRANSPORT,DIRECT TRANSPORT COSTS,REVENUE
Walsall Council,http://opendatacommunities.org/id/metropolitan-district-council/walsall ,WC140-11,31.07.2022,CHILDRENS,247 CARS (WILLENHALL) LIMITED,18/07/2022,"1,757.50",6241-Hire of Vehicle with Driver,TRANSPORT,DIRECT TRANSPORT COSTS,REVENUE
Walsall Council,http://opendatacommunities.org/id/metropolitan-district-council/walsall ,WC140-12,31.07.2022,CHILDRENS,247 CARS (WILLENHALL) LIMITED,18/07/2022,"1,461.60",6241-Hire of Vehicle with Driver,TRANSPORT,DIRECT TRANSPORT COSTS,REVENUE
Walsall Council,http://opendatacommunities.org/id/metropolitan-district-council/walsall ,WC140-13,31.07.2022,CHILDRENS,247 CARS (WILLENHALL) LIMITED,18/07/2022,"1,600.00",6241-Hire of Vehicle with Driver,TRANSPORT,DIRECT TRANSPORT COSTS,REVENUE
Walsall Council,http://opendatacommunities.org/id/metropolitan-district-council/walsall ,WC140-14,31.07.2022,CHILDRENS,247 CARS (WILLENHALL) LIMITED,18/07/2022,"1,020.00",6241-Hire of Vehicle with Driver,TRANSPORT,DIRECT TRANSPORT COSTS,REVENUE
Walsall Council,http://opendatacommunities.org/id/metropolitan-district-council/walsall ,WC140-15,31.07.2022,CHILDRENS,247 CARS (WILLENHALL) LIMITED,18/07/2022,"3,600.00",6241-Hire of Vehicle with Driver,TRANSPORT,DIRECT TRANSPORT COSTS,REVENUE
Walsall Council,http://opendatacommunities.org/id/metropolitan-district-council/walsall ,WC140-16,31.07.2022,CHILDRENS,247 CARS (WILLENHALL) LIMITED,18/07/2022,"1,072.50",6241-Hire of Vehicle with Driver,TRANSPORT,DIRECT TRANSPORT COSTS,REVENUE
Walsall Council,http://opendatacommunities.org/id/metropolitan-district-council/walsall ,WC140-17,31.07.2022,CHILDRENS,247 CARS (WILLENHALL) LIMITED,18/07/2022,"1,444.00",6241-Hire of Vehicle with Driver,TRANSPORT,DIRECT TRANSPORT COSTS,REVENUE
Walsall Council,http://opendatacommunities.org/id/metropolitan-district-council/walsall ,WC140-18,31.07.2022,CHILDRENS,247 CARS (WILLENHALL) LIMITED,18/07/2022,"1,000.00",6241-Hire of Vehicle with Driver,TRANSPORT,DIRECT TRANSPORT COSTS,REVENUE
Walsall Council,http://opendatacommunities.org/id/metropolitan-district-council/walsall ,WC140-19,31.07.2022,RESOURCES AND TRANSFORMATION,2BM LIMITED,15/07/2022,"1,320.00",6623-Computer Equipment,SUPPLIES & SERVICES,COMMUNICATIONS & COMPUTING,REVENUE
Walsall Council,http://opendatacommunities.org/id/metropolitan-district-council/walsall ,WC140-20,31.07.2022,RESOURCES AND TRANSFORMATION,3 SPIRIT UK TRAINING & CONSULTANCY,11/07/2022,700.00,6625-Consultant Fees,SUPPLIES & SERVICES,SERVICES,REVENUE
Walsall Council,http://opendatacommunities.org/id/metropolitan-district-council/walsall ,WC140-21,31.07.2022,RESOURCES AND TRANSFORMATION,3 SPIRIT UK TRAINING & CONSULTANCY,20/07/2022,700.00,6625-Consultant Fees,SUPPLIES & SERVICES,SERVICES,REVENUE
Walsall Council,http://opendatacommunities.org/id/metropolitan-district-council/walsall ,WC140-22,31.07.2022,ADULT SOCIAL CARE,5 CARE SERVICES LTD,05/07/2022,442.40,6541-Domiciliary Care,THIRD PARTY PAYMENTS,PRIVATE CONTRACTOR,REVENUE
Walsall Council,http://opendatacommunities.org/id/metropolitan-district-council/walsall ,WC140-23,31.07.2022,ADULT SOCIAL CARE,5 CARE SERVICES LTD,05/07/2022,288.35,6541-Domiciliary Care,THIRD PARTY PAYMENTS,PRIVATE CONTRACTOR,REVENUE
Walsall Council,http://opendatacommunities.org/id/metropolitan-district-council/walsall ,WC140-24,31.07.2022,ADULT SOCIAL CARE,5 CARE SERVICES LTD,05/07/2022,497.70,6541-Domiciliary Care,THIRD PARTY PAYMENTS,PRIVATE CONTRACTOR,REVENUE
Walsall Council,http://opendatacommunities.org/id/metropolitan-district-council/walsall ,WC140-25,31.07.2022,ADULT SOCIAL CARE,5 CARE SERVICES LTD,05/07/2022,497.70,6541-Domiciliary Care,THIRD PARTY PAYMENTS,PRIVATE CONTRACTOR,REVENUE
Walsall Council,http://opendatacommunities.org/id/metropolitan-district-council/walsall ,WC140-26,31.07.2022,ADULT SOCIAL CARE,5 CARE SERVICES LTD,05/07/2022,"1,216.60",6541-Domiciliary Care,THIRD PARTY PAYMENTS,PRIVATE CONTRACTOR,REVENUE
Walsall Council,http://opendatacommunities.org/id/metropolitan-district-council/walsall ,WC140-27,31.07.2022,ADULT SOCIAL CARE,5 CARE SERVICES LTD,05/07/2022,568.80,6541-Domiciliary Care,THIRD PARTY PAYMENTS,PRIVATE CONTRACTOR,REVENUE
Walsall Council,http://opendatacommunities.org/id/metropolitan-district-council/walsall ,WC140-28,31.07.2022,ADULT SOCIAL CARE,5 CARE SERVICES LTD,05/07/2022,718.90,6541-Domiciliary Care,THIRD PARTY PAYMENTS,PRIVATE CONTRACTOR,REVENUE
Walsall Council,http://opendatacommunities.org/id/metropolitan-district-council/walsall ,WC140-29,31.07.2022,ADULT SOCIAL CARE,5 CARE SERVICES LTD,05/07/2022,-300.20,6541-Domiciliary Care,THIRD PARTY PAYMENTS,PRIVATE CONTRACTOR,REVENUE
Walsall Council,http://opendatacommunities.org/id/metropolitan-district-council/walsall ,WC140-30,31.07.2022,ADULT SOCIAL CARE,5 CARE SERVICES LTD,05/07/2022,884.80,6541-Domiciliary Care,THIRD PARTY PAYMENTS,PRIVATE CONTRACTOR,REVENUE
Walsall Council,http://opendatacommunities.org/id/metropolitan-district-council/walsall ,WC140-31,31.07.2022,ADULT SOCIAL CARE,5 CARE SERVICES LTD,05/07/2022,375.25,6541-Domiciliary Care,THIRD PARTY PAYMENTS,PRIVATE CONTRACTOR,REVENUE
Walsall Council,http://opendatacommunities.org/id/metropolitan-district-council/walsall ,WC140-32,31.07.2022,ADULT SOCIAL CARE,5 CARE SERVICES LTD,05/07/2022,316.00,6541-Domiciliary Care,THIRD PARTY PAYMENTS,PRIVATE CONTRACTOR,REVENUE
Walsall Council,http://opendatacommunities.org/id/metropolitan-district-council/walsall ,WC140-33,31.07.2022,ADULT SOCIAL CARE,5 CARE SERVICES LTD,05/07/2022,331.80,6541-Domiciliary Care,THIRD PARTY PAYMENTS,PRIVATE CONTRACTOR,REVENUE
Walsall Council,http://opendatacommunities.org/id/metropolitan-district-council/walsall ,WC140-34,31.07.2022,ADULT SOCIAL CARE,5 CARE SERVICES LTD,05/07/2022,497.70,6541-Domiciliary Care,THIRD PARTY PAYMENTS,PRIVATE CONTRACTOR,REVENUE
Walsall Council,http://opendatacommunities.org/id/metropolitan-district-council/walsall ,WC140-35,31.07.2022,ADULT SOCIAL CARE,5 CARE SERVICES LTD,05/07/2022,568.80,6541-Domiciliary Care,THIRD PARTY PAYMENTS,PRIVATE CONTRACTOR,REVENUE
Walsall Council,http://opendatacommunities.org/id/metropolitan-district-council/walsall ,WC140-36,31.07.2022,ADULT SOCIAL CARE,5 CARE SERVICES LTD,05/07/2022,663.60,6541-Domiciliary Care,THIRD PARTY PAYMENTS,PRIVATE CONTRACTOR,REVENUE
Walsall Council,http://opendatacommunities.org/id/metropolitan-district-council/walsall ,WC140-37,31.07.2022,ADULT SOCIAL CARE,5 CARE SERVICES LTD,05/07/2022,331.80,6541-Domiciliary Care,THIRD PARTY PAYMENTS,PRIVATE CONTRACTOR,REVENUE
Walsall Council,http://opendatacommunities.org/id/metropolitan-district-council/walsall ,WC140-38,31.07.2022,ADULT SOCIAL CARE,5 CARE SERVICES LTD,05/07/2022,645.19,6541-Domiciliary Care,THIRD PARTY PAYMENTS,PRIVATE CONTRACTOR,REVENUE
Walsall Council,http://opendatacommunities.org/id/metropolitan-district-council/walsall ,WC140-39,31.07.2022,ADULT SOCIAL CARE,5 CARE SERVICES LTD,05/07/2022,734.70,6541-Domiciliary Care,THIRD PARTY PAYMENTS,PRIVATE CONTRACTOR,REVENUE
Walsall Council,http://opendatacommunities.org/id/metropolitan-district-council/walsall ,WC140-40,31.07.2022,ADULT SOCIAL CARE,5 CARE SERVICES LTD,05/07/2022,252.80,6541-Domiciliary Care,THIRD PARTY PAYMENTS,PRIVATE CONTRACTOR,REVENUE
Walsall Council,http://opendatacommunities.org/id/metropolitan-district-council/walsall ,WC140-41,31.07.2022,ADULT SOCIAL CARE,5 CARE SERVICES LTD,05/07/2022,442.40,6541-Domiciliary Care,THIRD PARTY PAYMENTS,PRIVATE CONTRACTOR,REVENUE
Walsall Council,http://opendatacommunities.org/id/metropolitan-district-council/walsall ,WC140-42,31.07.2022,ADULT SOCIAL CARE,5 CARE SERVICES LTD,05/07/2022,-276.50,6541-Domiciliary Care,THIRD PARTY PAYMENTS,PRIVATE CONTRACTOR,REVENUE
Walsall Council,http://opendatacommunities.org/id/metropolitan-district-council/walsall ,WC140-43,31.07.2022,ADULT SOCIAL CARE,5 CARE SERVICES LTD,05/07/2022,497.70,6541-Domiciliary Care,THIRD PARTY PAYMENTS,PRIVATE CONTRACTOR,REVENUE
Walsall Council,http://opendatacommunities.org/id/metropolitan-district-council/walsall ,WC140-44,31.07.2022,ADULT SOCIAL CARE,5 CARE SERVICES LTD,05/07/2022,497.70,6541-Domiciliary Care,THIRD PARTY PAYMENTS,PRIVATE CONTRACTOR,REVENUE
Walsall Council,http://opendatacommunities.org/id/metropolitan-district-council/walsall ,WC140-45,31.07.2022,ADULT SOCIAL CARE,5 CARE SERVICES LTD,05/07/2022,884.80,6541-Domiciliary Care,THIRD PARTY PAYMENTS,PRIVATE CONTRACTOR,REVENUE
Walsall Council,http://opendatacommunities.org/id/metropolitan-district-council/walsall ,WC140-46,31.07.2022,ADULT SOCIAL CARE,5 CARE SERVICES LTD,05/07/2022,442.40,6541-Domiciliary Care,THIRD PARTY PAYMENTS,PRIVATE CONTRACTOR,REVENUE
Walsall Council,http://opendatacommunities.org/id/metropolitan-district-council/walsall ,WC140-47,31.07.2022,ADULT SOCIAL CARE,5 CARE SERVICES LTD,05/07/2022,288.35,6541-Domiciliary Care,THIRD PARTY PAYMENTS,PRIVATE CONTRACTOR,REVENUE
Walsall Council,http://opendatacommunities.org/id/metropolitan-district-council/walsall ,WC140-48,31.07.2022,ADULT SOCIAL CARE,5 CARE SERVICES LTD,05/07/2022,497.70,6541-Domiciliary Care,THIRD PARTY PAYMENTS,PRIVATE CONTRACTOR,REVENUE
Walsall Council,http://opendatacommunities.org/id/metropolitan-district-council/walsall ,WC140-49,31.07.2022,ADULT SOCIAL CARE,5 CARE SERVICES LTD,05/07/2022,"1,137.60",6541-Domiciliary Care,THIRD PARTY PAYMENTS,PRIVATE CONTRACTOR,REVENUE
Walsall Council,http://opendatacommunities.org/id/metropolitan-district-council/walsall ,WC140-50,31.07.2022,ADULT SOCIAL CARE,5 CARE SERVICES LTD,05/07/2022,734.70,6541-Domiciliary Care,THIRD PARTY PAYMENTS,PRIVATE CONTRACTOR,REVENUE
Walsall Council,http://opendatacommunities.org/id/metropolitan-district-council/walsall ,WC140-51,31.07.2022,ADULT SOCIAL CARE,5 CARE SERVICES LTD,05/07/2022,252.80,6541-Domiciliary Care,THIRD PARTY PAYMENTS,PRIVATE CONTRACTOR,REVENUE
Walsall Council,http://opendatacommunities.org/id/metropolitan-district-council/walsall ,WC140-52,31.07.2022,ADULT SOCIAL CARE,5 CARE SERVICES LTD,05/07/2022,497.70,6541-Domiciliary Care,THIRD PARTY PAYMENTS,PRIVATE CONTRACTOR,REVENUE
Walsall Council,http://opendatacommunities.org/id/metropolitan-district-council/walsall ,WC140-53,31.07.2022,ADULT SOCIAL CARE,5 CARE SERVICES LTD,05/07/2022,553.00,6541-Domiciliary Care,THIRD PARTY PAYMENTS,PRIVATE CONTRACTOR,REVENUE
Walsall Council,http://opendatacommunities.org/id/metropolitan-district-council/walsall ,WC140-54,31.07.2022,ADULT SOCIAL CARE,5 CARE SERVICES LTD,05/07/2022,718.90,6541-Domiciliary Care,THIRD PARTY PAYMENTS,PRIVATE CONTRACTOR,REVENUE
Walsall Council,http://opendatacommunities.org/id/metropolitan-district-council/walsall ,WC140-55,31.07.2022,ADULT SOCIAL CARE,5 CARE SERVICES LTD,05/07/2022,323.90,6541-Domiciliary Care,THIRD PARTY PAYMENTS,PRIVATE CONTRACTOR,REVENUE
Walsall Council,http://opendatacommunities.org/id/metropolitan-district-council/walsall ,WC140-56,31.07.2022,ADULT SOCIAL CARE,5 CARE SERVICES LTD,05/07/2022,316.00,6541-Domiciliary Care,THIRD PARTY PAYMENTS,PRIVATE CONTRACTOR,REVENUE
Walsall Council,http://opendatacommunities.org/id/metropolitan-district-council/walsall ,WC140-57,31.07.2022,ADULT SOCIAL CARE,5 CARE SERVICES LTD,05/07/2022,331.80,6541-Domiciliary Care,THIRD PARTY PAYMENTS,PRIVATE CONTRACTOR,REVENUE
Walsall Council,http://opendatacommunities.org/id/metropolitan-district-council/walsall ,WC140-58,31.07.2022,ADULT SOCIAL CARE,5 CARE SERVICES LTD,05/07/2022,497.70,6541-Domiciliary Care,THIRD PARTY PAYMENTS,PRIVATE CONTRACTOR,REVENUE
Walsall Council,http://opendatacommunities.org/id/metropolitan-district-council/walsall ,WC140-59,31.07.2022,ADULT SOCIAL CARE,5 CARE SERVICES LTD,05/07/2022,442.40,6541-Domiciliary Care,THIRD PARTY PAYMENTS,PRIVATE CONTRACTOR,REVENUE
Walsall Council,http://opendatacommunities.org/id/metropolitan-district-council/walsall ,WC140-60,31.07.2022,ADULT SOCIAL CARE,5 CARE SERVICES LTD,05/07/2022,"1,216.60",6541-Domiciliary Care,THIRD PARTY PAYMENTS,PRIVATE CONTRACTOR,REVENUE
Walsall Council,http://opendatacommunities.org/id/metropolitan-district-council/walsall ,WC140-61,31.07.2022,ADULT SOCIAL CARE,5 CARE SERVICES LTD,05/07/2022,568.80,6541-Domiciliary Care,THIRD PARTY PAYMENTS,PRIVATE CONTRACTOR,REVENUE
Walsall Council,http://opendatacommunities.org/id/metropolitan-district-council/walsall ,WC140-62,31.07.2022,ADULT SOCIAL CARE,5 CARE SERVICES LTD,05/07/2022,663.60,6541-Domiciliary Care,THIRD PARTY PAYMENTS,PRIVATE CONTRACTOR,REVENUE
Walsall Council,http://opendatacommunities.org/id/metropolitan-district-council/walsall ,WC140-63,31.07.2022,ADULT SOCIAL CARE,5 CARE SERVICES LTD,05/07/2022,331.80,6541-Domiciliary Care,THIRD PARTY PAYMENTS,PRIVATE CONTRACTOR,REVENUE
Walsall Council,http://opendatacommunities.org/id/metropolitan-district-council/walsall ,WC140-64,31.07.2022,ADULT SOCIAL CARE,5 CARE SERVICES LTD,05/07/2022,645.19,6541-Domiciliary Care,THIRD PARTY PAYMENTS,PRIVATE CONTRACTOR,REVENUE
Walsall Council,http://opendatacommunities.org/id/metropolitan-district-council/walsall ,WC140-65,31.07.2022,ADULT SOCIAL CARE,5 CARE SERVICES LTD,18/07/2022,288.35,6541-Domiciliary Care,THIRD PARTY PAYMENTS,PRIVATE CONTRACTOR,REVENUE
Walsall Council,http://opendatacommunities.org/id/metropolitan-district-council/walsall ,WC140-66,31.07.2022,ADULT SOCIAL CARE,5 CARE SERVICES LTD,18/07/2022,497.70,6541-Domiciliary Care,THIRD PARTY PAYMENTS,PRIVATE CONTRACTOR,REVENUE
Walsall Council,http://opendatacommunities.org/id/metropolitan-district-council/walsall ,WC140-67,31.07.2022,ADULT SOCIAL CARE,5 CARE SERVICES LTD,18/07/2022,497.70,6541-Domiciliary Care,THIRD PARTY PAYMENTS,PRIVATE CONTRACTOR,REVENUE
Walsall Council,http://opendatacommunities.org/id/metropolitan-district-council/walsall ,WC140-68,31.07.2022,ADULT SOCIAL CARE,5 CARE SERVICES LTD,18/07/2022,442.40,6541-Domiciliary Care,THIRD PARTY PAYMENTS,PRIVATE CONTRACTOR,REVENUE
Walsall Council,http://opendatacommunities.org/id/metropolitan-district-council/walsall ,WC140-69,31.07.2022,ADULT SOCIAL CARE,5 CARE SERVICES LTD,18/07/2022,545.10,6541-Domiciliary Care,THIRD PARTY PAYMENTS,PRIVATE CONTRACTOR,REVENUE
Walsall Council,http://opendatacommunities.org/id/metropolitan-district-council/walsall ,WC140-70,31.07.2022,ADULT SOCIAL CARE,5 CARE SERVICES LTD,18/07/2022,252.80,6541-Domiciliary Care,THIRD PARTY PAYMENTS,PRIVATE CONTRACTOR,REVENUE
Walsall Council,http://opendatacommunities.org/id/metropolitan-district-council/walsall ,WC140-71,31.07.2022,ADULT SOCIAL CARE,5 CARE SERVICES LTD,18/07/2022,"1,216.60",6541-Domiciliary Care,THIRD PARTY PAYMENTS,PRIVATE CONTRACTOR,REVENUE
Walsall Council,http://opendatacommunities.org/id/metropolitan-district-council/walsall ,WC140-72,31.07.2022,ADULT SOCIAL CARE,5 CARE SERVICES LTD,18/07/2022,568.80,6541-Domiciliary Care,THIRD PARTY PAYMENTS,PRIVATE CONTRACTOR,REVENUE
Walsall Council,http://opendatacommunities.org/id/metropolitan-district-council/walsall ,WC140-73,31.07.2022,ADULT SOCIAL CARE,5 CARE SERVICES LTD,18/07/2022,497.70,6541-Domiciliary Care,THIRD PARTY PAYMENTS,PRIVATE CONTRACTOR,REVENUE
Walsall Council,http://opendatacommunities.org/id/metropolitan-district-council/walsall ,WC140-74,31.07.2022,ADULT SOCIAL CARE,5 CARE SERVICES LTD,18/07/2022,884.80,6541-Domiciliary Care,THIRD PARTY PAYMENTS,PRIVATE CONTRACTOR,REVENUE
Walsall Council,http://opendatacommunities.org/id/metropolitan-district-council/walsall ,WC140-75,31.07.2022,ADULT SOCIAL CARE,5 CARE SERVICES LTD,18/07/2022,718.90,6541-Domiciliary Care,THIRD PARTY PAYMENTS,PRIVATE CONTRACTOR,REVENUE
Walsall Council,http://opendatacommunities.org/id/metropolitan-district-council/walsall ,WC140-76,31.07.2022,ADULT SOCIAL CARE,5 CARE SERVICES LTD,18/07/2022,663.60,6541-Domiciliary Care,THIRD PARTY PAYMENTS,PRIVATE CONTRACTOR,REVENUE
Walsall Council,http://opendatacommunities.org/id/metropolitan-district-council/walsall ,WC140-77,31.07.2022,ADULT SOCIAL CARE,5 CARE SERVICES LTD,18/07/2022,331.80,6541-Domiciliary Care,THIRD PARTY PAYMENTS,PRIVATE CONTRACTOR,REVENUE
Walsall Council,http://opendatacommunities.org/id/metropolitan-district-council/walsall ,WC140-78,31.07.2022,ADULT SOCIAL CARE,5 CARE SERVICES LTD,18/07/2022,645.19,6541-Domiciliary Care,THIRD PARTY PAYMENTS,PRIVATE CONTRACTOR,REVENUE
Walsall Council,http://opendatacommunities.org/id/metropolitan-district-council/walsall ,WC140-79,31.07.2022,ADULT SOCIAL CARE,5 CARE SERVICES LTD,18/07/2022,276.50,6541-Domiciliary Care,THIRD PARTY PAYMENTS,PRIVATE CONTRACTOR,REVENUE
Walsall Council,http://opendatacommunities.org/id/metropolitan-district-council/walsall ,WC140-80,31.07.2022,ADULT SOCIAL CARE,5 CARE SERVICES LTD,18/07/2022,553.00,6541-Domiciliary Care,THIRD PARTY PAYMENTS,PRIVATE CONTRACTOR,REVENUE
Walsall Council,http://opendatacommunities.org/id/metropolitan-district-council/walsall ,WC140-81,31.07.2022,ADULT SOCIAL CARE,5 CARE SERVICES LTD,18/07/2022,948.00,6541-Domiciliary Care,THIRD PARTY PAYMENTS,PRIVATE CONTRACTOR,REVENUE
Walsall Council,http://opendatacommunities.org/id/metropolitan-district-council/walsall ,WC140-82,31.07.2022,ADULT SOCIAL CARE,5 CARE SERVICES LTD,18/07/2022,316.00,6541-Domiciliary Care,THIRD PARTY PAYMENTS,PRIVATE CONTRACTOR,REVENUE
Walsall Council,http://opendatacommunities.org/id/metropolitan-district-council/walsall ,WC140-83,31.07.2022,ADULT SOCIAL CARE,5 CARE SERVICES LTD,18/07/2022,331.80,6541-Domiciliary Care,THIRD PARTY PAYMENTS,PRIVATE CONTRACTOR,REVENUE
Walsall Council,http://opendatacommunities.org/id/metropolitan-district-council/walsall ,WC140-84,31.07.2022,ADULT SOCIAL CARE,5 CARE SERVICES LTD,18/07/2022,497.70,6541-Domiciliary Care,THIRD PARTY PAYMENTS,PRIVATE CONTRACTOR,REVENUE
Walsall Council,http://opendatacommunities.org/id/metropolitan-district-council/walsall ,WC140-85,31.07.2022,ADULT SOCIAL CARE,5 CARE SERVICES LTD,18/07/2022,347.60,6541-Domiciliary Care,THIRD PARTY PAYMENTS,PRIVATE CONTRACTOR,REVENUE
Walsall Council,http://opendatacommunities.org/id/metropolitan-district-council/walsall ,WC140-86,31.07.2022,ADULT SOCIAL CARE,5 CARE SERVICES LTD,18/07/2022,442.40,6541-Domiciliary Care,THIRD PARTY PAYMENTS,PRIVATE CONTRACTOR,REVENUE
Walsall Council,http://opendatacommunities.org/id/metropolitan-district-council/walsall ,WC140-87,31.07.2022,ADULT SOCIAL CARE,5 CARE SERVICES LTD,18/07/2022,442.40,6541-Domiciliary Care,THIRD PARTY PAYMENTS,PRIVATE CONTRACTOR,REVENUE
Walsall Council,http://opendatacommunities.org/id/metropolitan-district-council/walsall ,WC140-88,31.07.2022,ADULT SOCIAL CARE,5 CARE SERVICES LTD,18/07/2022,288.35,6541-Domiciliary Care,THIRD PARTY PAYMENTS,PRIVATE CONTRACTOR,REVENUE
Walsall Council,http://opendatacommunities.org/id/metropolitan-district-council/walsall ,WC140-89,31.07.2022,ADULT SOCIAL CARE,5 CARE SERVICES LTD,18/07/2022,497.70,6541-Domiciliary Care,THIRD PARTY PAYMENTS,PRIVATE CONTRACTOR,REVENUE
Walsall Council,http://opendatacommunities.org/id/metropolitan-district-council/walsall ,WC140-90,31.07.2022,ADULT SOCIAL CARE,5 CARE SERVICES LTD,18/07/2022,"1,216.60",6541-Domiciliary Care,THIRD PARTY PAYMENTS,PRIVATE CONTRACTOR,REVENUE
Walsall Council,http://opendatacommunities.org/id/metropolitan-district-council/walsall ,WC140-91,31.07.2022,ADULT SOCIAL CARE,5 CARE SERVICES LTD,18/07/2022,568.80,6541-Domiciliary Care,THIRD PARTY PAYMENTS,PRIVATE CONTRACTOR,REVENUE
Walsall Council,http://opendatacommunities.org/id/metropolitan-district-council/walsall ,WC140-92,31.07.2022,ADULT SOCIAL CARE,5 CARE SERVICES LTD,18/07/2022,497.70,6541-Domiciliary Care,THIRD PARTY PAYMENTS,PRIVATE CONTRACTOR,REVENUE
Walsall Council,http://opendatacommunities.org/id/metropolitan-district-council/walsall ,WC140-93,31.07.2022,ADULT SOCIAL CARE,5 CARE SERVICES LTD,18/07/2022,884.80,6541-Domiciliary Care,THIRD PARTY PAYMENTS,PRIVATE CONTRACTOR,REVENUE
Walsall Council,http://opendatacommunities.org/id/metropolitan-district-council/walsall ,WC140-94,31.07.2022,ADULT SOCIAL CARE,5 CARE SERVICES LTD,18/07/2022,252.80,6541-Domiciliary Care,THIRD PARTY PAYMENTS,PRIVATE CONTRACTOR,REVENUE
Walsall Council,http://opendatacommunities.org/id/metropolitan-district-council/walsall ,WC140-95,31.07.2022,ADULT SOCIAL CARE,5 CARE SERVICES LTD,18/07/2022,663.60,6541-Domiciliary Care,THIRD PARTY PAYMENTS,PRIVATE CONTRACTOR,REVENUE
Walsall Council,http://opendatacommunities.org/id/metropolitan-district-council/walsall ,WC140-96,31.07.2022,ADULT SOCIAL CARE,5 CARE SERVICES LTD,18/07/2022,331.80,6541-Domiciliary Care,THIRD PARTY PAYMENTS,PRIVATE CONTRACTOR,REVENUE
Walsall Council,http://opendatacommunities.org/id/metropolitan-district-council/walsall ,WC140-97,31.07.2022,ADULT SOCIAL CARE,5 CARE SERVICES LTD,18/07/2022,645.19,6541-Domiciliary Care,THIRD PARTY PAYMENTS,PRIVATE CONTRACTOR,REVENUE
Walsall Council,http://opendatacommunities.org/id/metropolitan-district-council/walsall ,WC140-98,31.07.2022,ADULT SOCIAL CARE,5 CARE SERVICES LTD,18/07/2022,"1,137.60",6541-Domiciliary Care,THIRD PARTY PAYMENTS,PRIVATE CONTRACTOR,REVENUE
Walsall Council,http://opendatacommunities.org/id/metropolitan-district-council/walsall ,WC140-99,31.07.2022,ADULT SOCIAL CARE,5 CARE SERVICES LTD,18/07/2022,553.00,6541-Domiciliary Care,THIRD PARTY PAYMENTS,PRIVATE CONTRACTOR,REVENUE
Walsall Council,http://opendatacommunities.org/id/metropolitan-district-council/walsall ,WC140-100,31.07.2022,ADULT SOCIAL CARE,5 CARE SERVICES LTD,18/07/2022,497.70,6541-Domiciliary Care,THIRD PARTY PAYMENTS,PRIVATE CONTRACTOR,REVENUE
Walsall Council,http://opendatacommunities.org/id/metropolitan-district-council/walsall ,WC140-101,31.07.2022,ADULT SOCIAL CARE,5 CARE SERVICES LTD,18/07/2022,296.25,6541-Domiciliary Care,THIRD PARTY PAYMENTS,PRIVATE CONTRACTOR,REVENUE
Walsall Council,http://opendatacommunities.org/id/metropolitan-district-council/walsall ,WC140-102,31.07.2022,ADULT SOCIAL CARE,5 CARE SERVICES LTD,18/07/2022,718.90,6541-Domiciliary Care,THIRD PARTY PAYMENTS,PRIVATE CONTRACTOR,REVENUE
Walsall Council,http://opendatacommunities.org/id/metropolitan-district-council/walsall ,WC140-103,31.07.2022,ADULT SOCIAL CARE,5 CARE SERVICES LTD,18/07/2022,379.20,6541-Domiciliary Care,THIRD PARTY PAYMENTS,PRIVATE CONTRACTOR,REVENUE
Walsall Council,http://opendatacommunities.org/id/metropolitan-district-council/walsall ,WC140-104,31.07.2022,ADULT SOCIAL CARE,5 CARE SERVICES LTD,18/07/2022,316.00,6541-Domiciliary Care,THIRD PARTY PAYMENTS,PRIVATE CONTRACTOR,REVENUE
Walsall Council,http://opendatacommunities.org/id/metropolitan-district-council/walsall ,WC140-105,31.07.2022,ADULT SOCIAL CARE,5 CARE SERVICES LTD,18/07/2022,331.80,6541-Domiciliary Care,THIRD PARTY PAYMENTS,PRIVATE CONTRACTOR,REVENUE
Walsall Council,http://opendatacommunities.org/id/metropolitan-district-council/walsall ,WC140-106,31.07.2022,ADULT SOCIAL CARE,5 CARE SERVICES LTD,18/07/2022,497.70,6541-Domiciliary Care,THIRD PARTY PAYMENTS,PRIVATE CONTRACTOR,REVENUE
Walsall Council,http://opendatacommunities.org/id/metropolitan-district-council/walsall ,WC140-107,31.07.2022,ADULT SOCIAL CARE,5 CARE SERVICES LTD,18/07/2022,442.40,6541-Domiciliary Care,THIRD PARTY PAYMENTS,PRIVATE CONTRACTOR,REVENUE
Walsall Council,http://opendatacommunities.org/id/metropolitan-district-council/walsall ,WC140-108,31.07.2022,ADULT SOCIAL CARE,5 CARE SERVICES LTD,27/07/2022,545.10,6541-Domiciliary Care,THIRD PARTY PAYMENTS,PRIVATE CONTRACTOR,REVENUE
Walsall Council,http://opendatacommunities.org/id/metropolitan-district-council/walsall ,WC140-109,31.07.2022,ADULT SOCIAL CARE,5 CARE SERVICES LTD,27/07/2022,300.20,6541-Domiciliary Care,THIRD PARTY PAYMENTS,PRIVATE CONTRACTOR,REVENUE
Walsall Council,http://opendatacommunities.org/id/metropolitan-district-council/walsall ,WC140-110,31.07.2022,ADULT SOCIAL CARE,5 CARE SERVICES LTD,27/07/2022,"1,935.50",6541-Domiciliary Care,THIRD PARTY PAYMENTS,PRIVATE CONTRACTOR,REVENUE
Walsall Council,http://opendatacommunities.org/id/metropolitan-district-council/walsall ,WC140-111,31.07.2022,ADULT SOCIAL CARE,5 CARE SERVICES LTD,27/07/2022,568.80,6541-Domiciliary Care,THIRD PARTY PAYMENTS,PRIVATE CONTRACTOR,REVENUE
Walsall Council,http://opendatacommunities.org/id/metropolitan-district-council/walsall ,WC140-112,31.07.2022,ADULT SOCIAL CARE,5 CARE SERVICES LTD,27/07/2022,"1,137.60",6541-Domiciliary Care,THIRD PARTY PAYMENTS,PRIVATE CONTRACTOR,REVENUE
Walsall Council,http://opendatacommunities.org/id/metropolitan-district-council/walsall ,WC140-113,31.07.2022,ADULT SOCIAL CARE,5 CARE SERVICES LTD,27/07/2022,762.36,6541-Domiciliary Care,THIRD PARTY PAYMENTS,PRIVATE CONTRACTOR,REVENUE
Walsall Council,http://opendatacommunities.org/id/metropolitan-district-council/walsall ,WC140-114,31.07.2022,ADULT SOCIAL CARE,5 CARE SERVICES LTD,27/07/2022,"1,990.80",6541-Domiciliary Care,THIRD PARTY PAYMENTS,PRIVATE CONTRACTOR,REVENUE
Walsall Council,http://opendatacommunities.org/id/metropolitan-district-council/walsall ,WC140-115,31.07.2022,ADULT SOCIAL CARE,5 CARE SERVICES LTD,27/07/2022,402.90,6541-Domiciliary Care,THIRD PARTY PAYMENTS,PRIVATE CONTRACTOR,REVENUE
Walsall Council,http://opendatacommunities.org/id/metropolitan-district-council/walsall ,WC140-116,31.07.2022,ADULT SOCIAL CARE,5 CARE SERVICES LTD,27/07/2022,746.55,6541-Domiciliary Care,THIRD PARTY PAYMENTS,PRIVATE CONTRACTOR,REVENUE
Walsall Council,http://opendatacommunities.org/id/metropolitan-district-council/walsall ,WC140-117,31.07.2022,"ECONOMY, ENVIRONMENT & COMMUNITIES",5 CARE SERVICES LTD,18/07/2022,918.00,6313-Grants to Other Orgs,SUPPLIES & SERVICES,GRANTS (EXP) & SUBSCRIPTIONS,REVENUE
Walsall Council,http://opendatacommunities.org/id/metropolitan-district-council/walsall ,WC140-118,31.07.2022,"ECONOMY, ENVIRONMENT & COMMUNITIES",5 CARE SERVICES LTD,21/07/2022,758.51,6313-Grants to Other Orgs,SUPPLIES & SERVICES,GRANTS (EXP) & SUBSCRIPTIONS,REVENUE
Walsall Council,http://opendatacommunities.org/id/metropolitan-district-council/walsall ,WC140-119,31.07.2022,"ECONOMY, ENVIRONMENT & COMMUNITIES",5 CARE SERVICES LTD,07/07/2022,597.68,6313-Grants to Other Orgs,SUPPLIES & SERVICES,GRANTS (EXP) & SUBSCRIPTIONS,REVENUE
Walsall Council,http://opendatacommunities.org/id/metropolitan-district-council/walsall ,WC140-120,31.07.2022,CHILDRENS,5 CARE SERVICES LTD,07/07/2022,255.20,6220-Professional Fees & Services,SUPPLIES & SERVICES,SERVICES,REVENUE
Walsall Council,http://opendatacommunities.org/id/metropolitan-district-council/walsall ,WC140-121,31.07.2022,CHILDRENS,5 CARE SERVICES LTD,22/07/2022,255.20,6220-Professional Fees & Services,SUPPLIES & SERVICES,SERVICES,REVENUE
Walsall Council,http://opendatacommunities.org/id/metropolitan-district-council/walsall ,WC140-122,31.07.2022,"ECONOMY, ENVIRONMENT & COMMUNITIES",5 CARE SERVICES LTD,21/07/2022,918.00,6313-Grants to Other Orgs,SUPPLIES & SERVICES,GRANTS (EXP) & SUBSCRIPTIONS,REVENUE
Walsall Council,http://opendatacommunities.org/id/metropolitan-district-council/walsall ,WC140-123,31.07.2022,RESOURCES AND TRANSFORMATION,A D T FIRE AND SECURITY PLC,04/07/2022,364.27,6310-Repair & Maintenance of Furniture & Equipment,SUPPLIES & SERVICES,EQUIPMENT FURNITURE & MATERIALS,REVENUE
Walsall Council,http://opendatacommunities.org/id/metropolitan-district-council/walsall ,WC140-124,31.07.2022,"ECONOMY, ENVIRONMENT & COMMUNITIES",A D T FIRE AND SECURITY PLC,12/07/2022,763.63,6410-Materials,SUPPLIES & SERVICES,EQUIPMENT FURNITURE & MATERIALS,REVENUE
Walsall Council,http://opendatacommunities.org/id/metropolitan-district-council/walsall ,WC140-125,31.07.2022,RESOURCES AND TRANSFORMATION,A D T FIRE AND SECURITY PLC,28/07/2022,251.42,6310-Repair & Maintenance of Furniture & Equipment,SUPPLIES & SERVICES,EQUIPMENT FURNITURE & MATERIALS,REVENUE
Walsall Council,http://opendatacommunities.org/id/metropolitan-district-council/walsall ,WC140-126,31.07.2022,"ECONOMY, ENVIRONMENT & COMMUNITIES",A F BLAKEMORE & SON LTD,07/07/2022,299.60,6413-Catering & Refreshments,SUPPLIES & SERVICES,CATERING,REVENUE
Walsall Council,http://opendatacommunities.org/id/metropolitan-district-council/walsall ,WC140-127,31.07.2022,"ECONOMY, ENVIRONMENT & COMMUNITIES",A F BLAKEMORE & SON LTD,07/07/2022,"1,392.81",6413-Catering & Refreshments,SUPPLIES & SERVICES,CATERING,REVENUE
Walsall Council,http://opendatacommunities.org/id/metropolitan-district-council/walsall ,WC140-128,31.07.2022,"ECONOMY, ENVIRONMENT & COMMUNITIES",A F BLAKEMORE & SON LTD,01/07/2022,760.57,6413-Catering & Refreshments,SUPPLIES & SERVICES,CATERING,REVENUE
Walsall Council,http://opendatacommunities.org/id/metropolitan-district-council/walsall ,WC140-129,31.07.2022,"ECONOMY, ENVIRONMENT & COMMUNITIES",A F BLAKEMORE & SON LTD,26/07/2022,344.72,6413-Catering & Refreshments,SUPPLIES & SERVICES,CATERING,REVENUE
Walsall Council,http://opendatacommunities.org/id/metropolitan-district-council/walsall ,WC140-130,31.07.2022,"ECONOMY, ENVIRONMENT & COMMUNITIES",A F BLAKEMORE & SON LTD,26/07/2022,848.33,6413-Catering & Refreshments,SUPPLIES & SERVICES,CATERING,REVENUE
Walsall Council,http://opendatacommunities.org/id/metropolitan-district-council/walsall ,WC140-131,31.07.2022,"ECONOMY, ENVIRONMENT & COMMUNITIES",A M PRODUCTIONS (NORTHWEST) LTD,12/07/2022,"2,255.40",6414-Professional Fees & Services,SUPPLIES & SERVICES,SERVICES,REVENUE
Walsall Council,http://opendatacommunities.org/id/metropolitan-district-council/walsall ,WC140-132,31.07.2022,CHILDRENS,A1 WALSALL RADIO CARS,18/07/2022,741.00,6241-Hire of Vehicle with Driver,TRANSPORT,DIRECT TRANSPORT COSTS,REVENUE
Walsall Council,http://opendatacommunities.org/id/metropolitan-district-council/walsall ,WC140-133,31.07.2022,CHILDRENS,A1 WALSALL RADIO CARS,18/07/2022,"1,870.00",6241-Hire of Vehicle with Driver,TRANSPORT,DIRECT TRANSPORT COSTS,REVENUE
Walsall Council,http://opendatacommunities.org/id/metropolitan-district-council/walsall ,WC140-134,31.07.2022,CHILDRENS,A1 WALSALL RADIO CARS,18/07/2022,"1,078.00",6241-Hire of Vehicle with Driver,TRANSPORT,DIRECT TRANSPORT COSTS,REVENUE
Walsall Council,http://opendatacommunities.org/id/metropolitan-district-council/walsall ,WC140-135,31.07.2022,CHILDRENS,A1 WALSALL RADIO CARS,18/07/2022,"2,200.00",6241-Hire of Vehicle with Driver,TRANSPORT,DIRECT TRANSPORT COSTS,REVENUE
Walsall Council,http://opendatacommunities.org/id/metropolitan-district-council/walsall ,WC140-136,31.07.2022,CHILDRENS,A1 WALSALL RADIO CARS,18/07/2022,695.00,6241-Hire of Vehicle with Driver,TRANSPORT,DIRECT TRANSPORT COSTS,REVENUE
Walsall Council,http://opendatacommunities.org/id/metropolitan-district-council/walsall ,WC140-137,31.07.2022,"ECONOMY, ENVIRONMENT & COMMUNITIES",AAINA COMMUNITY HUB,07/07/2022,"3,788.00",6313-Grants to Other Orgs,SUPPLIES & SERVICES,GRANTS (EXP) & SUBSCRIPTIONS,REVENUE
Walsall Council,http://opendatacommunities.org/id/metropolitan-district-council/walsall ,WC140-138,31.07.2022,"ECONOMY, ENVIRONMENT & COMMUNITIES",AAINA COMMUNITY HUB,07/07/2022,"2,206.01",6313-Grants to Other Orgs,SUPPLIES & SERVICES,GRANTS (EXP) & SUBSCRIPTIONS,REVENUE
Walsall Council,http://opendatacommunities.org/id/metropolitan-district-council/walsall ,WC140-139,31.07.2022,"ECONOMY, ENVIRONMENT & COMMUNITIES",AAINA COMMUNITY HUB,15/07/2022,"2,304.62",6313-Grants to Other Orgs,SUPPLIES & SERVICES,GRANTS (EXP) & SUBSCRIPTIONS,REVENUE
Walsall Council,http://opendatacommunities.org/id/metropolitan-district-council/walsall ,WC140-140,31.07.2022,CHILDRENS,AAINA COMMUNITY HUB,08/07/2022,"8,250.00",6633-Grants to Other Orgs,SUPPLIES & SERVICES,GRANTS (EXP) & SUBSCRIPTIONS,REVENUE
Walsall Council,http://opendatacommunities.org/id/metropolitan-district-council/walsall ,WC140-141,31.07.2022,CHILDRENS,ABACUS FOSTERING LTD,12/07/2022,"2,763.20",6223-Independent Foster Care-Oth Agency Provision,THIRD PARTY PAYMENTS,PRIVATE CONTRACTOR,REVENUE
Walsall Council,http://opendatacommunities.org/id/metropolitan-district-council/walsall ,WC140-142,31.07.2022,CHILDRENS,ABACUS FOSTERING LTD,12/07/2022,"2,763.20",6223-Independent Foster Care-Oth Agency Provision,THIRD PARTY PAYMENTS,PRIVATE CONTRACTOR,REVENUE
Walsall Council,http://opendatacommunities.org/id/metropolitan-district-council/walsall ,WC140-143,31.07.2022,ADULT SOCIAL CARE,ABBEY COURT NURSING & RESIDEN,05/07/2022,"2,095.40",6541-Residential,THIRD PARTY PAYMENTS,PRIVATE CONTRACTOR,REVENUE
Walsall Council,http://opendatacommunities.org/id/metropolitan-district-council/walsall ,WC140-144,31.07.2022,ADULT SOCIAL CARE,ABBEY COURT NURSING & RESIDEN,05/07/2022,"2,366.04",6541-Residential EMI,THIRD PARTY PAYMENTS,PRIVATE CONTRACTOR,REVENUE
Walsall Council,http://opendatacommunities.org/id/metropolitan-district-council/walsall ,WC140-145,31.07.2022,ADULT SOCIAL CARE,ABBEY COURT NURSING & RESIDEN,05/07/2022,"2,606.04",6541-Residential EMI,THIRD PARTY PAYMENTS,PRIVATE CONTRACTOR,REVENUE
Walsall Council,http://opendatacommunities.org/id/metropolitan-district-council/walsall ,WC140-146,31.07.2022,ADULT SOCIAL CARE,ABBEY HEALTHCARE HOMES LTD,05/07/2022,"3,180.76",6541-Residential,THIRD PARTY PAYMENTS,PRIVATE CONTRACTOR,REVENUE
Walsall Council,http://opendatacommunities.org/id/metropolitan-district-council/walsall ,WC140-147,31.07.2022,ADULT SOCIAL CARE,ABBEY HEALTHCARE HOMES LTD,05/07/2022,"2,432.32",6541-Residential,THIRD PARTY PAYMENTS,PRIVATE CONTRACTOR,REVENUE
Walsall Council,http://opendatacommunities.org/id/metropolitan-district-council/walsall ,WC140-148,31.07.2022,ADULT SOCIAL CARE,ABBEY HEALTHCARE HOMES LTD,05/07/2022,"3,180.76",6541-Residential,THIRD PARTY PAYMENTS,PRIVATE CONTRACTOR,REVENUE
Walsall Council,http://opendatacommunities.org/id/metropolitan-district-council/walsall ,WC140-149,31.07.2022,ADULT SOCIAL CARE,ABBEY HEALTHCARE HOMES LTD,05/07/2022,"3,604.84",6541-Residential,THIRD PARTY PAYMENTS,PRIVATE CONTRACTOR,REVENUE
Walsall Council,http://opendatacommunities.org/id/metropolitan-district-council/walsall ,WC140-150,31.07.2022,CHILDRENS,ABBOTT TOXICOLOGY LTD - FORMERLY ALERE TOXICOLOGY PLC,19/07/2022,371.00,6223-Medical Specialist Reports,DIRECT EMPLOYEES,EMPLOYEE ALLOWANCES & EXPENSES,REVENUE
Walsall Council,http://opendatacommunities.org/id/metropolitan-district-council/walsall ,WC140-151,31.07.2022,CHILDRENS,ABBOTT TOXICOLOGY LTD - FORMERLY ALERE TOXICOLOGY PLC,27/07/2022,284.00,6223-Medical Specialist Reports,DIRECT EMPLOYEES,EMPLOYEE ALLOWANCES & EXPENSES,REVENUE
Walsall Council,http://opendatacommunities.org/id/metropolitan-district-council/walsall ,WC140-152,31.07.2022,CHILDRENS,ABC DAY NURSERY (WILLENHALL) LIMITED,22/07/2022,572.25,1184-Other-Grants to Other Orgs,SUPPLIES & SERVICES,GRANTS (EXP) & SUBSCRIPTIONS,REVENUE
Walsall Council,http://opendatacommunities.org/id/metropolitan-district-council/walsall ,WC140-153,31.07.2022,ADULT SOCIAL CARE,ABILITY HEALTHCARE LTD,27/07/2022,331.80,6541-Domiciliary Care,THIRD PARTY PAYMENTS,PRIVATE CONTRACTOR,REVENUE
Walsall Council,http://opendatacommunities.org/id/metropolitan-district-council/walsall ,WC140-154,31.07.2022,ADULT SOCIAL CARE,ABILITY HEALTHCARE LTD,27/07/2022,"1,682.70",6541-Domiciliary Care,THIRD PARTY PAYMENTS,PRIVATE CONTRACTOR,REVENUE
Walsall Council,http://opendatacommunities.org/id/metropolitan-district-council/walsall ,WC140-155,31.07.2022,ADULT SOCIAL CARE,ABILITY HEALTHCARE LTD,27/07/2022,"1,098.10",6541-Domiciliary Care,THIRD PARTY PAYMENTS,PRIVATE CONTRACTOR,REVENUE
Walsall Council,http://opendatacommunities.org/id/metropolitan-district-council/walsall ,WC140-156,31.07.2022,ADULT SOCIAL CARE,ABILITY HEALTHCARE LTD,27/07/2022,"2,359.56",6541-Domiciliary Care,THIRD PARTY PAYMENTS,PRIVATE CONTRACTOR,REVENUE
Walsall Council,http://opendatacommunities.org/id/metropolitan-district-council/walsall ,WC140-157,31.07.2022,ADULT SOCIAL CARE,ABILITY HEALTHCARE LTD,27/07/2022,"1,769.60",6541-Domiciliary Care,THIRD PARTY PAYMENTS,PRIVATE CONTRACTOR,REVENUE
Walsall Council,http://opendatacommunities.org/id/metropolitan-district-council/walsall ,WC140-158,31.07.2022,ADULT SOCIAL CARE,ABILITY HEALTHCARE LTD,27/07/2022,884.80,6541-Domiciliary Care,THIRD PARTY PAYMENTS,PRIVATE CONTRACTOR,REVENUE
Walsall Council,http://opendatacommunities.org/id/metropolitan-district-council/walsall ,WC140-159,31.07.2022,ADULT SOCIAL CARE,ABILITY HEALTHCARE LTD,27/07/2022,900.60,6541-Domiciliary Care,THIRD PARTY PAYMENTS,PRIVATE CONTRACTOR,REVENUE
Walsall Council,http://opendatacommunities.org/id/metropolitan-district-council/walsall ,WC140-160,31.07.2022,ADULT SOCIAL CARE,ABILITY HEALTHCARE LTD,27/07/2022,462.15,6541-Domiciliary Care,THIRD PARTY PAYMENTS,PRIVATE CONTRACTOR,REVENUE
Walsall Council,http://opendatacommunities.org/id/metropolitan-district-council/walsall ,WC140-161,31.07.2022,ADULT SOCIAL CARE,ABILITY HEALTHCARE LTD,27/07/2022,995.40,6541-Domiciliary Care,THIRD PARTY PAYMENTS,PRIVATE CONTRACTOR,REVENUE
Walsall Council,http://opendatacommunities.org/id/metropolitan-district-council/walsall ,WC140-162,31.07.2022,ADULT SOCIAL CARE,ABILITY HEALTHCARE LTD,27/07/2022,"1,769.60",6541-Domiciliary Care,THIRD PARTY PAYMENTS,PRIVATE CONTRACTOR,REVENUE
Walsall Council,http://opendatacommunities.org/id/metropolitan-district-council/walsall ,WC140-163,31.07.2022,ADULT SOCIAL CARE,ABILITY HEALTHCARE LTD,27/07/2022,"1,548.40",6541-Domiciliary Care,THIRD PARTY PAYMENTS,PRIVATE CONTRACTOR,REVENUE
Walsall Council,http://opendatacommunities.org/id/metropolitan-district-council/walsall ,WC140-164,31.07.2022,ADULT SOCIAL CARE,ABILITY HEALTHCARE LTD,27/07/2022,995.40,6541-Domiciliary Care,THIRD PARTY PAYMENTS,PRIVATE CONTRACTOR,REVENUE
Walsall Council,http://opendatacommunities.org/id/metropolitan-district-council/walsall ,WC140-165,31.07.2022,ADULT SOCIAL CARE,ABILITY HEALTHCARE LTD,27/07/2022,368.76,6541-Domiciliary Care,THIRD PARTY PAYMENTS,PRIVATE CONTRACTOR,REVENUE
Walsall Council,http://opendatacommunities.org/id/metropolitan-district-council/walsall ,WC140-166,31.07.2022,ADULT SOCIAL CARE,ABILITY HEALTHCARE LTD,27/07/2022,"1,990.80",6541-Domiciliary Care,THIRD PARTY PAYMENTS,PRIVATE CONTRACTOR,REVENUE
Walsall Council,http://opendatacommunities.org/id/metropolitan-district-council/walsall ,WC140-167,31.07.2022,ADULT SOCIAL CARE,ABILITY HEALTHCARE LTD,27/07/2022,"1,730.10",6541-Domiciliary Care,THIRD PARTY PAYMENTS,PRIVATE CONTRACTOR,REVENUE
Walsall Council,http://opendatacommunities.org/id/metropolitan-district-council/walsall ,WC140-168,31.07.2022,ADULT SOCIAL CARE,ABILITY HEALTHCARE LTD,27/07/2022,"1,769.60",6541-Domiciliary Care,THIRD PARTY PAYMENTS,PRIVATE CONTRACTOR,REVENUE
Walsall Council,http://opendatacommunities.org/id/metropolitan-district-council/walsall ,WC140-169,31.07.2022,ADULT SOCIAL CARE,ABILITY HEALTHCARE LTD,27/07/2022,"2,275.20",6541-Domiciliary Care,THIRD PARTY PAYMENTS,PRIVATE CONTRACTOR,REVENUE
Walsall Council,http://opendatacommunities.org/id/metropolitan-district-council/walsall ,WC140-170,31.07.2022,ADULT SOCIAL CARE,ABILITY HEALTHCARE LTD,27/07/2022,"1,453.60",6541-Domiciliary Care,THIRD PARTY PAYMENTS,PRIVATE CONTRACTOR,REVENUE
Walsall Council,http://opendatacommunities.org/id/metropolitan-district-council/walsall ,WC140-171,31.07.2022,ADULT SOCIAL CARE,ABILITY HEALTHCARE LTD,27/07/2022,"1,769.60",6541-Domiciliary Care,THIRD PARTY PAYMENTS,PRIVATE CONTRACTOR,REVENUE
Walsall Council,http://opendatacommunities.org/id/metropolitan-district-council/walsall ,WC140-172,31.07.2022,ADULT SOCIAL CARE,ABILITY HEALTHCARE LTD,27/07/2022,"1,990.80",6541-Domiciliary Care,THIRD PARTY PAYMENTS,PRIVATE CONTRACTOR,REVENUE
Walsall Council,http://opendatacommunities.org/id/metropolitan-district-council/walsall ,WC140-173,31.07.2022,ADULT SOCIAL CARE,ABILITY HEALTHCARE LTD,27/07/2022,"1,990.80",6541-Domiciliary Care,THIRD PARTY PAYMENTS,PRIVATE CONTRACTOR,REVENUE
Walsall Council,http://opendatacommunities.org/id/metropolitan-district-council/walsall ,WC140-174,31.07.2022,ADULT SOCIAL CARE,ABILITY HEALTHCARE LTD,27/07/2022,"1,990.80",6541-Domiciliary Care,THIRD PARTY PAYMENTS,PRIVATE CONTRACTOR,REVENUE
Walsall Council,http://opendatacommunities.org/id/metropolitan-district-council/walsall ,WC140-175,31.07.2022,ADULT SOCIAL CARE,ABILITY HEALTHCARE LTD,27/07/2022,"1,817.00",6541-Domiciliary Care,THIRD PARTY PAYMENTS,PRIVATE CONTRACTOR,REVENUE
Walsall Council,http://opendatacommunities.org/id/metropolitan-district-council/walsall ,WC140-176,31.07.2022,ADULT SOCIAL CARE,ABILITY HEALTHCARE LTD,27/07/2022,"1,990.80",6541-Domiciliary Care,THIRD PARTY PAYMENTS,PRIVATE CONTRACTOR,REVENUE
Walsall Council,http://opendatacommunities.org/id/metropolitan-district-council/walsall ,WC140-177,31.07.2022,ADULT SOCIAL CARE,ABILITY HEALTHCARE LTD,27/07/2022,"1,548.40",6541-Domiciliary Care,THIRD PARTY PAYMENTS,PRIVATE CONTRACTOR,REVENUE
Walsall Council,http://opendatacommunities.org/id/metropolitan-district-council/walsall ,WC140-178,31.07.2022,ADULT SOCIAL CARE,ABILITY HEALTHCARE LTD,27/07/2022,"1,769.60",6541-Domiciliary Care,THIRD PARTY PAYMENTS,PRIVATE CONTRACTOR,REVENUE
Walsall Council,http://opendatacommunities.org/id/metropolitan-district-council/walsall ,WC140-179,31.07.2022,ADULT SOCIAL CARE,ABILITY HEALTHCARE LTD,27/07/2022,884.80,6541-Domiciliary Care,THIRD PARTY PAYMENTS,PRIVATE CONTRACTOR,REVENUE
Walsall Council,http://opendatacommunities.org/id/metropolitan-district-council/walsall ,WC140-180,31.07.2022,ADULT SOCIAL CARE,ABILITY HEALTHCARE LTD,27/07/2022,"1,121.80",6541-Domiciliary Care,THIRD PARTY PAYMENTS,PRIVATE CONTRACTOR,REVENUE
Walsall Council,http://opendatacommunities.org/id/metropolitan-district-council/walsall ,WC140-181,31.07.2022,ADULT SOCIAL CARE,ABILITY HEALTHCARE LTD,27/07/2022,790.00,6541-Domiciliary Care,THIRD PARTY PAYMENTS,PRIVATE CONTRACTOR,REVENUE
Walsall Council,http://opendatacommunities.org/id/metropolitan-district-council/walsall ,WC140-182,31.07.2022,ADULT SOCIAL CARE,ABILITY HEALTHCARE LTD,27/07/2022,395.00,6541-Domiciliary Care,THIRD PARTY PAYMENTS,PRIVATE CONTRACTOR,REVENUE
Walsall Council,http://opendatacommunities.org/id/metropolitan-district-council/walsall ,WC140-183,31.07.2022,ADULT SOCIAL CARE,ABILITY HEALTHCARE LTD,27/07/2022,"1,622.32",6541-Domiciliary Care,THIRD PARTY PAYMENTS,PRIVATE CONTRACTOR,REVENUE
Walsall Council,http://opendatacommunities.org/id/metropolitan-district-council/walsall ,WC140-184,31.07.2022,ADULT SOCIAL CARE,ABILITY HEALTHCARE LTD,27/07/2022,"1,179.92",6541-Domiciliary Care,THIRD PARTY PAYMENTS,PRIVATE CONTRACTOR,REVENUE
Walsall Council,http://opendatacommunities.org/id/metropolitan-district-council/walsall ,WC140-185,31.07.2022,ADULT SOCIAL CARE,ABILITY HEALTHCARE LTD,27/07/2022,"1,769.60",6541-Domiciliary Care,THIRD PARTY PAYMENTS,PRIVATE CONTRACTOR,REVENUE
Walsall Council,http://opendatacommunities.org/id/metropolitan-district-council/walsall ,WC140-186,31.07.2022,ADULT SOCIAL CARE,ABILITY HEALTHCARE LTD,27/07/2022,"1,106.00",6541-Domiciliary Care,THIRD PARTY PAYMENTS,PRIVATE CONTRACTOR,REVENUE
Walsall Council,http://opendatacommunities.org/id/metropolitan-district-council/walsall ,WC140-187,31.07.2022,ADULT SOCIAL CARE,ABILITY HEALTHCARE LTD,27/07/2022,442.68,6541-Domiciliary Care,THIRD PARTY PAYMENTS,PRIVATE CONTRACTOR,REVENUE
Walsall Council,http://opendatacommunities.org/id/metropolitan-district-council/walsall ,WC140-188,31.07.2022,ADULT SOCIAL CARE,ABILITY HEALTHCARE LTD,27/07/2022,"1,635.30",6541-Domiciliary Care,THIRD PARTY PAYMENTS,PRIVATE CONTRACTOR,REVENUE
Walsall Council,http://opendatacommunities.org/id/metropolitan-district-council/walsall ,WC140-189,31.07.2022,ADULT SOCIAL CARE,ABILITY HEALTHCARE LTD,27/07/2022,711.00,6541-Domiciliary Care,THIRD PARTY PAYMENTS,PRIVATE CONTRACTOR,REVENUE
Walsall Council,http://opendatacommunities.org/id/metropolitan-district-council/walsall ,WC140-190,31.07.2022,ADULT SOCIAL CARE,ABILITY HEALTHCARE LTD,27/07/2022,"1,382.50",6541-Domiciliary Care,THIRD PARTY PAYMENTS,PRIVATE CONTRACTOR,REVENUE
Walsall Council,http://opendatacommunities.org/id/metropolitan-district-council/walsall ,WC140-191,31.07.2022,ADULT SOCIAL CARE,ABILITY HEALTHCARE LTD,27/07/2022,742.60,6541-Domiciliary Care,THIRD PARTY PAYMENTS,PRIVATE CONTRACTOR,REVENUE
Walsall Council,http://opendatacommunities.org/id/metropolitan-district-council/walsall ,WC140-192,31.07.2022,ADULT SOCIAL CARE,ABILITY HEALTHCARE LTD,27/07/2022,"1,327.20",6541-Domiciliary Care,THIRD PARTY PAYMENTS,PRIVATE CONTRACTOR,REVENUE
Walsall Council,http://opendatacommunities.org/id/metropolitan-district-council/walsall ,WC140-193,31.07.2022,ADULT SOCIAL CARE,ABILITY HEALTHCARE LTD,27/07/2022,813.70,6541-Domiciliary Care,THIRD PARTY PAYMENTS,PRIVATE CONTRACTOR,REVENUE
Walsall Council,http://opendatacommunities.org/id/metropolitan-district-council/walsall ,WC140-194,31.07.2022,ADULT SOCIAL CARE,ABILITY HEALTHCARE LTD,27/07/2022,355.50,6541-Domiciliary Care,THIRD PARTY PAYMENTS,PRIVATE CONTRACTOR,REVENUE
Walsall Council,http://opendatacommunities.org/id/metropolitan-district-council/walsall ,WC140-195,31.07.2022,ADULT SOCIAL CARE,ABILITY HEALTHCARE LTD,27/07/2022,568.80,6541-Domiciliary Care,THIRD PARTY PAYMENTS,PRIVATE CONTRACTOR,REVENUE
Walsall Council,http://opendatacommunities.org/id/metropolitan-district-council/walsall ,WC140-196,31.07.2022,ADULT SOCIAL CARE,ABILITY HEALTHCARE LTD,27/07/2022,"1,990.80",6541-Domiciliary Care,THIRD PARTY PAYMENTS,PRIVATE CONTRACTOR,REVENUE
Walsall Council,http://opendatacommunities.org/id/metropolitan-district-council/walsall ,WC140-197,31.07.2022,ADULT SOCIAL CARE,ABILITY HEALTHCARE LTD,27/07/2022,"1,738.00",6541-Domiciliary Care,THIRD PARTY PAYMENTS,PRIVATE CONTRACTOR,REVENUE
Walsall Council,http://opendatacommunities.org/id/metropolitan-district-council/walsall ,WC140-198,31.07.2022,"ECONOMY, ENVIRONMENT & COMMUNITIES",ABLE INVESTIGATIONS & ENFORCEMENTS LTD,27/07/2022,715.00,6440-Professional Fees & Services,SUPPLIES & SERVICES,SERVICES,REVENUE
Walsall Council,http://opendatacommunities.org/id/metropolitan-district-council/walsall ,WC140-199,31.07.2022,CHILDRENS,ABLEWELL ADVICE SERVICES,12/07/2022,"2,000.00",6633-Grants to Other Orgs,SUPPLIES & SERVICES,GRANTS (EXP) & SUBSCRIPTIONS,REVENUE
Walsall Council,http://opendatacommunities.org/id/metropolitan-district-council/walsall ,WC140-200,31.07.2022,CHILDRENS,ABLEWELL CARS,18/07/2022,"1,664.00",6241-Hire of Vehicle with Driver,TRANSPORT,DIRECT TRANSPORT COSTS,REVENUE
Walsall Council,http://opendatacommunities.org/id/metropolitan-district-council/walsall ,WC140-201,31.07.2022,CHILDRENS,ABLEWELL CARS,18/07/2022,"1,976.00",6241-Hire of Vehicle with Driver,TRANSPORT,DIRECT TRANSPORT COSTS,REVENUE
Walsall Council,http://opendatacommunities.org/id/metropolitan-district-council/walsall ,WC140-202,31.07.2022,CHILDRENS,ABLEWELL CARS,18/07/2022,"1,323.60",6241-Hire of Vehicle with Driver,TRANSPORT,DIRECT TRANSPORT COSTS,REVENUE
Walsall Council,http://opendatacommunities.org/id/metropolitan-district-council/walsall ,WC140-203,31.07.2022,CHILDRENS,ABLEWELL CARS,18/07/2022,"2,920.00",6241-Hire of Vehicle with Driver,TRANSPORT,DIRECT TRANSPORT COSTS,REVENUE
Walsall Council,http://opendatacommunities.org/id/metropolitan-district-council/walsall ,WC140-204,31.07.2022,CHILDRENS,ABLEWELL CARS,18/07/2022,855.00,6241-Hire of Vehicle with Driver,TRANSPORT,DIRECT TRANSPORT COSTS,REVENUE
Walsall Council,http://opendatacommunities.org/id/metropolitan-district-council/walsall ,WC140-205,31.07.2022,CHILDRENS,ABLEWELL CARS,18/07/2022,"1,144.80",6241-Hire of Vehicle with Driver,TRANSPORT,DIRECT TRANSPORT COSTS,REVENUE
Walsall Council,http://opendatacommunities.org/id/metropolitan-district-council/walsall ,WC140-206,31.07.2022,CHILDRENS,ABS TAXIS (ALDRIDGE),18/07/2022,"1,814.00",6241-Hire of Vehicle with Driver,TRANSPORT,DIRECT TRANSPORT COSTS,REVENUE
Walsall Council,http://opendatacommunities.org/id/metropolitan-district-council/walsall ,WC140-207,31.07.2022,CHILDRENS,ABS TAXIS (ALDRIDGE),18/07/2022,"1,875.30",6241-Hire of Vehicle with Driver,TRANSPORT,DIRECT TRANSPORT COSTS,REVENUE
Walsall Council,http://opendatacommunities.org/id/metropolitan-district-council/walsall ,WC140-208,31.07.2022,CHILDRENS,ABS TAXIS (ALDRIDGE),18/07/2022,"1,676.00",6241-Hire of Vehicle with Driver,TRANSPORT,DIRECT TRANSPORT COSTS,REVENUE
Walsall Council,http://opendatacommunities.org/id/metropolitan-district-council/walsall ,WC140-209,31.07.2022,CHILDRENS,ABSOLUTE INTERPRETING & TRANSLATIONS LTD,01/07/2022,312.00,6222-Language & Interpretation Services,SUPPLIES & SERVICES,SERVICES,REVENUE
Walsall Council,http://opendatacommunities.org/id/metropolitan-district-council/walsall ,WC140-210,31.07.2022,CHILDRENS,ABSOLUTE INTERPRETING & TRANSLATIONS LTD,01/07/2022,360.00,6222-Language & Interpretation Services,SUPPLIES & SERVICES,SERVICES,REVENUE
Walsall Council,http://opendatacommunities.org/id/metropolitan-district-council/walsall ,WC140-211,31.07.2022,CHILDRENS,ABSOLUTE INTERPRETING & TRANSLATIONS LTD,06/07/2022,300.00,6222-Language & Interpretation Services,SUPPLIES & SERVICES,SERVICES,REVENUE
Walsall Council,http://opendatacommunities.org/id/metropolitan-district-council/walsall ,WC140-212,31.07.2022,CHILDRENS,ABSOLUTE INTERPRETING & TRANSLATIONS LTD,06/07/2022,525.00,6222-Language & Interpretation Services,SUPPLIES & SERVICES,SERVICES,REVENUE
Walsall Council,http://opendatacommunities.org/id/metropolitan-district-council/walsall ,WC140-213,31.07.2022,CHILDRENS,ABSOLUTE INTERPRETING & TRANSLATIONS LTD,06/07/2022,525.00,6222-Language & Interpretation Services,SUPPLIES & SERVICES,SERVICES,REVENUE
Walsall Council,http://opendatacommunities.org/id/metropolitan-district-council/walsall ,WC140-214,31.07.2022,CHILDRENS,ABSOLUTE INTERPRETING & TRANSLATIONS LTD,01/07/2022,-450.00,6222-Language & Interpretation Services,SUPPLIES & SERVICES,SERVICES,REVENUE
Walsall Council,http://opendatacommunities.org/id/metropolitan-district-council/walsall ,WC140-215,31.07.2022,CHILDRENS,ABSOLUTE INTERPRETING & TRANSLATIONS LTD,01/07/2022,450.00,6222-Language & Interpretation Services,SUPPLIES & SERVICES,SERVICES,REVENUE
Walsall Council,http://opendatacommunities.org/id/metropolitan-district-council/walsall ,WC140-216,31.07.2022,CHILDRENS,ABSOLUTE INTERPRETING & TRANSLATIONS LTD,01/07/2022,300.00,6222-Language & Interpretation Services,SUPPLIES & SERVICES,SERVICES,REVENUE
Walsall Council,http://opendatacommunities.org/id/metropolitan-district-council/walsall ,WC140-217,31.07.2022,CHILDRENS,ABSOLUTE INTERPRETING & TRANSLATIONS LTD,20/07/2022,300.00,6222-Language & Interpretation Services,SUPPLIES & SERVICES,SERVICES,REVENUE
Walsall Council,http://opendatacommunities.org/id/metropolitan-district-council/walsall ,WC140-218,31.07.2022,CHILDRENS,ABU BAKR TRUST,06/07/2022,"7,110.23",1220-Top Up Funding -Grants to Schools,SUPPLIES & SERVICES,GRANTS (EXP) & SUBSCRIPTIONS,REVENUE
Walsall Council,http://opendatacommunities.org/id/metropolitan-district-council/walsall ,WC140-219,31.07.2022,"ECONOMY, ENVIRONMENT & COMMUNITIES",AC OPTICS LTD,07/07/2022,"1,042.64",6313-Grants to Other Orgs,SUPPLIES & SERVICES,GRANTS (EXP) & SUBSCRIPTIONS,REVENUE
Walsall Council,http://opendatacommunities.org/id/metropolitan-district-council/walsall ,WC140-220,31.07.2022,"ECONOMY, ENVIRONMENT & COMMUNITIES",AC OPTICS LTD,07/07/2022,407.53,6313-Grants to Other Orgs,SUPPLIES & SERVICES,GRANTS (EXP) & SUBSCRIPTIONS,REVENUE
Walsall Council,http://opendatacommunities.org/id/metropolitan-district-council/walsall ,WC140-221,31.07.2022,CHILDRENS,ACADEMY 21 LTD,26/07/2022,"-1,075.20",1217-Professional Fees & Services,SUPPLIES & SERVICES,SERVICES,REVENUE
Walsall Council,http://opendatacommunities.org/id/metropolitan-district-council/walsall ,WC140-222,31.07.2022,CHILDRENS,ACADEMY 21 LTD,26/07/2022,896.00,1217-Professional Fees & Services,SUPPLIES & SERVICES,SERVICES,REVENUE
Walsall Council,http://opendatacommunities.org/id/metropolitan-district-council/walsall ,WC140-223,31.07.2022,CHILDRENS,ACADEMY 21 LTD,26/07/2022,"1,075.20",1217-Professional Fees & Services,SUPPLIES & SERVICES,SERVICES,REVENUE
Walsall Council,http://opendatacommunities.org/id/metropolitan-district-council/walsall ,WC140-224,31.07.2022,CHILDRENS,ACCALIA CARE SERVICES LTD,12/07/2022,"20,960.00",6223-External Residential Care-Oth Agency Provision,THIRD PARTY PAYMENTS,PRIVATE CONTRACTOR,REVENUE
Walsall Council,http://opendatacommunities.org/id/metropolitan-district-council/walsall ,WC140-225,31.07.2022,RESOURCES AND TRANSFORMATION,ACCESS SYSTEMS (UK) LTD,15/07/2022,"4,520.00",6634-Bank Charges - Central Expenses,FINANCING ETC,INTEREST PAID,REVENUE
Walsall Council,http://opendatacommunities.org/id/metropolitan-district-council/walsall ,WC140-226,31.07.2022,ADULT SOCIAL CARE,ACCESS UK LTD ,18/07/2022,"18,315.00",6551-Professional Fees & Services,SUPPLIES & SERVICES,SERVICES,REVENUE
Walsall Council,http://opendatacommunities.org/id/metropolitan-district-council/walsall ,WC140-227,31.07.2022,ADULT SOCIAL CARE,ACCOMPLISH GROUP LTD,05/07/2022,"7,912.44",6541-Residential,THIRD PARTY PAYMENTS,PRIVATE CONTRACTOR,REVENUE
Walsall Council,http://opendatacommunities.org/id/metropolitan-district-council/walsall ,WC140-228,31.07.2022,ADULT SOCIAL CARE,ACCORD HOUSING ASSOCIATION LIMITED - HOBS MEADOW,05/07/2022,"4,706.24",6541-Residential,THIRD PARTY PAYMENTS,PRIVATE CONTRACTOR,REVENUE
Walsall Council,http://opendatacommunities.org/id/metropolitan-district-council/walsall ,WC140-229,31.07.2022,ADULT SOCIAL CARE,ACCORD HOUSING ASSOCIATION LIMITED - HOBS MEADOW,05/07/2022,"4,776.84",6541-Residential,THIRD PARTY PAYMENTS,PRIVATE CONTRACTOR,REVENUE
Walsall Council,http://opendatacommunities.org/id/metropolitan-district-council/walsall ,WC140-230,31.07.2022,ADULT SOCIAL CARE,ACCORD HOUSING ASSOCIATION LIMITED - HOBS MEADOW,05/07/2022,"4,776.84",6541-Residential,THIRD PARTY PAYMENTS,PRIVATE CONTRACTOR,REVENUE
Walsall Council,http://opendatacommunities.org/id/metropolitan-district-council/walsall ,WC140-231,31.07.2022,ADULT SOCIAL CARE,ACCORD HOUSING ASSOCIATION LIMITED - HOBS MEADOW,05/07/2022,"4,776.84",6541-Residential,THIRD PARTY PAYMENTS,PRIVATE CONTRACTOR,REVENUE
Walsall Council,http://opendatacommunities.org/id/metropolitan-district-council/walsall ,WC140-232,31.07.2022,CHILDRENS,ACE CARS & MINIBUSES LTD,18/07/2022,"2,033.00",6241-Hire of Vehicle with Driver,TRANSPORT,DIRECT TRANSPORT COSTS,REVENUE
Walsall Council,http://opendatacommunities.org/id/metropolitan-district-council/walsall ,WC140-233,31.07.2022,CHILDRENS,ACE CARS & MINIBUSES LTD,18/07/2022,"2,033.00",6241-Hire of Vehicle with Driver,TRANSPORT,DIRECT TRANSPORT COSTS,REVENUE
Walsall Council,http://opendatacommunities.org/id/metropolitan-district-council/walsall ,WC140-234,31.07.2022,CHILDRENS,ACE CARS & MINIBUSES LTD,18/07/2022,"2,242.00",6241-Hire of Vehicle with Driver,TRANSPORT,DIRECT TRANSPORT COSTS,REVENUE
Walsall Council,http://opendatacommunities.org/id/metropolitan-district-council/walsall ,WC140-235,31.07.2022,CHILDRENS,ACE CARS & MINIBUSES LTD,18/07/2022,"2,390.00",6241-Hire of Vehicle with Driver,TRANSPORT,DIRECT TRANSPORT COSTS,REVENUE
Walsall Council,http://opendatacommunities.org/id/metropolitan-district-council/walsall ,WC140-236,31.07.2022,CHILDRENS,ACE CARS & MINIBUSES LTD,18/07/2022,"2,722.00",6241-Hire of Vehicle with Driver,TRANSPORT,DIRECT TRANSPORT COSTS,REVENUE
Walsall Council,http://opendatacommunities.org/id/metropolitan-district-council/walsall ,WC140-237,31.07.2022,CHILDRENS,ACE CARS & MINIBUSES LTD,18/07/2022,"2,722.00",6241-Hire of Vehicle with Driver,TRANSPORT,DIRECT TRANSPORT COSTS,REVENUE
Walsall Council,http://opendatacommunities.org/id/metropolitan-district-council/walsall ,WC140-238,31.07.2022,CHILDRENS,ACE CARS & MINIBUSES LTD,18/07/2022,"2,033.00",6241-Hire of Vehicle with Driver,TRANSPORT,DIRECT TRANSPORT COSTS,REVENUE
Walsall Council,http://opendatacommunities.org/id/metropolitan-district-council/walsall ,WC140-239,31.07.2022,CHILDRENS,ACE CARS & MINIBUSES LTD,18/07/2022,"2,033.00",6241-Hire of Vehicle with Driver,TRANSPORT,DIRECT TRANSPORT COSTS,REVENUE
Walsall Council,http://opendatacommunities.org/id/metropolitan-district-council/walsall ,WC140-240,31.07.2022,CHILDRENS,ACE CARS & MINIBUSES LTD,18/07/2022,"2,280.00",6241-Hire of Vehicle with Driver,TRANSPORT,DIRECT TRANSPORT COSTS,REVENUE
Walsall Council,http://opendatacommunities.org/id/metropolitan-district-council/walsall ,WC140-241,31.07.2022,CHILDRENS,ACE CARS & MINIBUSES LTD,18/07/2022,"2,390.00",6241-Hire of Vehicle with Driver,TRANSPORT,DIRECT TRANSPORT COSTS,REVENUE
Walsall Council,http://opendatacommunities.org/id/metropolitan-district-council/walsall ,WC140-242,31.07.2022,CHILDRENS,ACE CARS & MINIBUSES LTD,18/07/2022,"2,280.00",6241-Hire of Vehicle with Driver,TRANSPORT,DIRECT TRANSPORT COSTS,REVENUE
Walsall Council,http://opendatacommunities.org/id/metropolitan-district-council/walsall ,WC140-243,31.07.2022,CHILDRENS,ACE CARS & MINIBUSES LTD,18/07/2022,"13,977.08",6241-Hire of Vehicle with Driver,TRANSPORT,DIRECT TRANSPORT COSTS,REVENUE
Walsall Council,http://opendatacommunities.org/id/metropolitan-district-council/walsall ,WC140-244,31.07.2022,CHILDRENS,ACE CARS & MINIBUSES LTD,18/07/2022,"2,722.00",6241-Hire of Vehicle with Driver,TRANSPORT,DIRECT TRANSPORT COSTS,REVENUE
Walsall Council,http://opendatacommunities.org/id/metropolitan-district-council/walsall ,WC140-245,31.07.2022,CHILDRENS,ACE CARS & MINIBUSES LTD,18/07/2022,"6,472.28",6241-Hire of Vehicle with Driver,TRANSPORT,DIRECT TRANSPORT COSTS,REVENUE
Walsall Council,http://opendatacommunities.org/id/metropolitan-district-council/walsall ,WC140-246,31.07.2022,CHILDRENS,ACE CARS & MINIBUSES LTD,18/07/2022,"2,033.00",6241-Hire of Vehicle with Driver,TRANSPORT,DIRECT TRANSPORT COSTS,REVENUE
Walsall Council,http://opendatacommunities.org/id/metropolitan-district-council/walsall ,WC140-247,31.07.2022,CHILDRENS,ACE CARS & MINIBUSES LTD,18/07/2022,"2,033.00",6241-Hire of Vehicle with Driver,TRANSPORT,DIRECT TRANSPORT COSTS,REVENUE
Walsall Council,http://opendatacommunities.org/id/metropolitan-district-council/walsall ,WC140-248,31.07.2022,CHILDRENS,ACE CARS & MINIBUSES LTD,18/07/2022,"2,990.50",6241-Hire of Vehicle with Driver,TRANSPORT,DIRECT TRANSPORT COSTS,REVENUE
Walsall Council,http://opendatacommunities.org/id/metropolitan-district-council/walsall ,WC140-249,31.07.2022,CHILDRENS,ACE CARS & MINIBUSES LTD,18/07/2022,"2,390.00",6241-Hire of Vehicle with Driver,TRANSPORT,DIRECT TRANSPORT COSTS,REVENUE
Walsall Council,http://opendatacommunities.org/id/metropolitan-district-council/walsall ,WC140-250,31.07.2022,CHILDRENS,ACE CARS & MINIBUSES LTD,18/07/2022,"2,390.00",6241-Hire of Vehicle with Driver,TRANSPORT,DIRECT TRANSPORT COSTS,REVENUE
Walsall Council,http://opendatacommunities.org/id/metropolitan-district-council/walsall ,WC140-251,31.07.2022,CHILDRENS,ACE CARS & MINIBUSES LTD,18/07/2022,"2,390.00",6241-Hire of Vehicle with Driver,TRANSPORT,DIRECT TRANSPORT COSTS,REVENUE
Walsall Council,http://opendatacommunities.org/id/metropolitan-district-council/walsall ,WC140-252,31.07.2022,CHILDRENS,ACE CARS & MINIBUSES LTD,18/07/2022,"2,722.00",6241-Hire of Vehicle with Driver,TRANSPORT,DIRECT TRANSPORT COSTS,REVENUE
Walsall Council,http://opendatacommunities.org/id/metropolitan-district-council/walsall ,WC140-253,31.07.2022,CHILDRENS,ACE CARS & MINIBUSES LTD,18/07/2022,"2,722.00",6241-Hire of Vehicle with Driver,TRANSPORT,DIRECT TRANSPORT COSTS,REVENUE
Walsall Council,http://opendatacommunities.org/id/metropolitan-district-council/walsall ,WC140-254,31.07.2022,CHILDRENS,ACE CARS & MINIBUSES LTD,18/07/2022,"3,360.00",6241-Hire of Vehicle with Driver,TRANSPORT,DIRECT TRANSPORT COSTS,REVENUE
Walsall Council,http://opendatacommunities.org/id/metropolitan-district-council/walsall ,WC140-255,31.07.2022,CHILDRENS,ACE CARS & MINIBUSES LTD,18/07/2022,"2,242.00",6241-Hire of Vehicle with Driver,TRANSPORT,DIRECT TRANSPORT COSTS,REVENUE
Walsall Council,http://opendatacommunities.org/id/metropolitan-district-council/walsall ,WC140-256,31.07.2022,CHILDRENS,ACE CARS & MINIBUSES LTD,18/07/2022,"2,555.88",6241-Hire of Vehicle with Driver,TRANSPORT,DIRECT TRANSPORT COSTS,REVENUE
Walsall Council,http://opendatacommunities.org/id/metropolitan-district-council/walsall ,WC140-257,31.07.2022,CHILDRENS,ACE CARS & MINIBUSES LTD,18/07/2022,"2,376.52",6241-Hire of Vehicle with Driver,TRANSPORT,DIRECT TRANSPORT COSTS,REVENUE
Walsall Council,http://opendatacommunities.org/id/metropolitan-district-council/walsall ,WC140-258,31.07.2022,CHILDRENS,ACE CARS & MINIBUSES LTD,18/07/2022,"2,242.00",6241-Hire of Vehicle with Driver,TRANSPORT,DIRECT TRANSPORT COSTS,REVENUE
Walsall Council,http://opendatacommunities.org/id/metropolitan-district-council/walsall ,WC140-259,31.07.2022,CHILDRENS,ACE CARS & MINIBUSES LTD,18/07/2022,"2,280.00",6241-Hire of Vehicle with Driver,TRANSPORT,DIRECT TRANSPORT COSTS,REVENUE
Walsall Council,http://opendatacommunities.org/id/metropolitan-district-council/walsall ,WC140-260,31.07.2022,CHILDRENS,ACE CARS & MINIBUSES LTD,18/07/2022,"2,390.00",6241-Hire of Vehicle with Driver,TRANSPORT,DIRECT TRANSPORT COSTS,REVENUE
Walsall Council,http://opendatacommunities.org/id/metropolitan-district-council/walsall ,WC140-261,31.07.2022,CHILDRENS,ACE CARS & MINIBUSES LTD,18/07/2022,"2,033.00",6241-Hire of Vehicle with Driver,TRANSPORT,DIRECT TRANSPORT COSTS,REVENUE
Walsall Council,http://opendatacommunities.org/id/metropolitan-district-council/walsall ,WC140-262,31.07.2022,CHILDRENS,ACE CARS & MINIBUSES LTD,18/07/2022,"4,035.60",6241-Hire of Vehicle with Driver,TRANSPORT,DIRECT TRANSPORT COSTS,REVENUE
Walsall Council,http://opendatacommunities.org/id/metropolitan-district-council/walsall ,WC140-263,31.07.2022,CHILDRENS,ACE CARS & MINIBUSES LTD,18/07/2022,"2,033.00",6241-Hire of Vehicle with Driver,TRANSPORT,DIRECT TRANSPORT COSTS,REVENUE
Walsall Council,http://opendatacommunities.org/id/metropolitan-district-council/walsall ,WC140-264,31.07.2022,CHILDRENS,ACE CARS & MINIBUSES LTD,18/07/2022,"2,722.00",6241-Hire of Vehicle with Driver,TRANSPORT,DIRECT TRANSPORT COSTS,REVENUE
Walsall Council,http://opendatacommunities.org/id/metropolitan-district-council/walsall ,WC140-265,31.07.2022,CHILDRENS,ACE CARS & MINIBUSES LTD,18/07/2022,"2,033.00",6241-Hire of Vehicle with Driver,TRANSPORT,DIRECT TRANSPORT COSTS,REVENUE
Walsall Council,http://opendatacommunities.org/id/metropolitan-district-council/walsall ,WC140-266,31.07.2022,CHILDRENS,ACE CARS & MINIBUSES LTD,18/07/2022,"2,242.00",6241-Hire of Vehicle with Driver,TRANSPORT,DIRECT TRANSPORT COSTS,REVENUE
Walsall Council,http://opendatacommunities.org/id/metropolitan-district-council/walsall ,WC140-267,31.07.2022,CHILDRENS,ACE CARS & MINIBUSES LTD,18/07/2022,"2,242.00",6241-Hire of Vehicle with Driver,TRANSPORT,DIRECT TRANSPORT COSTS,REVENUE
Walsall Council,http://opendatacommunities.org/id/metropolitan-district-council/walsall ,WC140-268,31.07.2022,CHILDRENS,ACE CARS & MINIBUSES LTD,18/07/2022,"2,280.00",6241-Hire of Vehicle with Driver,TRANSPORT,DIRECT TRANSPORT COSTS,REVENUE
Walsall Council,http://opendatacommunities.org/id/metropolitan-district-council/walsall ,WC140-269,31.07.2022,CHILDRENS,ACE CARS & MINIBUSES LTD,18/07/2022,"2,959.44",6241-Hire of Vehicle with Driver,TRANSPORT,DIRECT TRANSPORT COSTS,REVENUE
Walsall Council,http://opendatacommunities.org/id/metropolitan-district-council/walsall ,WC140-270,31.07.2022,CHILDRENS,ACE COACHING LIMITED,05/07/2022,"2,432.00",6213-Professional Fees & Services,SUPPLIES & SERVICES,SERVICES,REVENUE
Walsall Council,http://opendatacommunities.org/id/metropolitan-district-council/walsall ,WC140-271,31.07.2022,ADULT SOCIAL CARE,ACEPAY LTD (COTTAGE NUR HOME),05/07/2022,"2,456.24",6541-Nursing,THIRD PARTY PAYMENTS,PRIVATE CONTRACTOR,REVENUE
Walsall Council,http://opendatacommunities.org/id/metropolitan-district-council/walsall ,WC140-272,31.07.2022,ADULT SOCIAL CARE,ACEPAY LTD (COTTAGE NUR HOME),05/07/2022,"2,456.24",6541-Nursing,THIRD PARTY PAYMENTS,PRIVATE CONTRACTOR,REVENUE
Walsall Council,http://opendatacommunities.org/id/metropolitan-district-council/walsall ,WC140-273,31.07.2022,ADULT SOCIAL CARE,ACEPAY LTD (COTTAGE NUR HOME),05/07/2022,"2,656.24",6541-Nursing,THIRD PARTY PAYMENTS,PRIVATE CONTRACTOR,REVENUE
Walsall Council,http://opendatacommunities.org/id/metropolitan-district-council/walsall ,WC140-274,31.07.2022,ADULT SOCIAL CARE,ACEPAY LTD (COTTAGE NUR HOME),05/07/2022,"2,456.24",6541-Nursing,THIRD PARTY PAYMENTS,PRIVATE CONTRACTOR,REVENUE
Walsall Council,http://opendatacommunities.org/id/metropolitan-district-council/walsall ,WC140-275,31.07.2022,ADULT SOCIAL CARE,ACEPAY LTD (COTTAGE NUR HOME),05/07/2022,"2,456.24",6541-Nursing,THIRD PARTY PAYMENTS,PRIVATE CONTRACTOR,REVENUE
Walsall Council,http://opendatacommunities.org/id/metropolitan-district-council/walsall ,WC140-276,31.07.2022,ADULT SOCIAL CARE,ACEPAY LTD (COTTAGE NUR HOME),05/07/2022,"2,456.24",6541-Nursing,THIRD PARTY PAYMENTS,PRIVATE CONTRACTOR,REVENUE
Walsall Council,http://opendatacommunities.org/id/metropolitan-district-council/walsall ,WC140-277,31.07.2022,ADULT SOCIAL CARE,ACEPAY LTD (COTTAGE NUR HOME),05/07/2022,"2,763.80",6541-Nursing EMI,THIRD PARTY PAYMENTS,PRIVATE CONTRACTOR,REVENUE
Walsall Council,http://opendatacommunities.org/id/metropolitan-district-council/walsall ,WC140-278,31.07.2022,ADULT SOCIAL CARE,ACEPAY LTD (COTTAGE NUR HOME),05/07/2022,"2,366.04",6541-Residential EMI,THIRD PARTY PAYMENTS,PRIVATE CONTRACTOR,REVENUE
Walsall Council,http://opendatacommunities.org/id/metropolitan-district-council/walsall ,WC140-279,31.07.2022,ADULT SOCIAL CARE,ACEPAY LTD (COTTAGE NUR HOME),05/07/2022,"2,366.04",6541-Residential EMI,THIRD PARTY PAYMENTS,PRIVATE CONTRACTOR,REVENUE
Walsall Council,http://opendatacommunities.org/id/metropolitan-district-council/walsall ,WC140-280,31.07.2022,ADULT SOCIAL CARE,ACEPAY LTD (COTTAGE NUR HOME),05/07/2022,"2,456.24",6541-Nursing,THIRD PARTY PAYMENTS,PRIVATE CONTRACTOR,REVENUE
Walsall Council,http://opendatacommunities.org/id/metropolitan-district-council/walsall ,WC140-281,31.07.2022,ADULT SOCIAL CARE,ACEPAY LTD (COTTAGE NUR HOME),05/07/2022,"2,456.24",6541-Nursing,THIRD PARTY PAYMENTS,PRIVATE CONTRACTOR,REVENUE
Walsall Council,http://opendatacommunities.org/id/metropolitan-district-council/walsall ,WC140-282,31.07.2022,ADULT SOCIAL CARE,ACEPAY LTD (COTTAGE NUR HOME),05/07/2022,"2,095.40",6541-Residential,THIRD PARTY PAYMENTS,PRIVATE CONTRACTOR,REVENUE
Walsall Council,http://opendatacommunities.org/id/metropolitan-district-council/walsall ,WC140-283,31.07.2022,ADULT SOCIAL CARE,ACEPAY LTD (COTTAGE NUR HOME),05/07/2022,"2,456.24",6541-Nursing,THIRD PARTY PAYMENTS,PRIVATE CONTRACTOR,REVENUE
Walsall Council,http://opendatacommunities.org/id/metropolitan-district-council/walsall ,WC140-284,31.07.2022,ADULT SOCIAL CARE,ACEPAY LTD (COTTAGE NUR HOME),05/07/2022,614.06,6541-Nursing,THIRD PARTY PAYMENTS,PRIVATE CONTRACTOR,REVENUE
Walsall Council,http://opendatacommunities.org/id/metropolitan-district-council/walsall ,WC140-285,31.07.2022,ADULT SOCIAL CARE,ACEPAY LTD (COTTAGE NUR HOME),05/07/2022,"2,366.04",6541-Residential EMI,THIRD PARTY PAYMENTS,PRIVATE CONTRACTOR,REVENUE
Walsall Council,http://opendatacommunities.org/id/metropolitan-district-council/walsall ,WC140-286,31.07.2022,ADULT SOCIAL CARE,ACEPAY LTD (COTTAGE NUR HOME),05/07/2022,"2,095.40",6541-Residential,THIRD PARTY PAYMENTS,PRIVATE CONTRACTOR,REVENUE
Walsall Council,http://opendatacommunities.org/id/metropolitan-district-council/walsall ,WC140-287,31.07.2022,ADULT SOCIAL CARE,ACEPAY LTD (COTTAGE NUR HOME),05/07/2022,"2,763.80",6541-Nursing EMI,THIRD PARTY PAYMENTS,PRIVATE CONTRACTOR,REVENUE
Walsall Council,http://opendatacommunities.org/id/metropolitan-district-council/walsall ,WC140-288,31.07.2022,ADULT SOCIAL CARE,ACEPAY LTD (COTTAGE NUR HOME),05/07/2022,"2,763.80",6541-Nursing EMI,THIRD PARTY PAYMENTS,PRIVATE CONTRACTOR,REVENUE
Walsall Council,http://opendatacommunities.org/id/metropolitan-district-council/walsall ,WC140-289,31.07.2022,ADULT SOCIAL CARE,ACEPAY LTD (COTTAGE NUR HOME),05/07/2022,"2,456.24",6541-Nursing,THIRD PARTY PAYMENTS,PRIVATE CONTRACTOR,REVENUE
Walsall Council,http://opendatacommunities.org/id/metropolitan-district-council/walsall ,WC140-290,31.07.2022,ADULT SOCIAL CARE,ACEPAY LTD (COTTAGE NUR HOME),05/07/2022,"2,456.24",6541-Nursing,THIRD PARTY PAYMENTS,PRIVATE CONTRACTOR,REVENUE
Walsall Council,http://opendatacommunities.org/id/metropolitan-district-council/walsall ,WC140-291,31.07.2022,ADULT SOCIAL CARE,ACHIEVE TOGETHER LIMITED,05/07/2022,"5,424.72",6541-Residential,THIRD PARTY PAYMENTS,PRIVATE CONTRACTOR,REVENUE
Walsall Council,http://opendatacommunities.org/id/metropolitan-district-council/walsall ,WC140-292,31.07.2022,ADULT SOCIAL CARE,ACHIEVE TOGETHER LIMITED,05/07/2022,"3,852.80",6541-Residential,THIRD PARTY PAYMENTS,PRIVATE CONTRACTOR,REVENUE
Walsall Council,http://opendatacommunities.org/id/metropolitan-district-council/walsall ,WC140-293,31.07.2022,ADULT SOCIAL CARE,ACHIEVE TOGETHER LIMITED,25/07/2022,"81,236.10",6541-Residential,THIRD PARTY PAYMENTS,PRIVATE CONTRACTOR,REVENUE
Walsall Council,http://opendatacommunities.org/id/metropolitan-district-council/walsall ,WC140-294,31.07.2022,ADULT SOCIAL CARE,ACHIEVE TOGETHER LIMITED,25/07/2022,"9,756.02",6541-Residential,THIRD PARTY PAYMENTS,PRIVATE CONTRACTOR,REVENUE
Walsall Council,http://opendatacommunities.org/id/metropolitan-district-council/walsall ,WC140-295,31.07.2022,CHILDRENS,ACORN CARE & EDUCATION LTD (SALES),12/07/2022,"8,969.14",6223-External Residential Care-Oth Agency Provision,THIRD PARTY PAYMENTS,PRIVATE CONTRACTOR,REVENUE
Walsall Council,http://opendatacommunities.org/id/metropolitan-district-council/walsall ,WC140-296,31.07.2022,CHILDRENS,ACORN CARE & EDUCATION LTD (SALES),06/07/2022,"6,306.18",1220-Professional Fees & Services,SUPPLIES & SERVICES,SERVICES,REVENUE
Walsall Council,http://opendatacommunities.org/id/metropolitan-district-council/walsall ,WC140-297,31.07.2022,CHILDRENS,ACORN CARE & EDUCATION LTD (SALES),22/07/2022,"9,553.01",1220-Top Up Funding -Grants to Schools,SUPPLIES & SERVICES,GRANTS (EXP) & SUBSCRIPTIONS,REVENUE
Walsall Council,http://opendatacommunities.org/id/metropolitan-district-council/walsall ,WC140-298,31.07.2022,CHILDRENS,ACORN FOSTERING SERVICES LTD,12/07/2022,"3,216.00",6223-Independent Foster Care-Oth Agency Provision,THIRD PARTY PAYMENTS,PRIVATE CONTRACTOR,REVENUE
Walsall Council,http://opendatacommunities.org/id/metropolitan-district-council/walsall ,WC140-299,31.07.2022,CHILDRENS,ACORNS CHILDRENS HOSPICE TRUST,26/07/2022,"2,550.00",6220-Professional Fees & Services,SUPPLIES & SERVICES,SERVICES,REVENUE
Walsall Council,http://opendatacommunities.org/id/metropolitan-district-council/walsall ,WC140-300,31.07.2022,CHILDRENS,ACTI FIT (MIDLANDS) LIMITED,05/07/2022,"12,582.40",6213-Professional Fees & Services,SUPPLIES & SERVICES,SERVICES,REVENUE
Walsall Council,http://opendatacommunities.org/id/metropolitan-district-council/walsall ,WC140-301,31.07.2022,CHILDRENS,ACTIVE CARE SOLUTIONS LTD,12/07/2022,364.29,6223-Independent Foster Care-Oth Agency Provision,THIRD PARTY PAYMENTS,PRIVATE CONTRACTOR,REVENUE
Walsall Council,http://opendatacommunities.org/id/metropolitan-district-council/walsall ,WC140-302,31.07.2022,CHILDRENS,ACTIVE CARE SOLUTIONS LTD,12/07/2022,"3,445.08",6223-Independent Foster Care-Oth Agency Provision,THIRD PARTY PAYMENTS,PRIVATE CONTRACTOR,REVENUE
Walsall Council,http://opendatacommunities.org/id/metropolitan-district-council/walsall ,WC140-303,31.07.2022,CHILDRENS,ACTIVE FUTURE HOLDINGS LTD,05/07/2022,"13,744.00",6213-Professional Fees & Services,SUPPLIES & SERVICES,SERVICES,REVENUE
Walsall Council,http://opendatacommunities.org/id/metropolitan-district-council/walsall ,WC140-304,31.07.2022,"ECONOMY, ENVIRONMENT & COMMUNITIES",ACTIVE GYM LIMITED,01/07/2022,"3,250.00",6413-Materials,SUPPLIES & SERVICES,EQUIPMENT FURNITURE & MATERIALS,REVENUE
Walsall Council,http://opendatacommunities.org/id/metropolitan-district-council/walsall ,WC140-305,31.07.2022,CHILDRENS,ACTIVE GYM LIMITED,05/07/2022,"2,994.72",6213-Professional Fees & Services,SUPPLIES & SERVICES,SERVICES,REVENUE
Walsall Council,http://opendatacommunities.org/id/metropolitan-district-council/walsall ,WC140-306,31.07.2022,ADULT SOCIAL CARE,REDACTED,06/07/2022,715.40,6541-Direct Payment,THIRD PARTY PAYMENTS,PRIVATE CONTRACTOR,REVENUE
Walsall Council,http://opendatacommunities.org/id/metropolitan-district-council/walsall ,WC140-307,31.07.2022,"ECONOMY, ENVIRONMENT & COMMUNITIES",ADI UK LTD,28/07/2022,550.00,6410-Events & Visual Arts,SUPPLIES & SERVICES,SERVICES,REVENUE
Walsall Council,http://opendatacommunities.org/id/metropolitan-district-council/walsall ,WC140-308,31.07.2022,"ECONOMY, ENVIRONMENT & COMMUNITIES",ADI UK LTD,28/07/2022,"3,714.00",6410-Events & Visual Arts,SUPPLIES & SERVICES,SERVICES,REVENUE
Walsall Council,http://opendatacommunities.org/id/metropolitan-district-council/walsall ,WC140-309,31.07.2022,CHILDRENS,REDACTED,27/07/2022,363.24,6223-Residents Orders,TRANSFER PAYMENTS,CHILDREN SOCIAL SERVICES CLIENT,REVENUE
Walsall Council,http://opendatacommunities.org/id/metropolitan-district-council/walsall ,WC140-310,31.07.2022,ADULT SOCIAL CARE,REDACTED,06/07/2022,"2,083.20",6541-Direct Payment,THIRD PARTY PAYMENTS,PRIVATE CONTRACTOR,REVENUE
Walsall Council,http://opendatacommunities.org/id/metropolitan-district-council/walsall ,WC140-311,31.07.2022,ADULT SOCIAL CARE,ADVANCE HEALTH CARE (UK) LTD,12/07/2022,"1,727.04",6554-Professional Services-Priv Contractor & Other Agencies,THIRD PARTY PAYMENTS,PRIVATE CONTRACTOR,REVENUE
Walsall Council,http://opendatacommunities.org/id/metropolitan-district-council/walsall ,WC140-312,31.07.2022,ADULT SOCIAL CARE,ADVANCE HEALTH CARE (UK) LTD,15/07/2022,481.94,6554-Professional Services-Priv Contractor & Other Agencies,THIRD PARTY PAYMENTS,PRIVATE CONTRACTOR,REVENUE
Walsall Council,http://opendatacommunities.org/id/metropolitan-district-council/walsall ,WC140-313,31.07.2022,ADULT SOCIAL CARE,ADVANCE HEALTH CARE (UK) LTD,27/07/2022,516.32,6541-Domiciliary Care,THIRD PARTY PAYMENTS,PRIVATE CONTRACTOR,REVENUE
Walsall Council,http://opendatacommunities.org/id/metropolitan-district-council/walsall ,WC140-314,31.07.2022,ADULT SOCIAL CARE,ADVANCE HEALTH CARE (UK) LTD,27/07/2022,"2,265.04",6541-Domiciliary Care,THIRD PARTY PAYMENTS,PRIVATE CONTRACTOR,REVENUE
Walsall Council,http://opendatacommunities.org/id/metropolitan-district-council/walsall ,WC140-315,31.07.2022,ADULT SOCIAL CARE,ADVANCE HEALTH CARE (UK) LTD,27/07/2022,"2,881.24",6541-Domiciliary Care,THIRD PARTY PAYMENTS,PRIVATE CONTRACTOR,REVENUE
Walsall Council,http://opendatacommunities.org/id/metropolitan-district-council/walsall ,WC140-316,31.07.2022,ADULT SOCIAL CARE,ADVANCE HEALTH CARE (UK) LTD,27/07/2022,"1,042.80",6541-Domiciliary Care,THIRD PARTY PAYMENTS,PRIVATE CONTRACTOR,REVENUE
Walsall Council,http://opendatacommunities.org/id/metropolitan-district-council/walsall ,WC140-317,31.07.2022,ADULT SOCIAL CARE,ADVANCE HEALTH CARE (UK) LTD,27/07/2022,921.76,6541-Domiciliary Care,THIRD PARTY PAYMENTS,PRIVATE CONTRACTOR,REVENUE
Walsall Council,http://opendatacommunities.org/id/metropolitan-district-council/walsall ,WC140-318,31.07.2022,ADULT SOCIAL CARE,ADVANCE HEALTH CARE (UK) LTD,27/07/2022,"1,027.00",6541-Domiciliary Care,THIRD PARTY PAYMENTS,PRIVATE CONTRACTOR,REVENUE
Walsall Council,http://opendatacommunities.org/id/metropolitan-district-council/walsall ,WC140-319,31.07.2022,ADULT SOCIAL CARE,ADVANCE HEALTH CARE (UK) LTD,27/07/2022,774.48,6541-Domiciliary Care,THIRD PARTY PAYMENTS,PRIVATE CONTRACTOR,REVENUE
Walsall Council,http://opendatacommunities.org/id/metropolitan-district-council/walsall ,WC140-320,31.07.2022,ADULT SOCIAL CARE,ADVANCE HEALTH CARE (UK) LTD,27/07/2022,737.52,6541-Domiciliary Care,THIRD PARTY PAYMENTS,PRIVATE CONTRACTOR,REVENUE
Walsall Council,http://opendatacommunities.org/id/metropolitan-district-council/walsall ,WC140-321,31.07.2022,ADULT SOCIAL CARE,ADVANCE HEALTH CARE (UK) LTD,27/07/2022,"1,843.80",6541-Domiciliary Care,THIRD PARTY PAYMENTS,PRIVATE CONTRACTOR,REVENUE
Walsall Council,http://opendatacommunities.org/id/metropolitan-district-council/walsall ,WC140-322,31.07.2022,ADULT SOCIAL CARE,ADVANCE HEALTH CARE (UK) LTD,27/07/2022,837.68,6541-Domiciliary Care,THIRD PARTY PAYMENTS,PRIVATE CONTRACTOR,REVENUE
Walsall Council,http://opendatacommunities.org/id/metropolitan-district-council/walsall ,WC140-323,31.07.2022,ADULT SOCIAL CARE,ADVANCE HEALTH CARE (UK) LTD,27/07/2022,479.36,6541-Domiciliary Care,THIRD PARTY PAYMENTS,PRIVATE CONTRACTOR,REVENUE
Walsall Council,http://opendatacommunities.org/id/metropolitan-district-council/walsall ,WC140-324,31.07.2022,ADULT SOCIAL CARE,ADVANCE HEALTH CARE (UK) LTD,27/07/2022,811.16,6541-Domiciliary Care,THIRD PARTY PAYMENTS,PRIVATE CONTRACTOR,REVENUE
Walsall Council,http://opendatacommunities.org/id/metropolitan-district-council/walsall ,WC140-325,31.07.2022,ADULT SOCIAL CARE,ADVANCE HEALTH CARE (UK) LTD,27/07/2022,690.12,6541-Domiciliary Care,THIRD PARTY PAYMENTS,PRIVATE CONTRACTOR,REVENUE
Walsall Council,http://opendatacommunities.org/id/metropolitan-district-council/walsall ,WC140-326,31.07.2022,ADULT SOCIAL CARE,ADVANCE HEALTH CARE (UK) LTD,05/07/2022,845.30,6541-Domiciliary Care,THIRD PARTY PAYMENTS,PRIVATE CONTRACTOR,REVENUE
Walsall Council,http://opendatacommunities.org/id/metropolitan-district-council/walsall ,WC140-327,31.07.2022,ADULT SOCIAL CARE,ADVANCE HEALTH CARE (UK) LTD,05/07/2022,697.88,6541-Domiciliary Care,THIRD PARTY PAYMENTS,PRIVATE CONTRACTOR,REVENUE
Walsall Council,http://opendatacommunities.org/id/metropolitan-district-council/walsall ,WC140-328,31.07.2022,ADULT SOCIAL CARE,ADVANCE HEALTH CARE (UK) LTD,05/07/2022,497.70,6541-Domiciliary Care,THIRD PARTY PAYMENTS,PRIVATE CONTRACTOR,REVENUE
Walsall Council,http://opendatacommunities.org/id/metropolitan-district-council/walsall ,WC140-329,31.07.2022,ADULT SOCIAL CARE,ADVANCE HEALTH CARE (UK) LTD,05/07/2022,"-9,035.48",6541-Domiciliary Care,THIRD PARTY PAYMENTS,PRIVATE CONTRACTOR,REVENUE
Walsall Council,http://opendatacommunities.org/id/metropolitan-district-council/walsall ,WC140-330,31.07.2022,ADULT SOCIAL CARE,ADVANCE HEALTH CARE (UK) LTD,05/07/2022,331.94,6541-Domiciliary Care,THIRD PARTY PAYMENTS,PRIVATE CONTRACTOR,REVENUE
Walsall Council,http://opendatacommunities.org/id/metropolitan-district-council/walsall ,WC140-331,31.07.2022,ADULT SOCIAL CARE,ADVANCE HEALTH CARE (UK) LTD,05/07/2022,576.70,6541-Domiciliary Care,THIRD PARTY PAYMENTS,PRIVATE CONTRACTOR,REVENUE
Walsall Council,http://opendatacommunities.org/id/metropolitan-district-council/walsall ,WC140-332,31.07.2022,ADULT SOCIAL CARE,ADVANCE HEALTH CARE (UK) LTD,05/07/2022,497.70,6541-Domiciliary Care,THIRD PARTY PAYMENTS,PRIVATE CONTRACTOR,REVENUE
Walsall Council,http://opendatacommunities.org/id/metropolitan-district-council/walsall ,WC140-333,31.07.2022,ADULT SOCIAL CARE,ADVANCE HEALTH CARE (UK) LTD,05/07/2022,497.70,6541-Domiciliary Care,THIRD PARTY PAYMENTS,PRIVATE CONTRACTOR,REVENUE
Walsall Council,http://opendatacommunities.org/id/metropolitan-district-council/walsall ,WC140-334,31.07.2022,ADULT SOCIAL CARE,ADVANCE HEALTH CARE (UK) LTD,05/07/2022,368.76,6541-Domiciliary Care,THIRD PARTY PAYMENTS,PRIVATE CONTRACTOR,REVENUE
Walsall Council,http://opendatacommunities.org/id/metropolitan-district-council/walsall ,WC140-335,31.07.2022,ADULT SOCIAL CARE,ADVANCE HEALTH CARE (UK) LTD,05/07/2022,387.10,6541-Domiciliary Care,THIRD PARTY PAYMENTS,PRIVATE CONTRACTOR,REVENUE
Walsall Council,http://opendatacommunities.org/id/metropolitan-district-council/walsall ,WC140-336,31.07.2022,ADULT SOCIAL CARE,ADVANCE HEALTH CARE (UK) LTD,05/07/2022,497.70,6541-Domiciliary Care,THIRD PARTY PAYMENTS,PRIVATE CONTRACTOR,REVENUE
Walsall Council,http://opendatacommunities.org/id/metropolitan-district-council/walsall ,WC140-337,31.07.2022,ADULT SOCIAL CARE,ADVANCE HEALTH CARE (UK) LTD,05/07/2022,331.80,6541-Domiciliary Care,THIRD PARTY PAYMENTS,PRIVATE CONTRACTOR,REVENUE
Walsall Council,http://opendatacommunities.org/id/metropolitan-district-council/walsall ,WC140-338,31.07.2022,ADULT SOCIAL CARE,ADVANCE HEALTH CARE (UK) LTD,05/07/2022,331.94,6541-Domiciliary Care,THIRD PARTY PAYMENTS,PRIVATE CONTRACTOR,REVENUE
Walsall Council,http://opendatacommunities.org/id/metropolitan-district-council/walsall ,WC140-339,31.07.2022,ADULT SOCIAL CARE,ADVANCE HEALTH CARE (UK) LTD,05/07/2022,497.70,6541-Domiciliary Care,THIRD PARTY PAYMENTS,PRIVATE CONTRACTOR,REVENUE
Walsall Council,http://opendatacommunities.org/id/metropolitan-district-council/walsall ,WC140-340,31.07.2022,ADULT SOCIAL CARE,ADVANCE HEALTH CARE (UK) LTD,05/07/2022,497.70,6541-Domiciliary Care,THIRD PARTY PAYMENTS,PRIVATE CONTRACTOR,REVENUE
Walsall Council,http://opendatacommunities.org/id/metropolitan-district-council/walsall ,WC140-341,31.07.2022,ADULT SOCIAL CARE,ADVANCE HEALTH CARE (UK) LTD,05/07/2022,497.70,6541-Domiciliary Care,THIRD PARTY PAYMENTS,PRIVATE CONTRACTOR,REVENUE
Walsall Council,http://opendatacommunities.org/id/metropolitan-district-council/walsall ,WC140-342,31.07.2022,ADULT SOCIAL CARE,ADVANCE HEALTH CARE (UK) LTD,05/07/2022,387.10,6541-Domiciliary Care,THIRD PARTY PAYMENTS,PRIVATE CONTRACTOR,REVENUE
Walsall Council,http://opendatacommunities.org/id/metropolitan-district-council/walsall ,WC140-343,31.07.2022,ADULT SOCIAL CARE,ADVANCE HEALTH CARE (UK) LTD,05/07/2022,"7,108.41",6541-Domiciliary Care,THIRD PARTY PAYMENTS,PRIVATE CONTRACTOR,REVENUE
Walsall Council,http://opendatacommunities.org/id/metropolitan-district-council/walsall ,WC140-344,31.07.2022,ADULT SOCIAL CARE,ADVANCE HEALTH CARE (UK) LTD,05/07/2022,497.70,6541-Domiciliary Care,THIRD PARTY PAYMENTS,PRIVATE CONTRACTOR,REVENUE
Walsall Council,http://opendatacommunities.org/id/metropolitan-district-council/walsall ,WC140-345,31.07.2022,ADULT SOCIAL CARE,ADVANCE HEALTH CARE (UK) LTD,05/07/2022,-263.36,6541-Domiciliary Care,THIRD PARTY PAYMENTS,PRIVATE CONTRACTOR,REVENUE
Walsall Council,http://opendatacommunities.org/id/metropolitan-district-council/walsall ,WC140-346,31.07.2022,ADULT SOCIAL CARE,ADVANCE HEALTH CARE (UK) LTD,05/07/2022,884.80,6541-Domiciliary Care,THIRD PARTY PAYMENTS,PRIVATE CONTRACTOR,REVENUE
Walsall Council,http://opendatacommunities.org/id/metropolitan-district-council/walsall ,WC140-347,31.07.2022,ADULT SOCIAL CARE,ADVANCE HEALTH CARE (UK) LTD,05/07/2022,497.70,6541-Domiciliary Care,THIRD PARTY PAYMENTS,PRIVATE CONTRACTOR,REVENUE
Walsall Council,http://opendatacommunities.org/id/metropolitan-district-council/walsall ,WC140-348,31.07.2022,ADULT SOCIAL CARE,ADVANCE HEALTH CARE (UK) LTD,05/07/2022,497.70,6541-Domiciliary Care,THIRD PARTY PAYMENTS,PRIVATE CONTRACTOR,REVENUE
Walsall Council,http://opendatacommunities.org/id/metropolitan-district-council/walsall ,WC140-349,31.07.2022,ADULT SOCIAL CARE,ADVANCE HEALTH CARE (UK) LTD,05/07/2022,497.70,6541-Domiciliary Care,THIRD PARTY PAYMENTS,PRIVATE CONTRACTOR,REVENUE
Walsall Council,http://opendatacommunities.org/id/metropolitan-district-council/walsall ,WC140-350,31.07.2022,ADULT SOCIAL CARE,ADVANCE HEALTH CARE (UK) LTD,05/07/2022,497.70,6541-Domiciliary Care,THIRD PARTY PAYMENTS,PRIVATE CONTRACTOR,REVENUE
Walsall Council,http://opendatacommunities.org/id/metropolitan-district-council/walsall ,WC140-351,31.07.2022,ADULT SOCIAL CARE,ADVANCE HEALTH CARE (UK) LTD,05/07/2022,497.70,6541-Domiciliary Care,THIRD PARTY PAYMENTS,PRIVATE CONTRACTOR,REVENUE
Walsall Council,http://opendatacommunities.org/id/metropolitan-district-council/walsall ,WC140-352,31.07.2022,ADULT SOCIAL CARE,ADVANCE HEALTH CARE (UK) LTD,05/07/2022,553.00,6541-Domiciliary Care,THIRD PARTY PAYMENTS,PRIVATE CONTRACTOR,REVENUE
Walsall Council,http://opendatacommunities.org/id/metropolitan-district-council/walsall ,WC140-353,31.07.2022,ADULT SOCIAL CARE,ADVANCE HEALTH CARE (UK) LTD,05/07/2022,553.00,6541-Domiciliary Care,THIRD PARTY PAYMENTS,PRIVATE CONTRACTOR,REVENUE
Walsall Council,http://opendatacommunities.org/id/metropolitan-district-council/walsall ,WC140-354,31.07.2022,ADULT SOCIAL CARE,ADVANCE HEALTH CARE (UK) LTD,05/07/2022,513.50,6541-Domiciliary Care,THIRD PARTY PAYMENTS,PRIVATE CONTRACTOR,REVENUE
Walsall Council,http://opendatacommunities.org/id/metropolitan-district-council/walsall ,WC140-355,31.07.2022,ADULT SOCIAL CARE,ADVANCE HEALTH CARE (UK) LTD,05/07/2022,497.70,6541-Domiciliary Care,THIRD PARTY PAYMENTS,PRIVATE CONTRACTOR,REVENUE
Walsall Council,http://opendatacommunities.org/id/metropolitan-district-council/walsall ,WC140-356,31.07.2022,ADULT SOCIAL CARE,ADVANCE HEALTH CARE (UK) LTD,05/07/2022,331.80,6541-Domiciliary Care,THIRD PARTY PAYMENTS,PRIVATE CONTRACTOR,REVENUE
Walsall Council,http://opendatacommunities.org/id/metropolitan-district-council/walsall ,WC140-357,31.07.2022,ADULT SOCIAL CARE,ADVANCE HEALTH CARE (UK) LTD,05/07/2022,497.70,6541-Domiciliary Care,THIRD PARTY PAYMENTS,PRIVATE CONTRACTOR,REVENUE
Walsall Council,http://opendatacommunities.org/id/metropolitan-district-council/walsall ,WC140-358,31.07.2022,ADULT SOCIAL CARE,ADVANCE HEALTH CARE (UK) LTD,05/07/2022,-497.70,6541-Domiciliary Care,THIRD PARTY PAYMENTS,PRIVATE CONTRACTOR,REVENUE
Walsall Council,http://opendatacommunities.org/id/metropolitan-district-council/walsall ,WC140-359,31.07.2022,ADULT SOCIAL CARE,ADVANCE HEALTH CARE (UK) LTD,05/07/2022,553.00,6541-Domiciliary Care,THIRD PARTY PAYMENTS,PRIVATE CONTRACTOR,REVENUE
Walsall Council,http://opendatacommunities.org/id/metropolitan-district-council/walsall ,WC140-360,31.07.2022,ADULT SOCIAL CARE,ADVANCE HEALTH CARE (UK) LTD,05/07/2022,490.40,6541-Domiciliary Care,THIRD PARTY PAYMENTS,PRIVATE CONTRACTOR,REVENUE
Walsall Council,http://opendatacommunities.org/id/metropolitan-district-council/walsall ,WC140-361,31.07.2022,ADULT SOCIAL CARE,ADVANCE HEALTH CARE (UK) LTD,05/07/2022,576.70,6541-Domiciliary Care,THIRD PARTY PAYMENTS,PRIVATE CONTRACTOR,REVENUE
Walsall Council,http://opendatacommunities.org/id/metropolitan-district-council/walsall ,WC140-362,31.07.2022,ADULT SOCIAL CARE,ADVANCE HEALTH CARE (UK) LTD,05/07/2022,497.70,6541-Domiciliary Care,THIRD PARTY PAYMENTS,PRIVATE CONTRACTOR,REVENUE
Walsall Council,http://opendatacommunities.org/id/metropolitan-district-council/walsall ,WC140-363,31.07.2022,ADULT SOCIAL CARE,ADVANCE HEALTH CARE (UK) LTD,05/07/2022,497.70,6541-Domiciliary Care,THIRD PARTY PAYMENTS,PRIVATE CONTRACTOR,REVENUE
Walsall Council,http://opendatacommunities.org/id/metropolitan-district-council/walsall ,WC140-364,31.07.2022,ADULT SOCIAL CARE,ADVANCE HEALTH CARE (UK) LTD,05/07/2022,368.76,6541-Domiciliary Care,THIRD PARTY PAYMENTS,PRIVATE CONTRACTOR,REVENUE
Walsall Council,http://opendatacommunities.org/id/metropolitan-district-council/walsall ,WC140-365,31.07.2022,ADULT SOCIAL CARE,ADVANCE HEALTH CARE (UK) LTD,05/07/2022,845.30,6541-Domiciliary Care,THIRD PARTY PAYMENTS,PRIVATE CONTRACTOR,REVENUE
Walsall Council,http://opendatacommunities.org/id/metropolitan-district-council/walsall ,WC140-366,31.07.2022,ADULT SOCIAL CARE,ADVANCE HEALTH CARE (UK) LTD,05/07/2022,603.08,6541-Domiciliary Care,THIRD PARTY PAYMENTS,PRIVATE CONTRACTOR,REVENUE
Walsall Council,http://opendatacommunities.org/id/metropolitan-district-council/walsall ,WC140-367,31.07.2022,ADULT SOCIAL CARE,ADVANCE HEALTH CARE (UK) LTD,05/07/2022,497.70,6541-Domiciliary Care,THIRD PARTY PAYMENTS,PRIVATE CONTRACTOR,REVENUE
Walsall Council,http://opendatacommunities.org/id/metropolitan-district-council/walsall ,WC140-368,31.07.2022,ADULT SOCIAL CARE,ADVANCE HEALTH CARE (UK) LTD,05/07/2022,331.94,6541-Domiciliary Care,THIRD PARTY PAYMENTS,PRIVATE CONTRACTOR,REVENUE
Walsall Council,http://opendatacommunities.org/id/metropolitan-district-council/walsall ,WC140-369,31.07.2022,ADULT SOCIAL CARE,ADVANCE HEALTH CARE (UK) LTD,05/07/2022,884.80,6541-Domiciliary Care,THIRD PARTY PAYMENTS,PRIVATE CONTRACTOR,REVENUE
Walsall Council,http://opendatacommunities.org/id/metropolitan-district-council/walsall ,WC140-370,31.07.2022,ADULT SOCIAL CARE,ADVANCE HEALTH CARE (UK) LTD,05/07/2022,497.70,6541-Domiciliary Care,THIRD PARTY PAYMENTS,PRIVATE CONTRACTOR,REVENUE
Walsall Council,http://opendatacommunities.org/id/metropolitan-district-council/walsall ,WC140-371,31.07.2022,ADULT SOCIAL CARE,ADVANCE HEALTH CARE (UK) LTD,05/07/2022,497.70,6541-Domiciliary Care,THIRD PARTY PAYMENTS,PRIVATE CONTRACTOR,REVENUE
Walsall Council,http://opendatacommunities.org/id/metropolitan-district-council/walsall ,WC140-372,31.07.2022,ADULT SOCIAL CARE,ADVANCE HEALTH CARE (UK) LTD,05/07/2022,553.00,6541-Domiciliary Care,THIRD PARTY PAYMENTS,PRIVATE CONTRACTOR,REVENUE
Walsall Council,http://opendatacommunities.org/id/metropolitan-district-council/walsall ,WC140-373,31.07.2022,ADULT SOCIAL CARE,ADVANCE HEALTH CARE (UK) LTD,05/07/2022,331.80,6541-Domiciliary Care,THIRD PARTY PAYMENTS,PRIVATE CONTRACTOR,REVENUE
Walsall Council,http://opendatacommunities.org/id/metropolitan-district-council/walsall ,WC140-374,31.07.2022,ADULT SOCIAL CARE,ADVANCE HEALTH CARE (UK) LTD,05/07/2022,331.94,6541-Domiciliary Care,THIRD PARTY PAYMENTS,PRIVATE CONTRACTOR,REVENUE
Walsall Council,http://opendatacommunities.org/id/metropolitan-district-council/walsall ,WC140-375,31.07.2022,ADULT SOCIAL CARE,ADVANCE HEALTH CARE (UK) LTD,05/07/2022,497.70,6541-Domiciliary Care,THIRD PARTY PAYMENTS,PRIVATE CONTRACTOR,REVENUE
Walsall Council,http://opendatacommunities.org/id/metropolitan-district-council/walsall ,WC140-376,31.07.2022,ADULT SOCIAL CARE,ADVANCE HEALTH CARE (UK) LTD,05/07/2022,497.70,6541-Domiciliary Care,THIRD PARTY PAYMENTS,PRIVATE CONTRACTOR,REVENUE
Walsall Council,http://opendatacommunities.org/id/metropolitan-district-council/walsall ,WC140-377,31.07.2022,ADULT SOCIAL CARE,ADVANCE HEALTH CARE (UK) LTD,05/07/2022,497.70,6541-Domiciliary Care,THIRD PARTY PAYMENTS,PRIVATE CONTRACTOR,REVENUE
Walsall Council,http://opendatacommunities.org/id/metropolitan-district-council/walsall ,WC140-378,31.07.2022,ADULT SOCIAL CARE,ADVANCE HEALTH CARE (UK) LTD,05/07/2022,497.70,6541-Domiciliary Care,THIRD PARTY PAYMENTS,PRIVATE CONTRACTOR,REVENUE
Walsall Council,http://opendatacommunities.org/id/metropolitan-district-council/walsall ,WC140-379,31.07.2022,ADULT SOCIAL CARE,ADVANCE HEALTH CARE (UK) LTD,05/07/2022,553.00,6541-Domiciliary Care,THIRD PARTY PAYMENTS,PRIVATE CONTRACTOR,REVENUE
Walsall Council,http://opendatacommunities.org/id/metropolitan-district-council/walsall ,WC140-380,31.07.2022,ADULT SOCIAL CARE,ADVANCE HEALTH CARE (UK) LTD,05/07/2022,513.50,6541-Domiciliary Care,THIRD PARTY PAYMENTS,PRIVATE CONTRACTOR,REVENUE
Walsall Council,http://opendatacommunities.org/id/metropolitan-district-council/walsall ,WC140-381,31.07.2022,ADULT SOCIAL CARE,ADVANCE HEALTH CARE (UK) LTD,05/07/2022,497.70,6541-Domiciliary Care,THIRD PARTY PAYMENTS,PRIVATE CONTRACTOR,REVENUE
Walsall Council,http://opendatacommunities.org/id/metropolitan-district-council/walsall ,WC140-382,31.07.2022,ADULT SOCIAL CARE,ADVANCE HEALTH CARE (UK) LTD,05/07/2022,553.00,6541-Domiciliary Care,THIRD PARTY PAYMENTS,PRIVATE CONTRACTOR,REVENUE
Walsall Council,http://opendatacommunities.org/id/metropolitan-district-council/walsall ,WC140-383,31.07.2022,ADULT SOCIAL CARE,ADVANCE HEALTH CARE (UK) LTD,05/07/2022,490.40,6541-Domiciliary Care,THIRD PARTY PAYMENTS,PRIVATE CONTRACTOR,REVENUE
Walsall Council,http://opendatacommunities.org/id/metropolitan-district-council/walsall ,WC140-384,31.07.2022,ADULT SOCIAL CARE,ADVANCE HEALTH CARE (UK) LTD,05/07/2022,497.70,6541-Domiciliary Care,THIRD PARTY PAYMENTS,PRIVATE CONTRACTOR,REVENUE
Walsall Council,http://opendatacommunities.org/id/metropolitan-district-council/walsall ,WC140-385,31.07.2022,ADULT SOCIAL CARE,ADVANCE HEALTH CARE (UK) LTD,05/07/2022,387.10,6541-Domiciliary Care,THIRD PARTY PAYMENTS,PRIVATE CONTRACTOR,REVENUE
Walsall Council,http://opendatacommunities.org/id/metropolitan-district-council/walsall ,WC140-386,31.07.2022,ADULT SOCIAL CARE,ADVANCE HEALTH CARE (UK) LTD,05/07/2022,387.10,6541-Domiciliary Care,THIRD PARTY PAYMENTS,PRIVATE CONTRACTOR,REVENUE
Walsall Council,http://opendatacommunities.org/id/metropolitan-district-council/walsall ,WC140-387,31.07.2022,ADULT SOCIAL CARE,ADVANCE HEALTH CARE (UK) LTD,05/07/2022,331.80,6541-Domiciliary Care,THIRD PARTY PAYMENTS,PRIVATE CONTRACTOR,REVENUE
Walsall Council,http://opendatacommunities.org/id/metropolitan-district-council/walsall ,WC140-388,31.07.2022,ADULT SOCIAL CARE,ADVANCE HEALTH CARE (UK) LTD,05/07/2022,497.70,6541-Domiciliary Care,THIRD PARTY PAYMENTS,PRIVATE CONTRACTOR,REVENUE
Walsall Council,http://opendatacommunities.org/id/metropolitan-district-council/walsall ,WC140-389,31.07.2022,ADULT SOCIAL CARE,ADVANCE HEALTH CARE (UK) LTD,05/07/2022,497.70,6541-Domiciliary Care,THIRD PARTY PAYMENTS,PRIVATE CONTRACTOR,REVENUE
Walsall Council,http://opendatacommunities.org/id/metropolitan-district-council/walsall ,WC140-390,31.07.2022,ADULT SOCIAL CARE,ADVANCE HEALTH CARE (UK) LTD,05/07/2022,497.70,6541-Domiciliary Care,THIRD PARTY PAYMENTS,PRIVATE CONTRACTOR,REVENUE
Walsall Council,http://opendatacommunities.org/id/metropolitan-district-council/walsall ,WC140-391,31.07.2022,ADULT SOCIAL CARE,ADVANCE HEALTH CARE (UK) LTD,05/07/2022,497.70,6541-Domiciliary Care,THIRD PARTY PAYMENTS,PRIVATE CONTRACTOR,REVENUE
Walsall Council,http://opendatacommunities.org/id/metropolitan-district-council/walsall ,WC140-392,31.07.2022,ADULT SOCIAL CARE,ADVANCE HEALTH CARE (UK) LTD,05/07/2022,331.80,6541-Domiciliary Care,THIRD PARTY PAYMENTS,PRIVATE CONTRACTOR,REVENUE
Walsall Council,http://opendatacommunities.org/id/metropolitan-district-council/walsall ,WC140-393,31.07.2022,ADULT SOCIAL CARE,ADVANCE HEALTH CARE (UK) LTD,05/07/2022,497.70,6541-Domiciliary Care,THIRD PARTY PAYMENTS,PRIVATE CONTRACTOR,REVENUE
Walsall Council,http://opendatacommunities.org/id/metropolitan-district-council/walsall ,WC140-394,31.07.2022,ADULT SOCIAL CARE,ADVANCE HEALTH CARE (UK) LTD,18/07/2022,331.94,6541-Domiciliary Care,THIRD PARTY PAYMENTS,PRIVATE CONTRACTOR,REVENUE
Walsall Council,http://opendatacommunities.org/id/metropolitan-district-council/walsall ,WC140-395,31.07.2022,ADULT SOCIAL CARE,ADVANCE HEALTH CARE (UK) LTD,18/07/2022,576.70,6541-Domiciliary Care,THIRD PARTY PAYMENTS,PRIVATE CONTRACTOR,REVENUE
Walsall Council,http://opendatacommunities.org/id/metropolitan-district-council/walsall ,WC140-396,31.07.2022,ADULT SOCIAL CARE,ADVANCE HEALTH CARE (UK) LTD,18/07/2022,497.70,6541-Domiciliary Care,THIRD PARTY PAYMENTS,PRIVATE CONTRACTOR,REVENUE
Walsall Council,http://opendatacommunities.org/id/metropolitan-district-council/walsall ,WC140-397,31.07.2022,ADULT SOCIAL CARE,ADVANCE HEALTH CARE (UK) LTD,18/07/2022,497.70,6541-Domiciliary Care,THIRD PARTY PAYMENTS,PRIVATE CONTRACTOR,REVENUE
Walsall Council,http://opendatacommunities.org/id/metropolitan-district-council/walsall ,WC140-398,31.07.2022,ADULT SOCIAL CARE,ADVANCE HEALTH CARE (UK) LTD,18/07/2022,368.76,6541-Domiciliary Care,THIRD PARTY PAYMENTS,PRIVATE CONTRACTOR,REVENUE
Walsall Council,http://opendatacommunities.org/id/metropolitan-district-council/walsall ,WC140-399,31.07.2022,ADULT SOCIAL CARE,ADVANCE HEALTH CARE (UK) LTD,18/07/2022,845.30,6541-Domiciliary Care,THIRD PARTY PAYMENTS,PRIVATE CONTRACTOR,REVENUE
Walsall Council,http://opendatacommunities.org/id/metropolitan-district-council/walsall ,WC140-400,31.07.2022,ADULT SOCIAL CARE,ADVANCE HEALTH CARE (UK) LTD,18/07/2022,531.98,6541-Domiciliary Care,THIRD PARTY PAYMENTS,PRIVATE CONTRACTOR,REVENUE
Walsall Council,http://opendatacommunities.org/id/metropolitan-district-council/walsall ,WC140-401,31.07.2022,ADULT SOCIAL CARE,ADVANCE HEALTH CARE (UK) LTD,18/07/2022,497.70,6541-Domiciliary Care,THIRD PARTY PAYMENTS,PRIVATE CONTRACTOR,REVENUE
Walsall Council,http://opendatacommunities.org/id/metropolitan-district-council/walsall ,WC140-402,31.07.2022,ADULT SOCIAL CARE,ADVANCE HEALTH CARE (UK) LTD,18/07/2022,497.70,6541-Domiciliary Care,THIRD PARTY PAYMENTS,PRIVATE CONTRACTOR,REVENUE
Walsall Council,http://opendatacommunities.org/id/metropolitan-district-council/walsall ,WC140-403,31.07.2022,ADULT SOCIAL CARE,ADVANCE HEALTH CARE (UK) LTD,18/07/2022,497.70,6541-Domiciliary Care,THIRD PARTY PAYMENTS,PRIVATE CONTRACTOR,REVENUE
Walsall Council,http://opendatacommunities.org/id/metropolitan-district-council/walsall ,WC140-404,31.07.2022,ADULT SOCIAL CARE,ADVANCE HEALTH CARE (UK) LTD,18/07/2022,553.00,6541-Domiciliary Care,THIRD PARTY PAYMENTS,PRIVATE CONTRACTOR,REVENUE
Walsall Council,http://opendatacommunities.org/id/metropolitan-district-council/walsall ,WC140-405,31.07.2022,ADULT SOCIAL CARE,ADVANCE HEALTH CARE (UK) LTD,18/07/2022,276.50,6541-Domiciliary Care,THIRD PARTY PAYMENTS,PRIVATE CONTRACTOR,REVENUE
Walsall Council,http://opendatacommunities.org/id/metropolitan-district-council/walsall ,WC140-406,31.07.2022,ADULT SOCIAL CARE,ADVANCE HEALTH CARE (UK) LTD,18/07/2022,497.70,6541-Domiciliary Care,THIRD PARTY PAYMENTS,PRIVATE CONTRACTOR,REVENUE
Walsall Council,http://opendatacommunities.org/id/metropolitan-district-council/walsall ,WC140-407,31.07.2022,ADULT SOCIAL CARE,ADVANCE HEALTH CARE (UK) LTD,18/07/2022,-316.00,6541-Domiciliary Care,THIRD PARTY PAYMENTS,PRIVATE CONTRACTOR,REVENUE
Walsall Council,http://opendatacommunities.org/id/metropolitan-district-council/walsall ,WC140-408,31.07.2022,ADULT SOCIAL CARE,ADVANCE HEALTH CARE (UK) LTD,18/07/2022,490.40,6541-Domiciliary Care,THIRD PARTY PAYMENTS,PRIVATE CONTRACTOR,REVENUE
Walsall Council,http://opendatacommunities.org/id/metropolitan-district-council/walsall ,WC140-409,31.07.2022,ADULT SOCIAL CARE,ADVANCE HEALTH CARE (UK) LTD,18/07/2022,331.80,6541-Domiciliary Care,THIRD PARTY PAYMENTS,PRIVATE CONTRACTOR,REVENUE
Walsall Council,http://opendatacommunities.org/id/metropolitan-district-council/walsall ,WC140-410,31.07.2022,ADULT SOCIAL CARE,ADVANCE HEALTH CARE (UK) LTD,18/07/2022,331.94,6541-Domiciliary Care,THIRD PARTY PAYMENTS,PRIVATE CONTRACTOR,REVENUE
Walsall Council,http://opendatacommunities.org/id/metropolitan-district-council/walsall ,WC140-411,31.07.2022,ADULT SOCIAL CARE,ADVANCE HEALTH CARE (UK) LTD,18/07/2022,497.70,6541-Domiciliary Care,THIRD PARTY PAYMENTS,PRIVATE CONTRACTOR,REVENUE
Walsall Council,http://opendatacommunities.org/id/metropolitan-district-council/walsall ,WC140-412,31.07.2022,ADULT SOCIAL CARE,ADVANCE HEALTH CARE (UK) LTD,18/07/2022,497.70,6541-Domiciliary Care,THIRD PARTY PAYMENTS,PRIVATE CONTRACTOR,REVENUE
Walsall Council,http://opendatacommunities.org/id/metropolitan-district-council/walsall ,WC140-413,31.07.2022,ADULT SOCIAL CARE,ADVANCE HEALTH CARE (UK) LTD,18/07/2022,387.10,6541-Domiciliary Care,THIRD PARTY PAYMENTS,PRIVATE CONTRACTOR,REVENUE
Walsall Council,http://opendatacommunities.org/id/metropolitan-district-council/walsall ,WC140-414,31.07.2022,ADULT SOCIAL CARE,ADVANCE HEALTH CARE (UK) LTD,18/07/2022,331.80,6541-Domiciliary Care,THIRD PARTY PAYMENTS,PRIVATE CONTRACTOR,REVENUE
Walsall Council,http://opendatacommunities.org/id/metropolitan-district-council/walsall ,WC140-415,31.07.2022,ADULT SOCIAL CARE,ADVANCE HEALTH CARE (UK) LTD,18/07/2022,497.70,6541-Domiciliary Care,THIRD PARTY PAYMENTS,PRIVATE CONTRACTOR,REVENUE
Walsall Council,http://opendatacommunities.org/id/metropolitan-district-council/walsall ,WC140-416,31.07.2022,ADULT SOCIAL CARE,ADVANCE HEALTH CARE (UK) LTD,18/07/2022,497.70,6541-Domiciliary Care,THIRD PARTY PAYMENTS,PRIVATE CONTRACTOR,REVENUE
Walsall Council,http://opendatacommunities.org/id/metropolitan-district-council/walsall ,WC140-417,31.07.2022,ADULT SOCIAL CARE,ADVANCE HEALTH CARE (UK) LTD,18/07/2022,497.70,6541-Domiciliary Care,THIRD PARTY PAYMENTS,PRIVATE CONTRACTOR,REVENUE
Walsall Council,http://opendatacommunities.org/id/metropolitan-district-council/walsall ,WC140-418,31.07.2022,ADULT SOCIAL CARE,ADVANCE HEALTH CARE (UK) LTD,18/07/2022,458.20,6541-Domiciliary Care,THIRD PARTY PAYMENTS,PRIVATE CONTRACTOR,REVENUE
Walsall Council,http://opendatacommunities.org/id/metropolitan-district-council/walsall ,WC140-419,31.07.2022,ADULT SOCIAL CARE,ADVANCE HEALTH CARE (UK) LTD,18/07/2022,387.10,6541-Domiciliary Care,THIRD PARTY PAYMENTS,PRIVATE CONTRACTOR,REVENUE
Walsall Council,http://opendatacommunities.org/id/metropolitan-district-council/walsall ,WC140-420,31.07.2022,ADULT SOCIAL CARE,ADVANCE HEALTH CARE (UK) LTD,18/07/2022,884.80,6541-Domiciliary Care,THIRD PARTY PAYMENTS,PRIVATE CONTRACTOR,REVENUE
Walsall Council,http://opendatacommunities.org/id/metropolitan-district-council/walsall ,WC140-421,31.07.2022,ADULT SOCIAL CARE,ADVANCE HEALTH CARE (UK) LTD,18/07/2022,497.70,6541-Domiciliary Care,THIRD PARTY PAYMENTS,PRIVATE CONTRACTOR,REVENUE
Walsall Council,http://opendatacommunities.org/id/metropolitan-district-council/walsall ,WC140-422,31.07.2022,ADULT SOCIAL CARE,ADVANCE HEALTH CARE (UK) LTD,18/07/2022,497.70,6541-Domiciliary Care,THIRD PARTY PAYMENTS,PRIVATE CONTRACTOR,REVENUE
Walsall Council,http://opendatacommunities.org/id/metropolitan-district-council/walsall ,WC140-423,31.07.2022,ADULT SOCIAL CARE,ADVANCE HEALTH CARE (UK) LTD,18/07/2022,497.70,6541-Domiciliary Care,THIRD PARTY PAYMENTS,PRIVATE CONTRACTOR,REVENUE
Walsall Council,http://opendatacommunities.org/id/metropolitan-district-council/walsall ,WC140-424,31.07.2022,ADULT SOCIAL CARE,ADVANCE HEALTH CARE (UK) LTD,18/07/2022,331.80,6541-Domiciliary Care,THIRD PARTY PAYMENTS,PRIVATE CONTRACTOR,REVENUE
Walsall Council,http://opendatacommunities.org/id/metropolitan-district-council/walsall ,WC140-425,31.07.2022,ADULT SOCIAL CARE,ADVANCE HEALTH CARE (UK) LTD,18/07/2022,553.00,6541-Domiciliary Care,THIRD PARTY PAYMENTS,PRIVATE CONTRACTOR,REVENUE
Walsall Council,http://opendatacommunities.org/id/metropolitan-district-council/walsall ,WC140-426,31.07.2022,ADULT SOCIAL CARE,ADVANCE HEALTH CARE (UK) LTD,18/07/2022,513.50,6541-Domiciliary Care,THIRD PARTY PAYMENTS,PRIVATE CONTRACTOR,REVENUE
Walsall Council,http://opendatacommunities.org/id/metropolitan-district-council/walsall ,WC140-427,31.07.2022,ADULT SOCIAL CARE,ADVANCE HEALTH CARE (UK) LTD,18/07/2022,497.70,6541-Domiciliary Care,THIRD PARTY PAYMENTS,PRIVATE CONTRACTOR,REVENUE
Walsall Council,http://opendatacommunities.org/id/metropolitan-district-council/walsall ,WC140-428,31.07.2022,ADULT SOCIAL CARE,ADVANCE HEALTH CARE (UK) LTD,18/07/2022,845.30,6541-Domiciliary Care,THIRD PARTY PAYMENTS,PRIVATE CONTRACTOR,REVENUE
Walsall Council,http://opendatacommunities.org/id/metropolitan-district-council/walsall ,WC140-429,31.07.2022,ADULT SOCIAL CARE,ADVANCE HEALTH CARE (UK) LTD,18/07/2022,531.98,6541-Domiciliary Care,THIRD PARTY PAYMENTS,PRIVATE CONTRACTOR,REVENUE
Walsall Council,http://opendatacommunities.org/id/metropolitan-district-council/walsall ,WC140-430,31.07.2022,ADULT SOCIAL CARE,ADVANCE HEALTH CARE (UK) LTD,18/07/2022,497.70,6541-Domiciliary Care,THIRD PARTY PAYMENTS,PRIVATE CONTRACTOR,REVENUE
Walsall Council,http://opendatacommunities.org/id/metropolitan-district-council/walsall ,WC140-431,31.07.2022,ADULT SOCIAL CARE,ADVANCE HEALTH CARE (UK) LTD,18/07/2022,331.94,6541-Domiciliary Care,THIRD PARTY PAYMENTS,PRIVATE CONTRACTOR,REVENUE
Walsall Council,http://opendatacommunities.org/id/metropolitan-district-council/walsall ,WC140-432,31.07.2022,ADULT SOCIAL CARE,ADVANCE HEALTH CARE (UK) LTD,18/07/2022,576.70,6541-Domiciliary Care,THIRD PARTY PAYMENTS,PRIVATE CONTRACTOR,REVENUE
Walsall Council,http://opendatacommunities.org/id/metropolitan-district-council/walsall ,WC140-433,31.07.2022,ADULT SOCIAL CARE,ADVANCE HEALTH CARE (UK) LTD,18/07/2022,497.70,6541-Domiciliary Care,THIRD PARTY PAYMENTS,PRIVATE CONTRACTOR,REVENUE
Walsall Council,http://opendatacommunities.org/id/metropolitan-district-council/walsall ,WC140-434,31.07.2022,ADULT SOCIAL CARE,ADVANCE HEALTH CARE (UK) LTD,18/07/2022,497.70,6541-Domiciliary Care,THIRD PARTY PAYMENTS,PRIVATE CONTRACTOR,REVENUE
Walsall Council,http://opendatacommunities.org/id/metropolitan-district-council/walsall ,WC140-435,31.07.2022,ADULT SOCIAL CARE,ADVANCE HEALTH CARE (UK) LTD,18/07/2022,368.76,6541-Domiciliary Care,THIRD PARTY PAYMENTS,PRIVATE CONTRACTOR,REVENUE
Walsall Council,http://opendatacommunities.org/id/metropolitan-district-council/walsall ,WC140-436,31.07.2022,ADULT SOCIAL CARE,ADVANCE HEALTH CARE (UK) LTD,18/07/2022,497.70,6541-Domiciliary Care,THIRD PARTY PAYMENTS,PRIVATE CONTRACTOR,REVENUE
Walsall Council,http://opendatacommunities.org/id/metropolitan-district-council/walsall ,WC140-437,31.07.2022,ADULT SOCIAL CARE,ADVANCE HEALTH CARE (UK) LTD,18/07/2022,497.70,6541-Domiciliary Care,THIRD PARTY PAYMENTS,PRIVATE CONTRACTOR,REVENUE
Walsall Council,http://opendatacommunities.org/id/metropolitan-district-council/walsall ,WC140-438,31.07.2022,ADULT SOCIAL CARE,ADVANCE HEALTH CARE (UK) LTD,18/07/2022,553.00,6541-Domiciliary Care,THIRD PARTY PAYMENTS,PRIVATE CONTRACTOR,REVENUE
Walsall Council,http://opendatacommunities.org/id/metropolitan-district-council/walsall ,WC140-439,31.07.2022,ADULT SOCIAL CARE,ADVANCE HEALTH CARE (UK) LTD,18/07/2022,497.70,6541-Domiciliary Care,THIRD PARTY PAYMENTS,PRIVATE CONTRACTOR,REVENUE
Walsall Council,http://opendatacommunities.org/id/metropolitan-district-council/walsall ,WC140-440,31.07.2022,ADULT SOCIAL CARE,ADVANCE HEALTH CARE (UK) LTD,18/07/2022,884.80,6541-Domiciliary Care,THIRD PARTY PAYMENTS,PRIVATE CONTRACTOR,REVENUE
Walsall Council,http://opendatacommunities.org/id/metropolitan-district-council/walsall ,WC140-441,31.07.2022,ADULT SOCIAL CARE,ADVANCE HEALTH CARE (UK) LTD,18/07/2022,497.70,6541-Domiciliary Care,THIRD PARTY PAYMENTS,PRIVATE CONTRACTOR,REVENUE
Walsall Council,http://opendatacommunities.org/id/metropolitan-district-council/walsall ,WC140-442,31.07.2022,ADULT SOCIAL CARE,ADVANCE HEALTH CARE (UK) LTD,18/07/2022,497.70,6541-Domiciliary Care,THIRD PARTY PAYMENTS,PRIVATE CONTRACTOR,REVENUE
Walsall Council,http://opendatacommunities.org/id/metropolitan-district-council/walsall ,WC140-443,31.07.2022,ADULT SOCIAL CARE,ADVANCE HEALTH CARE (UK) LTD,18/07/2022,553.00,6541-Domiciliary Care,THIRD PARTY PAYMENTS,PRIVATE CONTRACTOR,REVENUE
Walsall Council,http://opendatacommunities.org/id/metropolitan-district-council/walsall ,WC140-444,31.07.2022,ADULT SOCIAL CARE,ADVANCE HEALTH CARE (UK) LTD,18/07/2022,497.70,6541-Domiciliary Care,THIRD PARTY PAYMENTS,PRIVATE CONTRACTOR,REVENUE
Walsall Council,http://opendatacommunities.org/id/metropolitan-district-council/walsall ,WC140-445,31.07.2022,ADULT SOCIAL CARE,ADVANCE HEALTH CARE (UK) LTD,18/07/2022,395.00,6541-Domiciliary Care,THIRD PARTY PAYMENTS,PRIVATE CONTRACTOR,REVENUE
Walsall Council,http://opendatacommunities.org/id/metropolitan-district-council/walsall ,WC140-446,31.07.2022,ADULT SOCIAL CARE,ADVANCE HEALTH CARE (UK) LTD,18/07/2022,387.10,6541-Domiciliary Care,THIRD PARTY PAYMENTS,PRIVATE CONTRACTOR,REVENUE
Walsall Council,http://opendatacommunities.org/id/metropolitan-district-council/walsall ,WC140-447,31.07.2022,ADULT SOCIAL CARE,ADVANCE HEALTH CARE (UK) LTD,18/07/2022,331.80,6541-Domiciliary Care,THIRD PARTY PAYMENTS,PRIVATE CONTRACTOR,REVENUE
Walsall Council,http://opendatacommunities.org/id/metropolitan-district-council/walsall ,WC140-448,31.07.2022,ADULT SOCIAL CARE,ADVANCE HEALTH CARE (UK) LTD,18/07/2022,331.94,6541-Domiciliary Care,THIRD PARTY PAYMENTS,PRIVATE CONTRACTOR,REVENUE
Walsall Council,http://opendatacommunities.org/id/metropolitan-district-council/walsall ,WC140-449,31.07.2022,ADULT SOCIAL CARE,ADVANCE HEALTH CARE (UK) LTD,18/07/2022,497.70,6541-Domiciliary Care,THIRD PARTY PAYMENTS,PRIVATE CONTRACTOR,REVENUE
Walsall Council,http://opendatacommunities.org/id/metropolitan-district-council/walsall ,WC140-450,31.07.2022,ADULT SOCIAL CARE,ADVANCE HEALTH CARE (UK) LTD,18/07/2022,497.70,6541-Domiciliary Care,THIRD PARTY PAYMENTS,PRIVATE CONTRACTOR,REVENUE
Walsall Council,http://opendatacommunities.org/id/metropolitan-district-council/walsall ,WC140-451,31.07.2022,ADULT SOCIAL CARE,ADVANCE HEALTH CARE (UK) LTD,18/07/2022,490.40,6541-Domiciliary Care,THIRD PARTY PAYMENTS,PRIVATE CONTRACTOR,REVENUE
Walsall Council,http://opendatacommunities.org/id/metropolitan-district-council/walsall ,WC140-452,31.07.2022,ADULT SOCIAL CARE,ADVANCE HEALTH CARE (UK) LTD,18/07/2022,331.80,6541-Domiciliary Care,THIRD PARTY PAYMENTS,PRIVATE CONTRACTOR,REVENUE
Walsall Council,http://opendatacommunities.org/id/metropolitan-district-council/walsall ,WC140-453,31.07.2022,ADULT SOCIAL CARE,ADVANCE HEALTH CARE (UK) LTD,18/07/2022,497.70,6541-Domiciliary Care,THIRD PARTY PAYMENTS,PRIVATE CONTRACTOR,REVENUE
Walsall Council,http://opendatacommunities.org/id/metropolitan-district-council/walsall ,WC140-454,31.07.2022,ADULT SOCIAL CARE,ADVANCE HEALTH CARE (UK) LTD,18/07/2022,513.50,6541-Domiciliary Care,THIRD PARTY PAYMENTS,PRIVATE CONTRACTOR,REVENUE
Walsall Council,http://opendatacommunities.org/id/metropolitan-district-council/walsall ,WC140-455,31.07.2022,ADULT SOCIAL CARE,ADVANCE HEALTH CARE (UK) LTD,18/07/2022,497.70,6541-Domiciliary Care,THIRD PARTY PAYMENTS,PRIVATE CONTRACTOR,REVENUE
Walsall Council,http://opendatacommunities.org/id/metropolitan-district-council/walsall ,WC140-456,31.07.2022,ADULT SOCIAL CARE,ADVANCE HEALTH CARE (UK) LTD,18/07/2022,497.70,6541-Domiciliary Care,THIRD PARTY PAYMENTS,PRIVATE CONTRACTOR,REVENUE
Walsall Council,http://opendatacommunities.org/id/metropolitan-district-council/walsall ,WC140-457,31.07.2022,ADULT SOCIAL CARE,ADVANCE HEALTH CARE (UK) LTD,18/07/2022,387.10,6541-Domiciliary Care,THIRD PARTY PAYMENTS,PRIVATE CONTRACTOR,REVENUE
Walsall Council,http://opendatacommunities.org/id/metropolitan-district-council/walsall ,WC140-458,31.07.2022,ADULT SOCIAL CARE,ADVANCE HEALTH CARE (UK) LTD,18/07/2022,331.80,6541-Domiciliary Care,THIRD PARTY PAYMENTS,PRIVATE CONTRACTOR,REVENUE
Walsall Council,http://opendatacommunities.org/id/metropolitan-district-council/walsall ,WC140-459,31.07.2022,ADULT SOCIAL CARE,ADVANCE HEALTH CARE (UK) LTD,18/07/2022,497.70,6541-Domiciliary Care,THIRD PARTY PAYMENTS,PRIVATE CONTRACTOR,REVENUE
Walsall Council,http://opendatacommunities.org/id/metropolitan-district-council/walsall ,WC140-460,31.07.2022,ADULT SOCIAL CARE,ADVANCE HEALTH CARE (UK) LTD,18/07/2022,497.70,6541-Domiciliary Care,THIRD PARTY PAYMENTS,PRIVATE CONTRACTOR,REVENUE
Walsall Council,http://opendatacommunities.org/id/metropolitan-district-council/walsall ,WC140-461,31.07.2022,ADULT SOCIAL CARE,ADVANCE HEALTH CARE (UK) LTD,27/07/2022,691.25,6541-Domiciliary Care,THIRD PARTY PAYMENTS,PRIVATE CONTRACTOR,REVENUE
Walsall Council,http://opendatacommunities.org/id/metropolitan-district-council/walsall ,WC140-462,31.07.2022,ADULT SOCIAL CARE,ADVANCE HEALTH CARE (UK) LTD,27/07/2022,"1,137.60",6541-Domiciliary Care,THIRD PARTY PAYMENTS,PRIVATE CONTRACTOR,REVENUE
Walsall Council,http://opendatacommunities.org/id/metropolitan-district-council/walsall ,WC140-463,31.07.2022,ADULT SOCIAL CARE,ADVANCE HEALTH CARE (UK) LTD,27/07/2022,671.50,6541-Domiciliary Care,THIRD PARTY PAYMENTS,PRIVATE CONTRACTOR,REVENUE
Walsall Council,http://opendatacommunities.org/id/metropolitan-district-council/walsall ,WC140-464,31.07.2022,ADULT SOCIAL CARE,ADVANCE HEALTH CARE (UK) LTD,27/07/2022,"1,374.60",6541-Domiciliary Care,THIRD PARTY PAYMENTS,PRIVATE CONTRACTOR,REVENUE
Walsall Council,http://opendatacommunities.org/id/metropolitan-district-council/walsall ,WC140-465,31.07.2022,ADULT SOCIAL CARE,ADVANCE HEALTH CARE (UK) LTD,27/07/2022,497.70,6541-Domiciliary Care,THIRD PARTY PAYMENTS,PRIVATE CONTRACTOR,REVENUE
Walsall Council,http://opendatacommunities.org/id/metropolitan-district-council/walsall ,WC140-466,31.07.2022,ADULT SOCIAL CARE,ADVANCE HEALTH CARE (UK) LTD,27/07/2022,296.25,6541-Domiciliary Care,THIRD PARTY PAYMENTS,PRIVATE CONTRACTOR,REVENUE
Walsall Council,http://opendatacommunities.org/id/metropolitan-district-council/walsall ,WC140-467,31.07.2022,ADULT SOCIAL CARE,ADVANCE HEALTH CARE (UK) LTD,27/07/2022,363.40,6541-Domiciliary Care,THIRD PARTY PAYMENTS,PRIVATE CONTRACTOR,REVENUE
Walsall Council,http://opendatacommunities.org/id/metropolitan-district-council/walsall ,WC140-468,31.07.2022,ADULT SOCIAL CARE,ADVANCE HEALTH CARE (UK) LTD,27/07/2022,"1,817.00",6541-Domiciliary Care,THIRD PARTY PAYMENTS,PRIVATE CONTRACTOR,REVENUE
Walsall Council,http://opendatacommunities.org/id/metropolitan-district-council/walsall ,WC140-469,31.07.2022,ADULT SOCIAL CARE,ADVANCE HEALTH CARE (UK) LTD,27/07/2022,387.10,6541-Domiciliary Care,THIRD PARTY PAYMENTS,PRIVATE CONTRACTOR,REVENUE
Walsall Council,http://opendatacommunities.org/id/metropolitan-district-council/walsall ,WC140-470,31.07.2022,ADULT SOCIAL CARE,ADVANCE HEALTH CARE (UK) LTD,27/07/2022,458.20,6541-Domiciliary Care,THIRD PARTY PAYMENTS,PRIVATE CONTRACTOR,REVENUE
Walsall Council,http://opendatacommunities.org/id/metropolitan-district-council/walsall ,WC140-471,31.07.2022,ADULT SOCIAL CARE,ADVANCE HEALTH CARE (UK) LTD,28/07/2022,485.73,6554-Professional Services-Priv Contractor & Other Agencies,THIRD PARTY PAYMENTS,PRIVATE CONTRACTOR,REVENUE
Walsall Council,http://opendatacommunities.org/id/metropolitan-district-council/walsall ,WC140-472,31.07.2022,ADULT SOCIAL CARE,ADVANCE HEALTH CARE (UK) LTD,28/07/2022,485.73,6554-Professional Services-Priv Contractor & Other Agencies,THIRD PARTY PAYMENTS,PRIVATE CONTRACTOR,REVENUE
Walsall Council,http://opendatacommunities.org/id/metropolitan-district-council/walsall ,WC140-473,31.07.2022,ADULT SOCIAL CARE,ADVANCE HEALTH CARE (UK) LTD,28/07/2022,485.73,6554-Professional Services-Priv Contractor & Other Agencies,THIRD PARTY PAYMENTS,PRIVATE CONTRACTOR,REVENUE
Walsall Council,http://opendatacommunities.org/id/metropolitan-district-council/walsall ,WC140-474,31.07.2022,ADULT SOCIAL CARE,ADVANCE HEALTH CARE (UK) LTD,28/07/2022,362.37,6554-Professional Services-Priv Contractor & Other Agencies,THIRD PARTY PAYMENTS,PRIVATE CONTRACTOR,REVENUE
Walsall Council,http://opendatacommunities.org/id/metropolitan-district-council/walsall ,WC140-475,31.07.2022,CHILDRENS,ADVENTURELAND DAY NURSERY,22/07/2022,817.50,1184-Other-Grants to Other Orgs,SUPPLIES & SERVICES,GRANTS (EXP) & SUBSCRIPTIONS,REVENUE
Walsall Council,http://opendatacommunities.org/id/metropolitan-district-council/walsall ,WC140-476,31.07.2022,ADULT SOCIAL CARE,ADVINIA CARE HOMES LTD - HAMMERWICH HALL CARE HOME,05/07/2022,"2,366.04",6541-Residential EMI,THIRD PARTY PAYMENTS,PRIVATE CONTRACTOR,REVENUE
Walsall Council,http://opendatacommunities.org/id/metropolitan-district-council/walsall ,WC140-477,31.07.2022,ADULT SOCIAL CARE,ADVINIA CARE HOMES LTD - HAMMERWICH HALL CARE HOME,05/07/2022,"2,095.40",6541-Residential,THIRD PARTY PAYMENTS,PRIVATE CONTRACTOR,REVENUE
Walsall Council,http://opendatacommunities.org/id/metropolitan-district-council/walsall ,WC140-478,31.07.2022,ADULT SOCIAL CARE,ADVOCACY MATTERS LIMITED,11/07/2022,"14,784.61",6553-Professional Services-Priv Contractor & Other Agencies,THIRD PARTY PAYMENTS,PRIVATE CONTRACTOR,REVENUE
Walsall Council,http://opendatacommunities.org/id/metropolitan-district-council/walsall ,WC140-479,31.07.2022,ADULT SOCIAL CARE,ADVOCACY MATTERS LIMITED,15/07/2022,"14,947.08",6553-Professional Services-Priv Contractor & Other Agencies,THIRD PARTY PAYMENTS,PRIVATE CONTRACTOR,REVENUE
Walsall Council,http://opendatacommunities.org/id/metropolitan-district-council/walsall ,WC140-480,31.07.2022,CHILDRENS,AFGHAN COMMUNITY & WELFARE CENTRE,05/07/2022,"3,973.20",6213-Professional Fees & Services,SUPPLIES & SERVICES,SERVICES,REVENUE
Walsall Council,http://opendatacommunities.org/id/metropolitan-district-council/walsall ,WC140-481,31.07.2022,"ECONOMY, ENVIRONMENT & COMMUNITIES",AFGHAN COMMUNITY & WELFARE CENTRE,19/07/2022,250.00,6430-Grants to Other Orgs,SUPPLIES & SERVICES,GRANTS (EXP) & SUBSCRIPTIONS,REVENUE
Walsall Council,http://opendatacommunities.org/id/metropolitan-district-council/walsall ,WC140-482,31.07.2022,"ECONOMY, ENVIRONMENT & COMMUNITIES",AFRICA ADVOCACY FOUNDATION,15/07/2022,"3,000.00",6430-External Training,INDIRECT EMPLOYEES,EXTERNAL TRAINING,REVENUE
Walsall Council,http://opendatacommunities.org/id/metropolitan-district-council/walsall ,WC140-483,31.07.2022,CHILDRENS CAPITAL,REDACTED,29/07/2022,"10,000.00",7100-Private Grants,CAPITAL,CAPITAL GRANTS,CAPITAL GRANTS
Walsall Council,http://opendatacommunities.org/id/metropolitan-district-council/walsall ,WC140-484,31.07.2022,RESOURCES AND TRANSFORMATION CAPITAL,AGILISYS LTD,05/07/2022,602.00,7300-Consultants Fees,CAPITAL,"NEW CONSTRUCTION,CONVERSION & RENOVATION",CAPITAL
Walsall Council,http://opendatacommunities.org/id/metropolitan-district-council/walsall ,WC140-485,31.07.2022,RESOURCES AND TRANSFORMATION CAPITAL,AGILISYS LTD,05/07/2022,"2,288.88",7300-Consultants Fees,CAPITAL,"NEW CONSTRUCTION,CONVERSION & RENOVATION",CAPITAL
Walsall Council,http://opendatacommunities.org/id/metropolitan-district-council/walsall ,WC140-486,31.07.2022,RESOURCES AND TRANSFORMATION CAPITAL,AGILISYS LTD,05/07/2022,"12,716.00",7300-Consultants Fees,CAPITAL,"NEW CONSTRUCTION,CONVERSION & RENOVATION",CAPITAL
Walsall Council,http://opendatacommunities.org/id/metropolitan-district-council/walsall ,WC140-487,31.07.2022,RESOURCES AND TRANSFORMATION CAPITAL,AGILISYS LTD,11/07/2022,"122,437.00",7300-Consultants Fees,CAPITAL,"NEW CONSTRUCTION,CONVERSION & RENOVATION",CAPITAL
Walsall Council,http://opendatacommunities.org/id/metropolitan-district-council/walsall ,WC140-488,31.07.2022,RESOURCES AND TRANSFORMATION CAPITAL,AGILISYS LTD,18/07/2022,"-120,000.00",7300-Consultants Fees,CAPITAL,"NEW CONSTRUCTION,CONVERSION & RENOVATION",CAPITAL
Walsall Council,http://opendatacommunities.org/id/metropolitan-district-council/walsall ,WC140-489,31.07.2022,RESOURCES AND TRANSFORMATION CAPITAL,AGILISYS LTD,18/07/2022,"120,000.00",7300-Consultants Fees,CAPITAL,"NEW CONSTRUCTION,CONVERSION & RENOVATION",CAPITAL
Walsall Council,http://opendatacommunities.org/id/metropolitan-district-council/walsall ,WC140-490,31.07.2022,RESOURCES AND TRANSFORMATION,AGILISYS LTD,18/07/2022,"70,724.51",6626-Consultant Fees,SUPPLIES & SERVICES,SERVICES,REVENUE
Walsall Council,http://opendatacommunities.org/id/metropolitan-district-council/walsall ,WC140-491,31.07.2022,RESOURCES AND TRANSFORMATION CAPITAL,AGILISYS LTD,28/07/2022,"12,334.52",7300-Consultants Fees,CAPITAL,"NEW CONSTRUCTION,CONVERSION & RENOVATION",CAPITAL
Walsall Council,http://opendatacommunities.org/id/metropolitan-district-council/walsall ,WC140-492,31.07.2022,"ECONOMY, ENVIRONMENT & COMMUNITIES",AGROVISTA UK LTD,28/07/2022,398.80,6410-Materials,SUPPLIES & SERVICES,EQUIPMENT FURNITURE & MATERIALS,REVENUE
Walsall Council,http://opendatacommunities.org/id/metropolitan-district-council/walsall ,WC140-493,31.07.2022,ADULT SOCIAL CARE,REDACTED,06/07/2022,"2,517.12",6541-Direct Payment,THIRD PARTY PAYMENTS,PRIVATE CONTRACTOR,REVENUE
Walsall Council,http://opendatacommunities.org/id/metropolitan-district-council/walsall ,WC140-494,31.07.2022,CHILDRENS,AJ PARKES COMMERCIAL & DOMESTIC LAUDRY & DISHWASHER SPECIALISTS,15/07/2022,-388.80,6223-Repair & Maintenance of Furniture & Equipment,SUPPLIES & SERVICES,EQUIPMENT FURNITURE & MATERIALS,REVENUE
Walsall Council,http://opendatacommunities.org/id/metropolitan-district-council/walsall ,WC140-495,31.07.2022,CHILDRENS,AJ PARKES COMMERCIAL & DOMESTIC LAUDRY & DISHWASHER SPECIALISTS,15/07/2022,324.00,6223-Repair & Maintenance of Furniture & Equipment,SUPPLIES & SERVICES,EQUIPMENT FURNITURE & MATERIALS,REVENUE
Walsall Council,http://opendatacommunities.org/id/metropolitan-district-council/walsall ,WC140-496,31.07.2022,CHILDRENS,AJ PARKES COMMERCIAL & DOMESTIC LAUDRY & DISHWASHER SPECIALISTS,15/07/2022,388.80,6223-Repair & Maintenance of Furniture & Equipment,SUPPLIES & SERVICES,EQUIPMENT FURNITURE & MATERIALS,REVENUE
Walsall Council,http://opendatacommunities.org/id/metropolitan-district-council/walsall ,WC140-497,31.07.2022,"ECONOMY, ENVIRONMENT & COMMUNITIES",AKD SOLUTIONS LTD,27/07/2022,"2,400.00",6430-Grants to Other Orgs,SUPPLIES & SERVICES,GRANTS (EXP) & SUBSCRIPTIONS,REVENUE
Walsall Council,http://opendatacommunities.org/id/metropolitan-district-council/walsall ,WC140-498,31.07.2022,"ECONOMY, ENVIRONMENT & COMMUNITIES",ALBERT JAGGER LTD,26/07/2022,462.36,6410-Materials to Stores,SUPPLIES & SERVICES,EQUIPMENT FURNITURE & MATERIALS,REVENUE
Walsall Council,http://opendatacommunities.org/id/metropolitan-district-council/walsall ,WC140-499,31.07.2022,CHILDRENS,ALDRIDGE & BARONS LIMITED,18/07/2022,"1,931.40",6241-Hire of Vehicle with Driver,TRANSPORT,DIRECT TRANSPORT COSTS,REVENUE
Walsall Council,http://opendatacommunities.org/id/metropolitan-district-council/walsall ,WC140-500,31.07.2022,CHILDRENS,ALDRIDGE & BARONS LIMITED,18/07/2022,"1,935.00",6241-Hire of Vehicle with Driver,TRANSPORT,DIRECT TRANSPORT COSTS,REVENUE
Walsall Council,http://opendatacommunities.org/id/metropolitan-district-council/walsall ,WC140-501,31.07.2022,CHILDRENS,ALDRIDGE & BARONS LIMITED,18/07/2022,"2,242.00",6241-Hire of Vehicle with Driver,TRANSPORT,DIRECT TRANSPORT COSTS,REVENUE
Walsall Council,http://opendatacommunities.org/id/metropolitan-district-council/walsall ,WC140-502,31.07.2022,CHILDRENS,ALDRIDGE & BARONS LIMITED,18/07/2022,960.00,6241-Hire of Vehicle with Driver,TRANSPORT,DIRECT TRANSPORT COSTS,REVENUE
Walsall Council,http://opendatacommunities.org/id/metropolitan-district-council/walsall ,WC140-503,31.07.2022,CHILDRENS,ALDRIDGE & BARONS LIMITED,18/07/2022,"1,620.00",6241-Hire of Vehicle with Driver,TRANSPORT,DIRECT TRANSPORT COSTS,REVENUE
Walsall Council,http://opendatacommunities.org/id/metropolitan-district-council/walsall ,WC140-504,31.07.2022,CHILDRENS,ALDRIDGE & BARONS LIMITED,18/07/2022,"1,717.00",6241-Hire of Vehicle with Driver,TRANSPORT,DIRECT TRANSPORT COSTS,REVENUE
Walsall Council,http://opendatacommunities.org/id/metropolitan-district-council/walsall ,WC140-505,31.07.2022,CHILDRENS,ALDRIDGE & BARONS LIMITED,18/07/2022,"2,124.00",6241-Hire of Vehicle with Driver,TRANSPORT,DIRECT TRANSPORT COSTS,REVENUE
Walsall Council,http://opendatacommunities.org/id/metropolitan-district-council/walsall ,WC140-506,31.07.2022,CHILDRENS,ALDRIDGE & BARONS LIMITED,18/07/2022,"2,278.00",6241-Hire of Vehicle with Driver,TRANSPORT,DIRECT TRANSPORT COSTS,REVENUE
Walsall Council,http://opendatacommunities.org/id/metropolitan-district-council/walsall ,WC140-507,31.07.2022,CHILDRENS,ALDRIDGE & BARONS LIMITED,18/07/2022,"1,621.20",6241-Hire of Vehicle with Driver,TRANSPORT,DIRECT TRANSPORT COSTS,REVENUE
Walsall Council,http://opendatacommunities.org/id/metropolitan-district-council/walsall ,WC140-508,31.07.2022,CHILDRENS,ALDRIDGE & BARONS LIMITED,18/07/2022,"2,850.00",6241-Hire of Vehicle with Driver,TRANSPORT,DIRECT TRANSPORT COSTS,REVENUE
Walsall Council,http://opendatacommunities.org/id/metropolitan-district-council/walsall ,WC140-509,31.07.2022,CHILDRENS,ALDRIDGE & BARONS LIMITED,18/07/2022,"2,340.80",6241-Hire of Vehicle with Driver,TRANSPORT,DIRECT TRANSPORT COSTS,REVENUE
Walsall Council,http://opendatacommunities.org/id/metropolitan-district-council/walsall ,WC140-510,31.07.2022,CHILDRENS,ALDRIDGE & BARONS LIMITED,18/07/2022,"2,147.60",6241-Hire of Vehicle with Driver,TRANSPORT,DIRECT TRANSPORT COSTS,REVENUE
Walsall Council,http://opendatacommunities.org/id/metropolitan-district-council/walsall ,WC140-511,31.07.2022,CHILDRENS,ALDRIDGE & BARONS LIMITED,18/07/2022,"2,880.00",6241-Hire of Vehicle with Driver,TRANSPORT,DIRECT TRANSPORT COSTS,REVENUE
Walsall Council,http://opendatacommunities.org/id/metropolitan-district-council/walsall ,WC140-512,31.07.2022,CHILDRENS,ALDRIDGE & BARONS LIMITED,18/07/2022,375.20,6241-Hire of Vehicle with Driver,TRANSPORT,DIRECT TRANSPORT COSTS,REVENUE
Walsall Council,http://opendatacommunities.org/id/metropolitan-district-council/walsall ,WC140-513,31.07.2022,CHILDRENS,ALDRIDGE & BARONS LIMITED,18/07/2022,"2,293.30",6241-Hire of Vehicle with Driver,TRANSPORT,DIRECT TRANSPORT COSTS,REVENUE
Walsall Council,http://opendatacommunities.org/id/metropolitan-district-council/walsall ,WC140-514,31.07.2022,CHILDRENS,ALDRIDGE & BARONS LIMITED,18/07/2022,696.00,6241-Hire of Vehicle with Driver,TRANSPORT,DIRECT TRANSPORT COSTS,REVENUE
Walsall Council,http://opendatacommunities.org/id/metropolitan-district-council/walsall ,WC140-515,31.07.2022,CHILDRENS,ALDRIDGE & BARONS LIMITED,18/07/2022,"2,120.40",6241-Hire of Vehicle with Driver,TRANSPORT,DIRECT TRANSPORT COSTS,REVENUE
Walsall Council,http://opendatacommunities.org/id/metropolitan-district-council/walsall ,WC140-516,31.07.2022,CHILDRENS,ALDRIDGE & BARONS LIMITED,18/07/2022,"2,700.00",6241-Hire of Vehicle with Driver,TRANSPORT,DIRECT TRANSPORT COSTS,REVENUE
Walsall Council,http://opendatacommunities.org/id/metropolitan-district-council/walsall ,WC140-517,31.07.2022,CHILDRENS,ALDRIDGE & BARONS LIMITED,18/07/2022,"1,946.00",6241-Hire of Vehicle with Driver,TRANSPORT,DIRECT TRANSPORT COSTS,REVENUE
Walsall Council,http://opendatacommunities.org/id/metropolitan-district-council/walsall ,WC140-518,31.07.2022,CHILDRENS,ALDRIDGE & BARONS LIMITED,18/07/2022,"2,200.00",6241-Hire of Vehicle with Driver,TRANSPORT,DIRECT TRANSPORT COSTS,REVENUE
Walsall Council,http://opendatacommunities.org/id/metropolitan-district-council/walsall ,WC140-519,31.07.2022,CHILDRENS,ALDRIDGE & BARONS LIMITED,18/07/2022,"1,710.00",6241-Hire of Vehicle with Driver,TRANSPORT,DIRECT TRANSPORT COSTS,REVENUE
Walsall Council,http://opendatacommunities.org/id/metropolitan-district-council/walsall ,WC140-520,31.07.2022,CHILDRENS,ALDRIDGE & BARONS LIMITED,18/07/2022,"2,090.00",6241-Hire of Vehicle with Driver,TRANSPORT,DIRECT TRANSPORT COSTS,REVENUE
Walsall Council,http://opendatacommunities.org/id/metropolitan-district-council/walsall ,WC140-521,31.07.2022,CHILDRENS,ALDRIDGE & BARONS LIMITED,18/07/2022,"1,640.00",6241-Hire of Vehicle with Driver,TRANSPORT,DIRECT TRANSPORT COSTS,REVENUE
Walsall Council,http://opendatacommunities.org/id/metropolitan-district-council/walsall ,WC140-522,31.07.2022,CHILDRENS,ALDRIDGE & BARONS LIMITED,18/07/2022,"1,872.00",6241-Hire of Vehicle with Driver,TRANSPORT,DIRECT TRANSPORT COSTS,REVENUE
Walsall Council,http://opendatacommunities.org/id/metropolitan-district-council/walsall ,WC140-523,31.07.2022,CHILDRENS,ALDRIDGE & BARONS LIMITED,18/07/2022,"2,270.00",6241-Hire of Vehicle with Driver,TRANSPORT,DIRECT TRANSPORT COSTS,REVENUE
Walsall Council,http://opendatacommunities.org/id/metropolitan-district-council/walsall ,WC140-524,31.07.2022,CHILDRENS,ALDRIDGE & BARONS LIMITED,18/07/2022,"2,130.00",6241-Hire of Vehicle with Driver,TRANSPORT,DIRECT TRANSPORT COSTS,REVENUE
Walsall Council,http://opendatacommunities.org/id/metropolitan-district-council/walsall ,WC140-525,31.07.2022,CHILDRENS,ALDRIDGE & BARONS LIMITED,18/07/2022,"1,726.10",6241-Hire of Vehicle with Driver,TRANSPORT,DIRECT TRANSPORT COSTS,REVENUE
Walsall Council,http://opendatacommunities.org/id/metropolitan-district-council/walsall ,WC140-526,31.07.2022,CHILDRENS,ALDRIDGE & BARONS LIMITED,18/07/2022,"2,470.00",6241-Hire of Vehicle with Driver,TRANSPORT,DIRECT TRANSPORT COSTS,REVENUE
Walsall Council,http://opendatacommunities.org/id/metropolitan-district-council/walsall ,WC140-527,31.07.2022,CHILDRENS,ALDRIDGE & BARONS LIMITED,18/07/2022,"1,575.60",6241-Hire of Vehicle with Driver,TRANSPORT,DIRECT TRANSPORT COSTS,REVENUE
Walsall Council,http://opendatacommunities.org/id/metropolitan-district-council/walsall ,WC140-528,31.07.2022,CHILDRENS,ALDRIDGE & BARONS LIMITED,18/07/2022,"1,911.60",6241-Hire of Vehicle with Driver,TRANSPORT,DIRECT TRANSPORT COSTS,REVENUE
Walsall Council,http://opendatacommunities.org/id/metropolitan-district-council/walsall ,WC140-529,31.07.2022,CHILDRENS,ALDRIDGE & BARONS LIMITED,18/07/2022,"1,710.00",6241-Hire of Vehicle with Driver,TRANSPORT,DIRECT TRANSPORT COSTS,REVENUE
Walsall Council,http://opendatacommunities.org/id/metropolitan-district-council/walsall ,WC140-530,31.07.2022,CHILDRENS,ALDRIDGE & BARONS LIMITED,18/07/2022,"1,914.00",6241-Hire of Vehicle with Driver,TRANSPORT,DIRECT TRANSPORT COSTS,REVENUE
Walsall Council,http://opendatacommunities.org/id/metropolitan-district-council/walsall ,WC140-531,31.07.2022,CHILDRENS,ALDRIDGE & BARONS LIMITED,18/07/2022,"1,976.00",6241-Hire of Vehicle with Driver,TRANSPORT,DIRECT TRANSPORT COSTS,REVENUE
Walsall Council,http://opendatacommunities.org/id/metropolitan-district-council/walsall ,WC140-532,31.07.2022,CHILDRENS,ALDRIDGE & BARONS LIMITED,18/07/2022,"1,985.00",6241-Hire of Vehicle with Driver,TRANSPORT,DIRECT TRANSPORT COSTS,REVENUE
Walsall Council,http://opendatacommunities.org/id/metropolitan-district-council/walsall ,WC140-533,31.07.2022,CHILDRENS,ALDRIDGE & BARONS LIMITED,18/07/2022,"1,420.00",6241-Hire of Vehicle with Driver,TRANSPORT,DIRECT TRANSPORT COSTS,REVENUE
Walsall Council,http://opendatacommunities.org/id/metropolitan-district-council/walsall ,WC140-534,31.07.2022,CHILDRENS,ALDRIDGE & BARONS LIMITED,18/07/2022,"1,188.00",6241-Hire of Vehicle with Driver,TRANSPORT,DIRECT TRANSPORT COSTS,REVENUE
Walsall Council,http://opendatacommunities.org/id/metropolitan-district-council/walsall ,WC140-535,31.07.2022,ADULT SOCIAL CARE,REDACTED,06/07/2022,"1,516.80",6541-Direct Payment,THIRD PARTY PAYMENTS,PRIVATE CONTRACTOR,REVENUE
Walsall Council,http://opendatacommunities.org/id/metropolitan-district-council/walsall ,WC140-536,31.07.2022,ADULT SOCIAL CARE,ALEXANDRA HOUSE CARE SERVICES LTD T/A STONEBRIDGE NURSING HOME,05/07/2022,"7,434.72",6541-Residential,THIRD PARTY PAYMENTS,PRIVATE CONTRACTOR,REVENUE
Walsall Council,http://opendatacommunities.org/id/metropolitan-district-council/walsall ,WC140-537,31.07.2022,ADULT SOCIAL CARE,REDACTED,06/07/2022,971.52,6541-Direct Payment,THIRD PARTY PAYMENTS,PRIVATE CONTRACTOR,REVENUE
Walsall Council,http://opendatacommunities.org/id/metropolitan-district-council/walsall ,WC140-538,31.07.2022,CHILDRENS,REDACTED,27/07/2022,318.68,6223-Special Guardianship Orders,TRANSFER PAYMENTS,CHILDREN SOCIAL SERVICES CLIENT,REVENUE
Walsall Council,http://opendatacommunities.org/id/metropolitan-district-council/walsall ,WC140-539,31.07.2022,CHILDRENS,ALLIANCE CARE LTD,15/07/2022,"1,643.00",6222-Professional Services-Priv Contractor & Other Agencies,THIRD PARTY PAYMENTS,PRIVATE CONTRACTOR,REVENUE
Walsall Council,http://opendatacommunities.org/id/metropolitan-district-council/walsall ,WC140-540,31.07.2022,ECONOMY & ENVIRONMENT CAPITAL,ALLIANCE LEISURE SERVICES LTD,11/07/2022,"281,435.13",7200-Site Works Contractors,CAPITAL,"NEW CONSTRUCTION,CONVERSION & RENOVATION",CAPITAL
Walsall Council,http://opendatacommunities.org/id/metropolitan-district-council/walsall ,WC140-541,31.07.2022,RESOURCES AND TRANSFORMATION,ALLIED PUBLICITY SERVICES (MANCHESTER) LIMITED T/A APS GROUP,21/07/2022,"1,240.59",6312-External Printing Services,SUPPLIES & SERVICES,PRINTING STATIONERY & GENERAL OFFICE,REVENUE
Walsall Council,http://opendatacommunities.org/id/metropolitan-district-council/walsall ,WC140-542,31.07.2022,RESOURCES AND TRANSFORMATION,ALLIED PUBLICITY SERVICES (MANCHESTER) LIMITED T/A APS GROUP,21/07/2022,"1,734.55",6312-External Printing Services,SUPPLIES & SERVICES,PRINTING STATIONERY & GENERAL OFFICE,REVENUE
Walsall Council,http://opendatacommunities.org/id/metropolitan-district-council/walsall ,WC140-543,31.07.2022,ADULT SOCIAL CARE,ALMA COURT,05/07/2022,"4,805.72",6541-Nursing EMI,THIRD PARTY PAYMENTS,PRIVATE CONTRACTOR,REVENUE
Walsall Council,http://opendatacommunities.org/id/metropolitan-district-council/walsall ,WC140-544,31.07.2022,ADULT SOCIAL CARE,ALMA COURT,05/07/2022,"4,263.00",6541-Residential,THIRD PARTY PAYMENTS,PRIVATE CONTRACTOR,REVENUE
Walsall Council,http://opendatacommunities.org/id/metropolitan-district-council/walsall ,WC140-545,31.07.2022,ADULT SOCIAL CARE,ALMA COURT,05/07/2022,"1,296.00",6541-Residential & Nursing Care Placements,THIRD PARTY PAYMENTS,PRIVATE CONTRACTOR,REVENUE
Walsall Council,http://opendatacommunities.org/id/metropolitan-district-council/walsall ,WC140-546,31.07.2022,ADULT SOCIAL CARE,ALMA COURT,05/07/2022,"3,667.80",6541-Nursing EMI,THIRD PARTY PAYMENTS,PRIVATE CONTRACTOR,REVENUE
Walsall Council,http://opendatacommunities.org/id/metropolitan-district-council/walsall ,WC140-547,31.07.2022,ADULT SOCIAL CARE,ALMA COURT,05/07/2022,"6,718.40",6541-Residential,THIRD PARTY PAYMENTS,PRIVATE CONTRACTOR,REVENUE
Walsall Council,http://opendatacommunities.org/id/metropolitan-district-council/walsall ,WC140-548,31.07.2022,ADULT SOCIAL CARE,ALPHA HEALTH CARE LTD,05/07/2022,"3,132.12",6541-Nursing EMI,THIRD PARTY PAYMENTS,PRIVATE CONTRACTOR,REVENUE
Walsall Council,http://opendatacommunities.org/id/metropolitan-district-council/walsall ,WC140-549,31.07.2022,ADULT SOCIAL CARE,ALPHA HEALTH CARE LTD,05/07/2022,"7,105.00",6541-Residential,THIRD PARTY PAYMENTS,PRIVATE CONTRACTOR,REVENUE
Walsall Council,http://opendatacommunities.org/id/metropolitan-district-council/walsall ,WC140-550,31.07.2022,ADULT SOCIAL CARE,ALPHA HEALTH CARE LTD,05/07/2022,"2,763.80",6541-Nursing EMI,THIRD PARTY PAYMENTS,PRIVATE CONTRACTOR,REVENUE
Walsall Council,http://opendatacommunities.org/id/metropolitan-district-council/walsall ,WC140-551,31.07.2022,ADULT SOCIAL CARE,ALPHA HEALTH CARE LTD,05/07/2022,"7,067.80",6541-Nursing EMI,THIRD PARTY PAYMENTS,PRIVATE CONTRACTOR,REVENUE
Walsall Council,http://opendatacommunities.org/id/metropolitan-district-council/walsall ,WC140-552,31.07.2022,ADULT SOCIAL CARE,ALPHA HEALTH CARE LTD,05/07/2022,"2,889.52",6541-Residential EMI,THIRD PARTY PAYMENTS,PRIVATE CONTRACTOR,REVENUE
Walsall Council,http://opendatacommunities.org/id/metropolitan-district-council/walsall ,WC140-553,31.07.2022,ADULT SOCIAL CARE,ALPHA HEALTH CARE LTD,05/07/2022,"2,763.80",6541-Nursing EMI,THIRD PARTY PAYMENTS,PRIVATE CONTRACTOR,REVENUE
Walsall Council,http://opendatacommunities.org/id/metropolitan-district-council/walsall ,WC140-554,31.07.2022,ADULT SOCIAL CARE,ALPHA HEALTH CARE LTD,05/07/2022,"2,366.04",6541-Residential EMI,THIRD PARTY PAYMENTS,PRIVATE CONTRACTOR,REVENUE
Walsall Council,http://opendatacommunities.org/id/metropolitan-district-council/walsall ,WC140-555,31.07.2022,ADULT SOCIAL CARE,ALPHA HEALTH CARE LTD,05/07/2022,"3,374.96",6541-Residential EMI,THIRD PARTY PAYMENTS,PRIVATE CONTRACTOR,REVENUE
Walsall Council,http://opendatacommunities.org/id/metropolitan-district-council/walsall ,WC140-556,31.07.2022,ADULT SOCIAL CARE,ALPHA HEALTH CARE LTD,05/07/2022,"3,374.96",6541-Residential EMI,THIRD PARTY PAYMENTS,PRIVATE CONTRACTOR,REVENUE
Walsall Council,http://opendatacommunities.org/id/metropolitan-district-council/walsall ,WC140-557,31.07.2022,ADULT SOCIAL CARE,ALPHA HEALTH CARE LTD,05/07/2022,"3,132.12",6541-Nursing EMI,THIRD PARTY PAYMENTS,PRIVATE CONTRACTOR,REVENUE
Walsall Council,http://opendatacommunities.org/id/metropolitan-district-council/walsall ,WC140-558,31.07.2022,ADULT SOCIAL CARE,ALPHA HEALTH CARE LTD,05/07/2022,"2,766.04",6541-Residential EMI,THIRD PARTY PAYMENTS,PRIVATE CONTRACTOR,REVENUE
Walsall Council,http://opendatacommunities.org/id/metropolitan-district-council/walsall ,WC140-559,31.07.2022,ADULT SOCIAL CARE,ALPHA HEALTH CARE LTD,05/07/2022,"3,958.52",6541-Residential,THIRD PARTY PAYMENTS,PRIVATE CONTRACTOR,REVENUE
Walsall Council,http://opendatacommunities.org/id/metropolitan-district-council/walsall ,WC140-560,31.07.2022,ADULT SOCIAL CARE,ALPHA HEALTH CARE LTD,05/07/2022,"3,836.28",6541-Nursing,THIRD PARTY PAYMENTS,PRIVATE CONTRACTOR,REVENUE
Walsall Council,http://opendatacommunities.org/id/metropolitan-district-council/walsall ,WC140-561,31.07.2022,ADULT SOCIAL CARE,ALPHA HEALTH CARE LTD,05/07/2022,"6,343.36",6541-Residential,THIRD PARTY PAYMENTS,PRIVATE CONTRACTOR,REVENUE
Walsall Council,http://opendatacommunities.org/id/metropolitan-district-council/walsall ,WC140-562,31.07.2022,ADULT SOCIAL CARE,ALPHA HEALTH CARE LTD,05/07/2022,"3,398.04",6541-Residential EMI,THIRD PARTY PAYMENTS,PRIVATE CONTRACTOR,REVENUE
Walsall Council,http://opendatacommunities.org/id/metropolitan-district-council/walsall ,WC140-563,31.07.2022,ADULT SOCIAL CARE,ALPHA HEALTH CARE LTD,05/07/2022,"3,090.44",6541-Nursing EMI,THIRD PARTY PAYMENTS,PRIVATE CONTRACTOR,REVENUE
Walsall Council,http://opendatacommunities.org/id/metropolitan-district-council/walsall ,WC140-564,31.07.2022,ADULT SOCIAL CARE,ALPHA HEALTH CARE LTD,05/07/2022,"2,763.80",6541-Nursing EMI,THIRD PARTY PAYMENTS,PRIVATE CONTRACTOR,REVENUE
Walsall Council,http://opendatacommunities.org/id/metropolitan-district-council/walsall ,WC140-565,31.07.2022,ADULT SOCIAL CARE,ALPHA HEALTH CARE LTD,05/07/2022,"2,998.00",6541-Nursing,THIRD PARTY PAYMENTS,PRIVATE CONTRACTOR,REVENUE
Walsall Council,http://opendatacommunities.org/id/metropolitan-district-council/walsall ,WC140-566,31.07.2022,ADULT SOCIAL CARE,ALPHA HEALTH CARE LTD,05/07/2022,"3,667.80",6541-Nursing EMI,THIRD PARTY PAYMENTS,PRIVATE CONTRACTOR,REVENUE
Walsall Council,http://opendatacommunities.org/id/metropolitan-district-council/walsall ,WC140-567,31.07.2022,ADULT SOCIAL CARE,ALPHA HEALTH CARE LTD,05/07/2022,"2,630.96",6541-Residential,THIRD PARTY PAYMENTS,PRIVATE CONTRACTOR,REVENUE
Walsall Council,http://opendatacommunities.org/id/metropolitan-district-council/walsall ,WC140-568,31.07.2022,ADULT SOCIAL CARE,ALPHA HEALTH CARE LTD,05/07/2022,"5,740.84",6541-Residential,THIRD PARTY PAYMENTS,PRIVATE CONTRACTOR,REVENUE
Walsall Council,http://opendatacommunities.org/id/metropolitan-district-council/walsall ,WC140-569,31.07.2022,ADULT SOCIAL CARE,ALPHA HEALTH CARE LTD,05/07/2022,"3,105.16",6541-Nursing EMI,THIRD PARTY PAYMENTS,PRIVATE CONTRACTOR,REVENUE
Walsall Council,http://opendatacommunities.org/id/metropolitan-district-council/walsall ,WC140-570,31.07.2022,ADULT SOCIAL CARE,ALPHA HEALTH CARE LTD,05/07/2022,"3,085.88",6541-Nursing,THIRD PARTY PAYMENTS,PRIVATE CONTRACTOR,REVENUE
Walsall Council,http://opendatacommunities.org/id/metropolitan-district-council/walsall ,WC140-571,31.07.2022,CHILDRENS,AMANS TRAVEL LTD,18/07/2022,"3,800.00",6241-Hire of Vehicle with Driver,TRANSPORT,DIRECT TRANSPORT COSTS,REVENUE
Walsall Council,http://opendatacommunities.org/id/metropolitan-district-council/walsall ,WC140-572,31.07.2022,CHILDRENS,AMANS TRAVEL LTD,18/07/2022,"3,800.00",6241-Hire of Vehicle with Driver,TRANSPORT,DIRECT TRANSPORT COSTS,REVENUE
Walsall Council,http://opendatacommunities.org/id/metropolitan-district-council/walsall ,WC140-573,31.07.2022,CHILDRENS,AMANS TRAVEL LTD,18/07/2022,"3,800.00",6241-Hire of Vehicle with Driver,TRANSPORT,DIRECT TRANSPORT COSTS,REVENUE
Walsall Council,http://opendatacommunities.org/id/metropolitan-district-council/walsall ,WC140-574,31.07.2022,ADULT SOCIAL CARE,REDACTED,06/07/2022,"2,899.80",6541-Direct Payment,THIRD PARTY PAYMENTS,PRIVATE CONTRACTOR,REVENUE
Walsall Council,http://opendatacommunities.org/id/metropolitan-district-council/walsall ,WC140-575,31.07.2022,ADULT SOCIAL CARE,REDACTED,06/07/2022,"1,650.88",6541-Direct Payment,THIRD PARTY PAYMENTS,PRIVATE CONTRACTOR,REVENUE
Walsall Council,http://opendatacommunities.org/id/metropolitan-district-council/walsall ,WC140-576,31.07.2022,RESOURCES AND TRANSFORMATION,AMBUR RADIO,14/07/2022,"4,496.28",6312-Grants to Other Orgs,SUPPLIES & SERVICES,GRANTS (EXP) & SUBSCRIPTIONS,REVENUE
Walsall Council,http://opendatacommunities.org/id/metropolitan-district-council/walsall ,WC140-577,31.07.2022,ECONOMY & ENVIRONMENT CAPITAL,AMEY LG LIMITED,14/07/2022,"1,425.33",7200-Site Works Contractors,CAPITAL,"NEW CONSTRUCTION,CONVERSION & RENOVATION",CAPITAL
Walsall Council,http://opendatacommunities.org/id/metropolitan-district-council/walsall ,WC140-578,31.07.2022,"ECONOMY, ENVIRONMENT & COMMUNITIES",AMEY LG LIMITED,26/07/2022,"1,355.73",6411-Repair & Maintenance of Furniture & Equipment,SUPPLIES & SERVICES,EQUIPMENT FURNITURE & MATERIALS,REVENUE
Walsall Council,http://opendatacommunities.org/id/metropolitan-district-council/walsall ,WC140-579,31.07.2022,ECONOMY & ENVIRONMENT CAPITAL,AMEY OW LTD,15/07/2022,"26,639.53",7200-Project Fees,CAPITAL,"NEW CONSTRUCTION,CONVERSION & RENOVATION",CAPITAL
Walsall Council,http://opendatacommunities.org/id/metropolitan-district-council/walsall ,WC140-580,31.07.2022,ADULT SOCIAL CARE,AMG NURSING CARE SERVICES,27/07/2022,"4,068.40",6541-Community Supported Living/Supported Accommodation,THIRD PARTY PAYMENTS,PRIVATE CONTRACTOR,REVENUE
Walsall Council,http://opendatacommunities.org/id/metropolitan-district-council/walsall ,WC140-581,31.07.2022,CHILDRENS,AMG NURSING CARE SERVICES,07/07/2022,412.90,6220-Professional Fees & Services,SUPPLIES & SERVICES,SERVICES,REVENUE
Walsall Council,http://opendatacommunities.org/id/metropolitan-district-council/walsall ,WC140-582,31.07.2022,CHILDRENS,AMG NURSING CARE SERVICES,07/07/2022,995.80,6220-Professional Fees & Services,SUPPLIES & SERVICES,SERVICES,REVENUE
Walsall Council,http://opendatacommunities.org/id/metropolitan-district-council/walsall ,WC140-583,31.07.2022,CHILDRENS,AMG NURSING CARE SERVICES,14/07/2022,403.16,6220-Professional Fees & Services,SUPPLIES & SERVICES,SERVICES,REVENUE
Walsall Council,http://opendatacommunities.org/id/metropolitan-district-council/walsall ,WC140-584,31.07.2022,CHILDRENS,AMG NURSING CARE SERVICES,14/07/2022,"1,550.12",6220-Professional Fees & Services,SUPPLIES & SERVICES,SERVICES,REVENUE
Walsall Council,http://opendatacommunities.org/id/metropolitan-district-council/walsall ,WC140-585,31.07.2022,CHILDRENS,AMG NURSING CARE SERVICES,25/07/2022,321.84,6220-Professional Fees & Services,SUPPLIES & SERVICES,SERVICES,REVENUE
Walsall Council,http://opendatacommunities.org/id/metropolitan-district-council/walsall ,WC140-586,31.07.2022,CHILDRENS,AMG NURSING CARE SERVICES,25/07/2022,"1,550.12",6220-Professional Fees & Services,SUPPLIES & SERVICES,SERVICES,REVENUE
Walsall Council,http://opendatacommunities.org/id/metropolitan-district-council/walsall ,WC140-587,31.07.2022,"ECONOMY, ENVIRONMENT & COMMUNITIES",AMX SOLUTIONS LIMITED,20/07/2022,"2,000.00",6411-Materials,SUPPLIES & SERVICES,EQUIPMENT FURNITURE & MATERIALS,REVENUE
Walsall Council,http://opendatacommunities.org/id/metropolitan-district-council/walsall ,WC140-588,31.07.2022,CHILDRENS,REDACTED,27/07/2022,304.00,6223-Foster Carers Holiday/Christmas Allowances,TRANSFER PAYMENTS,CHILDREN SOCIAL SERVICES CLIENT,REVENUE
Walsall Council,http://opendatacommunities.org/id/metropolitan-district-council/walsall ,WC140-589,31.07.2022,CHILDRENS,REDACTED,27/07/2022,584.00,6223-Foster Carers Maintenance Allowance,TRANSFER PAYMENTS,CHILDREN SOCIAL SERVICES CLIENT,REVENUE
Walsall Council,http://opendatacommunities.org/id/metropolitan-district-council/walsall ,WC140-590,31.07.2022,CHILDRENS,REDACTED,27/07/2022,340.00,6223-Internal Foster Carers-Carer Fees,TRANSFER PAYMENTS,CHILDREN SOCIAL SERVICES CLIENT,REVENUE
Walsall Council,http://opendatacommunities.org/id/metropolitan-district-council/walsall ,WC140-591,31.07.2022,ADULT SOCIAL CARE,ANCHOR CARE HOMES LTD,05/07/2022,"2,366.04",6541-Residential EMI,THIRD PARTY PAYMENTS,PRIVATE CONTRACTOR,REVENUE
Walsall Council,http://opendatacommunities.org/id/metropolitan-district-council/walsall ,WC140-592,31.07.2022,ADULT SOCIAL CARE,ANCHOR CAREHOMES LTD - HARDEN HALL,27/07/2022,"1,183.02",6541-Residential,THIRD PARTY PAYMENTS,PRIVATE CONTRACTOR,REVENUE
Walsall Council,http://opendatacommunities.org/id/metropolitan-district-council/walsall ,WC140-593,31.07.2022,ADULT SOCIAL CARE,ANCHOR CAREHOMES LTD - HARDEN HALL,05/07/2022,"2,366.04",6541-Residential EMI,THIRD PARTY PAYMENTS,PRIVATE CONTRACTOR,REVENUE
Walsall Council,http://opendatacommunities.org/id/metropolitan-district-council/walsall ,WC140-594,31.07.2022,ADULT SOCIAL CARE,ANCHOR CAREHOMES LTD - HARDEN HALL,05/07/2022,"2,366.04",6541-Residential EMI,THIRD PARTY PAYMENTS,PRIVATE CONTRACTOR,REVENUE
Walsall Council,http://opendatacommunities.org/id/metropolitan-district-council/walsall ,WC140-595,31.07.2022,ADULT SOCIAL CARE,ANCHOR CAREHOMES LTD - HARDEN HALL,05/07/2022,"2,366.04",6541-Residential EMI,THIRD PARTY PAYMENTS,PRIVATE CONTRACTOR,REVENUE
Walsall Council,http://opendatacommunities.org/id/metropolitan-district-council/walsall ,WC140-596,31.07.2022,ADULT SOCIAL CARE,ANCHOR CAREHOMES LTD - HARDEN HALL,05/07/2022,"2,366.04",6541-Residential EMI,THIRD PARTY PAYMENTS,PRIVATE CONTRACTOR,REVENUE
Walsall Council,http://opendatacommunities.org/id/metropolitan-district-council/walsall ,WC140-597,31.07.2022,ADULT SOCIAL CARE,ANCHOR CAREHOMES LTD - HARDEN HALL,05/07/2022,"2,366.04",6541-Residential EMI,THIRD PARTY PAYMENTS,PRIVATE CONTRACTOR,REVENUE
Walsall Council,http://opendatacommunities.org/id/metropolitan-district-council/walsall ,WC140-598,31.07.2022,ADULT SOCIAL CARE,ANCHOR CAREHOMES LTD - HARDEN HALL,05/07/2022,"2,366.04",6541-Residential EMI,THIRD PARTY PAYMENTS,PRIVATE CONTRACTOR,REVENUE
Walsall Council,http://opendatacommunities.org/id/metropolitan-district-council/walsall ,WC140-599,31.07.2022,ADULT SOCIAL CARE,ANCHOR CAREHOMES LTD - HARDEN HALL,05/07/2022,"2,366.04",6541-Residential EMI,THIRD PARTY PAYMENTS,PRIVATE CONTRACTOR,REVENUE
Walsall Council,http://opendatacommunities.org/id/metropolitan-district-council/walsall ,WC140-600,31.07.2022,ADULT SOCIAL CARE,ANCHOR CAREHOMES LTD - HARDEN HALL,05/07/2022,"2,417.00",6541-Residential EMI,THIRD PARTY PAYMENTS,PRIVATE CONTRACTOR,REVENUE
Walsall Council,http://opendatacommunities.org/id/metropolitan-district-council/walsall ,WC140-601,31.07.2022,ADULT SOCIAL CARE,ANCHOR CAREHOMES LTD - HARDEN HALL,05/07/2022,"2,366.04",6541-Residential EMI,THIRD PARTY PAYMENTS,PRIVATE CONTRACTOR,REVENUE
Walsall Council,http://opendatacommunities.org/id/metropolitan-district-council/walsall ,WC140-602,31.07.2022,ADULT SOCIAL CARE,ANCHOR CAREHOMES LTD - HARDEN HALL,05/07/2022,"2,095.40",6541-Residential,THIRD PARTY PAYMENTS,PRIVATE CONTRACTOR,REVENUE
Walsall Council,http://opendatacommunities.org/id/metropolitan-district-council/walsall ,WC140-603,31.07.2022,ADULT SOCIAL CARE,ANCHOR CAREHOMES LTD - HARDEN HALL,05/07/2022,"2,329.52",6541-Residential EMI,THIRD PARTY PAYMENTS,PRIVATE CONTRACTOR,REVENUE
Walsall Council,http://opendatacommunities.org/id/metropolitan-district-council/walsall ,WC140-604,31.07.2022,ADULT SOCIAL CARE,ANCHOR CAREHOMES LTD - HARDEN HALL,05/07/2022,"2,726.04",6541-Residential EMI,THIRD PARTY PAYMENTS,PRIVATE CONTRACTOR,REVENUE
Walsall Council,http://opendatacommunities.org/id/metropolitan-district-council/walsall ,WC140-605,31.07.2022,ADULT SOCIAL CARE,ANCHOR CAREHOMES LTD - HARDEN HALL,05/07/2022,"2,566.04",6541-Residential EMI,THIRD PARTY PAYMENTS,PRIVATE CONTRACTOR,REVENUE
Walsall Council,http://opendatacommunities.org/id/metropolitan-district-council/walsall ,WC140-606,31.07.2022,ADULT SOCIAL CARE,ANCHOR CAREHOMES LTD - HARDEN HALL,05/07/2022,"4,639.81",6541-Residential,THIRD PARTY PAYMENTS,PRIVATE CONTRACTOR,REVENUE
Walsall Council,http://opendatacommunities.org/id/metropolitan-district-council/walsall ,WC140-607,31.07.2022,ADULT SOCIAL CARE,ANCHOR CAREHOMES LTD - HARDEN HALL,05/07/2022,"2,566.04",6541-Residential EMI,THIRD PARTY PAYMENTS,PRIVATE CONTRACTOR,REVENUE
Walsall Council,http://opendatacommunities.org/id/metropolitan-district-council/walsall ,WC140-608,31.07.2022,ADULT SOCIAL CARE,ANCHOR CAREHOMES LTD - HARDEN HALL,05/07/2022,"2,366.04",6541-Residential EMI,THIRD PARTY PAYMENTS,PRIVATE CONTRACTOR,REVENUE
Walsall Council,http://opendatacommunities.org/id/metropolitan-district-council/walsall ,WC140-609,31.07.2022,ADULT SOCIAL CARE,ANCHOR CAREHOMES LTD - HARDEN HALL,05/07/2022,449.01,6541-Residential,THIRD PARTY PAYMENTS,PRIVATE CONTRACTOR,REVENUE
Walsall Council,http://opendatacommunities.org/id/metropolitan-district-council/walsall ,WC140-610,31.07.2022,ADULT SOCIAL CARE,ANCHOR CAREHOMES LTD - HARDEN HALL,05/07/2022,"2,366.04",6541-Residential EMI,THIRD PARTY PAYMENTS,PRIVATE CONTRACTOR,REVENUE
Walsall Council,http://opendatacommunities.org/id/metropolitan-district-council/walsall ,WC140-611,31.07.2022,ADULT SOCIAL CARE,ANCHOR CAREHOMES LTD - HARDEN HALL,05/07/2022,"2,726.04",6541-Residential EMI,THIRD PARTY PAYMENTS,PRIVATE CONTRACTOR,REVENUE
Walsall Council,http://opendatacommunities.org/id/metropolitan-district-council/walsall ,WC140-612,31.07.2022,ADULT SOCIAL CARE,ANCHOR CAREHOMES LTD - HARDEN HALL,05/07/2022,"2,726.04",6541-Residential EMI,THIRD PARTY PAYMENTS,PRIVATE CONTRACTOR,REVENUE
Walsall Council,http://opendatacommunities.org/id/metropolitan-district-council/walsall ,WC140-613,31.07.2022,ADULT SOCIAL CARE,ANCHOR CAREHOMES LTD - HARDEN HALL,05/07/2022,"1,265.66",6541-Residential & Nursing Care Placements,THIRD PARTY PAYMENTS,PRIVATE CONTRACTOR,REVENUE
Walsall Council,http://opendatacommunities.org/id/metropolitan-district-council/walsall ,WC140-614,31.07.2022,ADULT SOCIAL CARE,ANCHOR CAREHOMES LTD - HARDEN HALL,05/07/2022,"2,726.04",6541-Residential EMI,THIRD PARTY PAYMENTS,PRIVATE CONTRACTOR,REVENUE
Walsall Council,http://opendatacommunities.org/id/metropolitan-district-council/walsall ,WC140-615,31.07.2022,ADULT SOCIAL CARE,ANCHOR CAREHOMES LTD - HARDEN HALL,05/07/2022,"2,726.04",6541-Residential EMI,THIRD PARTY PAYMENTS,PRIVATE CONTRACTOR,REVENUE
Walsall Council,http://opendatacommunities.org/id/metropolitan-district-council/walsall ,WC140-616,31.07.2022,ADULT SOCIAL CARE,ANCHOR CAREHOMES LTD - HARDEN HALL,05/07/2022,"2,366.04",6541-Residential EMI,THIRD PARTY PAYMENTS,PRIVATE CONTRACTOR,REVENUE
Walsall Council,http://opendatacommunities.org/id/metropolitan-district-council/walsall ,WC140-617,31.07.2022,ADULT SOCIAL CARE,ANCHOR CAREHOMES LTD - HARDEN HALL,05/07/2022,"2,646.04",6541-Residential EMI,THIRD PARTY PAYMENTS,PRIVATE CONTRACTOR,REVENUE
Walsall Council,http://opendatacommunities.org/id/metropolitan-district-council/walsall ,WC140-618,31.07.2022,ADULT SOCIAL CARE,ANCHOR CAREHOMES LTD - HARDEN HALL,05/07/2022,"2,726.04",6541-Residential EMI,THIRD PARTY PAYMENTS,PRIVATE CONTRACTOR,REVENUE
Walsall Council,http://opendatacommunities.org/id/metropolitan-district-council/walsall ,WC140-619,31.07.2022,CHILDRENS,REDACTED,27/07/2022,294.46,6223-Special Guardianship Orders,TRANSFER PAYMENTS,CHILDREN SOCIAL SERVICES CLIENT,REVENUE
Walsall Council,http://opendatacommunities.org/id/metropolitan-district-council/walsall ,WC140-620,31.07.2022,ADULT SOCIAL CARE,REDACTED,06/07/2022,"2,749.20",6541-Direct Payment,THIRD PARTY PAYMENTS,PRIVATE CONTRACTOR,REVENUE
Walsall Council,http://opendatacommunities.org/id/metropolitan-district-council/walsall ,WC140-621,31.07.2022,CHILDRENS CAPITAL,ANDREWS ELECTRICAL LTD,06/07/2022,"20,930.00",7150-Site Works Contractors,CAPITAL,"NEW CONSTRUCTION,CONVERSION & RENOVATION",CAPITAL
Walsall Council,http://opendatacommunities.org/id/metropolitan-district-council/walsall ,WC140-622,31.07.2022,RESOURCES AND TRANSFORMATION,ANDREWS ELECTRICAL LTD,05/07/2022,648.00,6310-Planned Maintenance,PREMISES,REPAIRS & MAINTENANCE,REVENUE
Walsall Council,http://opendatacommunities.org/id/metropolitan-district-council/walsall ,WC140-623,31.07.2022,RESOURCES AND TRANSFORMATION,ANDREWS ELECTRICAL LTD,07/07/2022,"1,950.00",6310-Materials,SUPPLIES & SERVICES,EQUIPMENT FURNITURE & MATERIALS,REVENUE
Walsall Council,http://opendatacommunities.org/id/metropolitan-district-council/walsall ,WC140-624,31.07.2022,RESOURCES AND TRANSFORMATION,ANDREWS ELECTRICAL LTD,07/07/2022,"16,046.00",6310-Planned Maintenance,PREMISES,REPAIRS & MAINTENANCE,REVENUE
Walsall Council,http://opendatacommunities.org/id/metropolitan-district-council/walsall ,WC140-625,31.07.2022,CHILDRENS CAPITAL,ANDREWS ELECTRICAL LTD,12/07/2022,"6,075.00",7155-Site Works Contractors,CAPITAL,"NEW CONSTRUCTION,CONVERSION & RENOVATION",CAPITAL
Walsall Council,http://opendatacommunities.org/id/metropolitan-district-council/walsall ,WC140-626,31.07.2022,RESOURCES AND TRANSFORMATION,ANDREWS ELECTRICAL LTD,18/07/2022,485.00,6310-Planned Maintenance,PREMISES,REPAIRS & MAINTENANCE,REVENUE
Walsall Council,http://opendatacommunities.org/id/metropolitan-district-council/walsall ,WC140-627,31.07.2022,CHILDRENS CAPITAL,ANDREWS ELECTRICAL LTD,22/07/2022,"1,025.00",7150-Site Works Contractors,CAPITAL,"NEW CONSTRUCTION,CONVERSION & RENOVATION",CAPITAL
Walsall Council,http://opendatacommunities.org/id/metropolitan-district-council/walsall ,WC140-628,31.07.2022,RESOURCES AND TRANSFORMATION,ANDREWS ELECTRICAL LTD,22/07/2022,"24,940.00",6310-Planned Maintenance,PREMISES,REPAIRS & MAINTENANCE,REVENUE
Walsall Council,http://opendatacommunities.org/id/metropolitan-district-council/walsall ,WC140-629,31.07.2022,CHILDRENS,REDACTED,27/07/2022,363.24,6223-Special Guardianship Orders,TRANSFER PAYMENTS,CHILDREN SOCIAL SERVICES CLIENT,REVENUE
Walsall Council,http://opendatacommunities.org/id/metropolitan-district-council/walsall ,WC140-630,31.07.2022,CHILDRENS,REDACTED,27/07/2022,496.04,6223-Special Guardianship Orders,TRANSFER PAYMENTS,CHILDREN SOCIAL SERVICES CLIENT,REVENUE
Walsall Council,http://opendatacommunities.org/id/metropolitan-district-council/walsall ,WC140-631,31.07.2022,CHILDRENS,REDACTED,27/07/2022,285.93,6223-Special Guardianship Orders,TRANSFER PAYMENTS,CHILDREN SOCIAL SERVICES CLIENT,REVENUE
Walsall Council,http://opendatacommunities.org/id/metropolitan-district-council/walsall ,WC140-632,31.07.2022,ADULT SOCIAL CARE,REDACTED,13/07/2022,400.80,6541-Shared Lives,THIRD PARTY PAYMENTS,PRIVATE CONTRACTOR,REVENUE
Walsall Council,http://opendatacommunities.org/id/metropolitan-district-council/walsall ,WC140-633,31.07.2022,ADULT SOCIAL CARE,REDACTED,27/07/2022,400.80,6541-Shared Lives,THIRD PARTY PAYMENTS,PRIVATE CONTRACTOR,REVENUE
Walsall Council,http://opendatacommunities.org/id/metropolitan-district-council/walsall ,WC140-634,31.07.2022,CHILDRENS,REDACTED,27/07/2022,"1,035.00",6223-Internal Foster Carers-Carer Fees,TRANSFER PAYMENTS,CHILDREN SOCIAL SERVICES CLIENT,REVENUE
Walsall Council,http://opendatacommunities.org/id/metropolitan-district-council/walsall ,WC140-635,31.07.2022,CHILDRENS,REDACTED,27/07/2022,-733.70,6223-Foster Carers Maintenance Allowance,TRANSFER PAYMENTS,CHILDREN SOCIAL SERVICES CLIENT,REVENUE
Walsall Council,http://opendatacommunities.org/id/metropolitan-district-council/walsall ,WC140-636,31.07.2022,CHILDRENS,REDACTED,27/07/2022,689.00,6223-Foster Carers Maintenance Allowance,TRANSFER PAYMENTS,CHILDREN SOCIAL SERVICES CLIENT,REVENUE
Walsall Council,http://opendatacommunities.org/id/metropolitan-district-council/walsall ,WC140-637,31.07.2022,CHILDRENS,REDACTED,27/07/2022,340.00,6223-Internal Foster Carers-Carer Fees,TRANSFER PAYMENTS,CHILDREN SOCIAL SERVICES CLIENT,REVENUE
Walsall Council,http://opendatacommunities.org/id/metropolitan-district-council/walsall ,WC140-638,31.07.2022,"ECONOMY, ENVIRONMENT & COMMUNITIES",REDACTED,05/07/2022,400.00,6414-Professional Fees & Services,SUPPLIES & SERVICES,SERVICES,REVENUE
Walsall Council,http://opendatacommunities.org/id/metropolitan-district-council/walsall ,WC140-639,31.07.2022,ADULT SOCIAL CARE,REDACTED,06/07/2022,280.00,6541-Direct Payment,THIRD PARTY PAYMENTS,PRIVATE CONTRACTOR,REVENUE
Walsall Council,http://opendatacommunities.org/id/metropolitan-district-council/walsall ,WC140-640,31.07.2022,CHILDRENS,REDACTED,27/07/2022,429.04,6223-Special Guardianship Orders,TRANSFER PAYMENTS,CHILDREN SOCIAL SERVICES CLIENT,REVENUE
Walsall Council,http://opendatacommunities.org/id/metropolitan-district-council/walsall ,WC140-641,31.07.2022,ADULT SOCIAL CARE,ANSON COURT RESIDENTIAL HOME,05/07/2022,"2,366.04",6541-Residential EMI,THIRD PARTY PAYMENTS,PRIVATE CONTRACTOR,REVENUE
Walsall Council,http://opendatacommunities.org/id/metropolitan-district-council/walsall ,WC140-642,31.07.2022,ADULT SOCIAL CARE,ANSON COURT RESIDENTIAL HOME,05/07/2022,"2,366.04",6541-Residential EMI,THIRD PARTY PAYMENTS,PRIVATE CONTRACTOR,REVENUE
Walsall Council,http://opendatacommunities.org/id/metropolitan-district-council/walsall ,WC140-643,31.07.2022,ADULT SOCIAL CARE,ANSON COURT RESIDENTIAL HOME,05/07/2022,"2,366.04",6541-Residential EMI,THIRD PARTY PAYMENTS,PRIVATE CONTRACTOR,REVENUE
Walsall Council,http://opendatacommunities.org/id/metropolitan-district-council/walsall ,WC140-644,31.07.2022,ADULT SOCIAL CARE,ANSON COURT RESIDENTIAL HOME,05/07/2022,"2,366.04",6541-Residential EMI,THIRD PARTY PAYMENTS,PRIVATE CONTRACTOR,REVENUE
Walsall Council,http://opendatacommunities.org/id/metropolitan-district-council/walsall ,WC140-645,31.07.2022,ADULT SOCIAL CARE,ANSON COURT RESIDENTIAL HOME,05/07/2022,"2,366.04",6541-Residential EMI,THIRD PARTY PAYMENTS,PRIVATE CONTRACTOR,REVENUE
Walsall Council,http://opendatacommunities.org/id/metropolitan-district-council/walsall ,WC140-646,31.07.2022,ADULT SOCIAL CARE,ANSON COURT RESIDENTIAL HOME,05/07/2022,"2,366.04",6541-Residential EMI,THIRD PARTY PAYMENTS,PRIVATE CONTRACTOR,REVENUE
Walsall Council,http://opendatacommunities.org/id/metropolitan-district-council/walsall ,WC140-647,31.07.2022,ADULT SOCIAL CARE,ANSON COURT RESIDENTIAL HOME,05/07/2022,"2,215.40",6541-Residential,THIRD PARTY PAYMENTS,PRIVATE CONTRACTOR,REVENUE
Walsall Council,http://opendatacommunities.org/id/metropolitan-district-council/walsall ,WC140-648,31.07.2022,ADULT SOCIAL CARE,ANSON COURT RESIDENTIAL HOME,05/07/2022,"2,366.04",6541-Residential EMI,THIRD PARTY PAYMENTS,PRIVATE CONTRACTOR,REVENUE
Walsall Council,http://opendatacommunities.org/id/metropolitan-district-council/walsall ,WC140-649,31.07.2022,ADULT SOCIAL CARE,ANSON COURT RESIDENTIAL HOME,05/07/2022,"2,366.04",6541-Residential EMI,THIRD PARTY PAYMENTS,PRIVATE CONTRACTOR,REVENUE
Walsall Council,http://opendatacommunities.org/id/metropolitan-district-council/walsall ,WC140-650,31.07.2022,ADULT SOCIAL CARE,ANSON COURT RESIDENTIAL HOME,05/07/2022,"1,436.52",6541-Residential EMI,THIRD PARTY PAYMENTS,PRIVATE CONTRACTOR,REVENUE
Walsall Council,http://opendatacommunities.org/id/metropolitan-district-council/walsall ,WC140-651,31.07.2022,ADULT SOCIAL CARE,ANSON COURT RESIDENTIAL HOME,05/07/2022,"2,366.04",6541-Residential EMI,THIRD PARTY PAYMENTS,PRIVATE CONTRACTOR,REVENUE
Walsall Council,http://opendatacommunities.org/id/metropolitan-district-council/walsall ,WC140-652,31.07.2022,ADULT SOCIAL CARE,ANSON COURT RESIDENTIAL HOME,05/07/2022,"2,095.40",6541-Residential,THIRD PARTY PAYMENTS,PRIVATE CONTRACTOR,REVENUE
Walsall Council,http://opendatacommunities.org/id/metropolitan-district-council/walsall ,WC140-653,31.07.2022,ADULT SOCIAL CARE,ANSON COURT RESIDENTIAL HOME,05/07/2022,"2,095.40",6541-Residential,THIRD PARTY PAYMENTS,PRIVATE CONTRACTOR,REVENUE
Walsall Council,http://opendatacommunities.org/id/metropolitan-district-council/walsall ,WC140-654,31.07.2022,ADULT SOCIAL CARE,ANSON COURT RESIDENTIAL HOME,05/07/2022,"2,366.04",6541-Residential EMI,THIRD PARTY PAYMENTS,PRIVATE CONTRACTOR,REVENUE
Walsall Council,http://opendatacommunities.org/id/metropolitan-district-council/walsall ,WC140-655,31.07.2022,ADULT SOCIAL CARE,ANSON COURT RESIDENTIAL HOME,05/07/2022,"2,366.04",6541-Residential EMI,THIRD PARTY PAYMENTS,PRIVATE CONTRACTOR,REVENUE
Walsall Council,http://opendatacommunities.org/id/metropolitan-district-council/walsall ,WC140-656,31.07.2022,ADULT SOCIAL CARE,ANSON COURT RESIDENTIAL HOME,05/07/2022,"2,366.04",6541-Residential EMI,THIRD PARTY PAYMENTS,PRIVATE CONTRACTOR,REVENUE
Walsall Council,http://opendatacommunities.org/id/metropolitan-district-council/walsall ,WC140-657,31.07.2022,ADULT SOCIAL CARE,ANTALIS LIMITED,19/07/2022,"1,404.00",6623-Materials,SUPPLIES & SERVICES,EQUIPMENT FURNITURE & MATERIALS,REVENUE
Walsall Council,http://opendatacommunities.org/id/metropolitan-district-council/walsall ,WC140-658,31.07.2022,CHILDRENS,REDACTED,27/07/2022,334.64,6223-Special Guardianship Orders,TRANSFER PAYMENTS,CHILDREN SOCIAL SERVICES CLIENT,REVENUE
Walsall Council,http://opendatacommunities.org/id/metropolitan-district-council/walsall ,WC140-659,31.07.2022,"ECONOMY, ENVIRONMENT & COMMUNITIES",APCOA PARKING SERVICES (UK) LTD,04/07/2022,"55,408.03",6411-Professional Services-Priv Contractor & Other Agencies,THIRD PARTY PAYMENTS,PRIVATE CONTRACTOR,REVENUE
Walsall Council,http://opendatacommunities.org/id/metropolitan-district-council/walsall ,WC140-660,31.07.2022,RESOURCES AND TRANSFORMATION,APCOA PARKING SERVICES (UK) LTD,05/07/2022,-720.30,6634-Oxygen Finance Rebates ,SUPPLIES & SERVICES,SERVICES,REVENUE
Walsall Council,http://opendatacommunities.org/id/metropolitan-district-council/walsall ,WC140-661,31.07.2022,CHILDRENS,APOLLO EAGLE CONSULTING LTD,06/07/2022,"6,600.00",6221-Consultant Fees,SUPPLIES & SERVICES,SERVICES,REVENUE
Walsall Council,http://opendatacommunities.org/id/metropolitan-district-council/walsall ,WC140-662,31.07.2022,CHILDRENS,APP CARZ,15/07/2022,755.00,6314-Other Travel Allowances,TRANSPORT,CAR ALLOWANCES,REVENUE
Walsall Council,http://opendatacommunities.org/id/metropolitan-district-council/walsall ,WC140-663,31.07.2022,CHILDRENS,APP CARZ,18/07/2022,"2,200.00",6241-Hire of Vehicle with Driver,TRANSPORT,DIRECT TRANSPORT COSTS,REVENUE
Walsall Council,http://opendatacommunities.org/id/metropolitan-district-council/walsall ,WC140-664,31.07.2022,CHILDRENS,APP CARZ,18/07/2022,"1,200.00",6241-Hire of Vehicle with Driver,TRANSPORT,DIRECT TRANSPORT COSTS,REVENUE
Walsall Council,http://opendatacommunities.org/id/metropolitan-district-council/walsall ,WC140-665,31.07.2022,CHILDRENS,APP CARZ,18/07/2022,950.00,6241-Hire of Vehicle with Driver,TRANSPORT,DIRECT TRANSPORT COSTS,REVENUE
Walsall Council,http://opendatacommunities.org/id/metropolitan-district-council/walsall ,WC140-666,31.07.2022,CHILDRENS,APP CARZ,18/07/2022,"1,200.00",6241-Hire of Vehicle with Driver,TRANSPORT,DIRECT TRANSPORT COSTS,REVENUE
Walsall Council,http://opendatacommunities.org/id/metropolitan-district-council/walsall ,WC140-667,31.07.2022,CHILDRENS,APP CARZ,18/07/2022,"2,100.00",6241-Hire of Vehicle with Driver,TRANSPORT,DIRECT TRANSPORT COSTS,REVENUE
Walsall Council,http://opendatacommunities.org/id/metropolitan-district-council/walsall ,WC140-668,31.07.2022,CHILDRENS,APP CARZ,18/07/2022,"1,275.00",6241-Hire of Vehicle with Driver,TRANSPORT,DIRECT TRANSPORT COSTS,REVENUE
Walsall Council,http://opendatacommunities.org/id/metropolitan-district-council/walsall ,WC140-669,31.07.2022,CHILDRENS,APP CARZ,18/07/2022,504.00,6241-Hire of Vehicle with Driver,TRANSPORT,DIRECT TRANSPORT COSTS,REVENUE
Walsall Council,http://opendatacommunities.org/id/metropolitan-district-council/walsall ,WC140-670,31.07.2022,CHILDRENS,APP CARZ,18/07/2022,"1,800.00",6241-Hire of Vehicle with Driver,TRANSPORT,DIRECT TRANSPORT COSTS,REVENUE
Walsall Council,http://opendatacommunities.org/id/metropolitan-district-council/walsall ,WC140-671,31.07.2022,CHILDRENS,APP CARZ,18/07/2022,"2,720.00",6241-Hire of Vehicle with Driver,TRANSPORT,DIRECT TRANSPORT COSTS,REVENUE
Walsall Council,http://opendatacommunities.org/id/metropolitan-district-council/walsall ,WC140-672,31.07.2022,CHILDRENS,APP CARZ,18/07/2022,704.00,6241-Hire of Vehicle with Driver,TRANSPORT,DIRECT TRANSPORT COSTS,REVENUE
Walsall Council,http://opendatacommunities.org/id/metropolitan-district-council/walsall ,WC140-673,31.07.2022,CHILDRENS,APP CARZ,18/07/2022,"1,700.00",6241-Hire of Vehicle with Driver,TRANSPORT,DIRECT TRANSPORT COSTS,REVENUE
Walsall Council,http://opendatacommunities.org/id/metropolitan-district-council/walsall ,WC140-674,31.07.2022,CHILDRENS,APP CARZ,18/07/2022,780.00,6241-Hire of Vehicle with Driver,TRANSPORT,DIRECT TRANSPORT COSTS,REVENUE
Walsall Council,http://opendatacommunities.org/id/metropolitan-district-council/walsall ,WC140-675,31.07.2022,CHILDRENS,APP CARZ,18/07/2022,"1,080.00",6241-Hire of Vehicle with Driver,TRANSPORT,DIRECT TRANSPORT COSTS,REVENUE
Walsall Council,http://opendatacommunities.org/id/metropolitan-district-council/walsall ,WC140-676,31.07.2022,"ECONOMY, ENVIRONMENT & COMMUNITIES",APSE 001,07/07/2022,263.00,6413-External Training,INDIRECT EMPLOYEES,EXTERNAL TRAINING,REVENUE
Walsall Council,http://opendatacommunities.org/id/metropolitan-district-council/walsall ,WC140-677,31.07.2022,CHILDRENS,AQUAID (BIRMINGHAM CENTRAL),18/07/2022,410.00,1206-Food & Drink Supplies,SUPPLIES & SERVICES,CATERING,REVENUE
Walsall Council,http://opendatacommunities.org/id/metropolitan-district-council/walsall ,WC140-678,31.07.2022,ADULT SOCIAL CARE,ARBORETUM NURSING HOME.,05/07/2022,"2,456.24",6541-Nursing,THIRD PARTY PAYMENTS,PRIVATE CONTRACTOR,REVENUE
Walsall Council,http://opendatacommunities.org/id/metropolitan-district-council/walsall ,WC140-679,31.07.2022,ADULT SOCIAL CARE,ARBORETUM NURSING HOME.,05/07/2022,"2,456.24",6541-Nursing,THIRD PARTY PAYMENTS,PRIVATE CONTRACTOR,REVENUE
Walsall Council,http://opendatacommunities.org/id/metropolitan-district-council/walsall ,WC140-680,31.07.2022,ADULT SOCIAL CARE,ARBORETUM NURSING HOME.,05/07/2022,"2,456.24",6541-Nursing,THIRD PARTY PAYMENTS,PRIVATE CONTRACTOR,REVENUE
Walsall Council,http://opendatacommunities.org/id/metropolitan-district-council/walsall ,WC140-681,31.07.2022,ADULT SOCIAL CARE,ARBORETUM NURSING HOME.,05/07/2022,"2,456.24",6541-Nursing,THIRD PARTY PAYMENTS,PRIVATE CONTRACTOR,REVENUE
Walsall Council,http://opendatacommunities.org/id/metropolitan-district-council/walsall ,WC140-682,31.07.2022,ADULT SOCIAL CARE,ARBORETUM NURSING HOME.,05/07/2022,"2,456.24",6541-Nursing,THIRD PARTY PAYMENTS,PRIVATE CONTRACTOR,REVENUE
Walsall Council,http://opendatacommunities.org/id/metropolitan-district-council/walsall ,WC140-683,31.07.2022,ADULT SOCIAL CARE,ARBORETUM NURSING HOME.,05/07/2022,"2,636.24",6541-Nursing,THIRD PARTY PAYMENTS,PRIVATE CONTRACTOR,REVENUE
Walsall Council,http://opendatacommunities.org/id/metropolitan-district-council/walsall ,WC140-684,31.07.2022,ADULT SOCIAL CARE,ARBORETUM NURSING HOME.,05/07/2022,"3,400.00",6541-Residential & Nursing Care Placements,THIRD PARTY PAYMENTS,PRIVATE CONTRACTOR,REVENUE
Walsall Council,http://opendatacommunities.org/id/metropolitan-district-council/walsall ,WC140-685,31.07.2022,ADULT SOCIAL CARE,ARBORETUM NURSING HOME.,05/07/2022,"3,000.00",6541-Residential & Nursing Care Placements,THIRD PARTY PAYMENTS,PRIVATE CONTRACTOR,REVENUE
Walsall Council,http://opendatacommunities.org/id/metropolitan-district-council/walsall ,WC140-686,31.07.2022,ADULT SOCIAL CARE,ARBORETUM NURSING HOME.,05/07/2022,"2,554.29",6541-Residential & Nursing Care Placements,THIRD PARTY PAYMENTS,PRIVATE CONTRACTOR,REVENUE
Walsall Council,http://opendatacommunities.org/id/metropolitan-district-council/walsall ,WC140-687,31.07.2022,ADULT SOCIAL CARE,ARBORETUM NURSING HOME.,05/07/2022,"3,000.00",6541-Residential & Nursing Care Placements,THIRD PARTY PAYMENTS,PRIVATE CONTRACTOR,REVENUE
Walsall Council,http://opendatacommunities.org/id/metropolitan-district-council/walsall ,WC140-688,31.07.2022,ADULT SOCIAL CARE,ARBORETUM NURSING HOME.,05/07/2022,"2,185.71",6541-Residential & Nursing Care Placements,THIRD PARTY PAYMENTS,PRIVATE CONTRACTOR,REVENUE
Walsall Council,http://opendatacommunities.org/id/metropolitan-district-council/walsall ,WC140-689,31.07.2022,ADULT SOCIAL CARE,ARBORETUM NURSING HOME.,05/07/2022,"2,456.24",6541-Nursing,THIRD PARTY PAYMENTS,PRIVATE CONTRACTOR,REVENUE
Walsall Council,http://opendatacommunities.org/id/metropolitan-district-council/walsall ,WC140-690,31.07.2022,ADULT SOCIAL CARE,ARBORETUM NURSING HOME.,05/07/2022,"2,636.24",6541-Nursing,THIRD PARTY PAYMENTS,PRIVATE CONTRACTOR,REVENUE
Walsall Council,http://opendatacommunities.org/id/metropolitan-district-council/walsall ,WC140-691,31.07.2022,ADULT SOCIAL CARE,ARBORETUM NURSING HOME.,05/07/2022,"2,636.24",6541-Nursing,THIRD PARTY PAYMENTS,PRIVATE CONTRACTOR,REVENUE
Walsall Council,http://opendatacommunities.org/id/metropolitan-district-council/walsall ,WC140-692,31.07.2022,ADULT SOCIAL CARE,ARBORETUM NURSING HOME.,05/07/2022,"2,636.24",6541-Nursing,THIRD PARTY PAYMENTS,PRIVATE CONTRACTOR,REVENUE
Walsall Council,http://opendatacommunities.org/id/metropolitan-district-council/walsall ,WC140-693,31.07.2022,ADULT SOCIAL CARE,ARBORETUM NURSING HOME.,05/07/2022,"3,064.29",6541-Residential & Nursing Care Placements,THIRD PARTY PAYMENTS,PRIVATE CONTRACTOR,REVENUE
Walsall Council,http://opendatacommunities.org/id/metropolitan-district-council/walsall ,WC140-694,31.07.2022,ADULT SOCIAL CARE,ARBORETUM NURSING HOME.,05/07/2022,"2,946.43",6541-Residential & Nursing Care Placements,THIRD PARTY PAYMENTS,PRIVATE CONTRACTOR,REVENUE
Walsall Council,http://opendatacommunities.org/id/metropolitan-district-council/walsall ,WC140-695,31.07.2022,ADULT SOCIAL CARE,ARBORETUM NURSING HOME.,05/07/2022,"1,820.00",6541-Residential & Nursing Care Placements,THIRD PARTY PAYMENTS,PRIVATE CONTRACTOR,REVENUE
Walsall Council,http://opendatacommunities.org/id/metropolitan-district-council/walsall ,WC140-696,31.07.2022,ADULT SOCIAL CARE,ARBORETUM NURSING HOME.,05/07/2022,"2,636.24",6541-Nursing,THIRD PARTY PAYMENTS,PRIVATE CONTRACTOR,REVENUE
Walsall Council,http://opendatacommunities.org/id/metropolitan-district-council/walsall ,WC140-697,31.07.2022,ADULT SOCIAL CARE,ARBORETUM NURSING HOME.,05/07/2022,425.71,6541-Residential & Nursing Care Placements,THIRD PARTY PAYMENTS,PRIVATE CONTRACTOR,REVENUE
Walsall Council,http://opendatacommunities.org/id/metropolitan-district-council/walsall ,WC140-698,31.07.2022,ADULT SOCIAL CARE,ARBORETUM NURSING HOME.,05/07/2022,"2,456.24",6541-Nursing,THIRD PARTY PAYMENTS,PRIVATE CONTRACTOR,REVENUE
Walsall Council,http://opendatacommunities.org/id/metropolitan-district-council/walsall ,WC140-699,31.07.2022,ADULT SOCIAL CARE,ARBORETUM NURSING HOME.,05/07/2022,"2,456.24",6541-Nursing,THIRD PARTY PAYMENTS,PRIVATE CONTRACTOR,REVENUE
Walsall Council,http://opendatacommunities.org/id/metropolitan-district-council/walsall ,WC140-700,31.07.2022,ADULT SOCIAL CARE,ARBORETUM NURSING HOME.,05/07/2022,"3,000.00",6541-Residential & Nursing Care Placements,THIRD PARTY PAYMENTS,PRIVATE CONTRACTOR,REVENUE
Walsall Council,http://opendatacommunities.org/id/metropolitan-district-council/walsall ,WC140-701,31.07.2022,ADULT SOCIAL CARE,ARBORETUM NURSING HOME.,05/07/2022,"2,571.43",6541-Residential & Nursing Care Placements,THIRD PARTY PAYMENTS,PRIVATE CONTRACTOR,REVENUE
Walsall Council,http://opendatacommunities.org/id/metropolitan-district-council/walsall ,WC140-702,31.07.2022,ADULT SOCIAL CARE,ARBORETUM NURSING HOME.,05/07/2022,"2,980.00",6541-Residential & Nursing Care Placements,THIRD PARTY PAYMENTS,PRIVATE CONTRACTOR,REVENUE
Walsall Council,http://opendatacommunities.org/id/metropolitan-district-council/walsall ,WC140-703,31.07.2022,ADULT SOCIAL CARE,ARBORETUM NURSING HOME.,05/07/2022,"2,500.00",6541-Nursing,THIRD PARTY PAYMENTS,PRIVATE CONTRACTOR,REVENUE
Walsall Council,http://opendatacommunities.org/id/metropolitan-district-council/walsall ,WC140-704,31.07.2022,ECONOMY & ENVIRONMENT CAPITAL,ARCADIS,01/07/2022,"10,000.00",7200-Project Fees,CAPITAL,"NEW CONSTRUCTION,CONVERSION & RENOVATION",CAPITAL
Walsall Council,http://opendatacommunities.org/id/metropolitan-district-council/walsall ,WC140-705,31.07.2022,ECONOMY & ENVIRONMENT CAPITAL,ARCADIS,01/07/2022,"21,115.00",7200-Engineers Assistants Time - Design,CAPITAL,"NEW CONSTRUCTION,CONVERSION & RENOVATION",CAPITAL
Walsall Council,http://opendatacommunities.org/id/metropolitan-district-council/walsall ,WC140-706,31.07.2022,RESOURCES AND TRANSFORMATION CAPITAL,ARCADIS,12/07/2022,"13,385.00",7300-Consultants Fees,CAPITAL,"NEW CONSTRUCTION,CONVERSION & RENOVATION",CAPITAL
Walsall Council,http://opendatacommunities.org/id/metropolitan-district-council/walsall ,WC140-707,31.07.2022,RESOURCES AND TRANSFORMATION CAPITAL,ARCADIS,11/07/2022,"-10,000.00",7300-Consultants Fees,CAPITAL,"NEW CONSTRUCTION,CONVERSION & RENOVATION",CAPITAL
Walsall Council,http://opendatacommunities.org/id/metropolitan-district-council/walsall ,WC140-708,31.07.2022,RESOURCES AND TRANSFORMATION CAPITAL,ARCADIS,11/07/2022,"10,000.00",7300-Consultants Fees,CAPITAL,"NEW CONSTRUCTION,CONVERSION & RENOVATION",CAPITAL
Walsall Council,http://opendatacommunities.org/id/metropolitan-district-council/walsall ,WC140-709,31.07.2022,RESOURCES AND TRANSFORMATION CAPITAL,ARCADIS,11/07/2022,"-10,000.00",7300-Consultants Fees,CAPITAL,"NEW CONSTRUCTION,CONVERSION & RENOVATION",CAPITAL
Walsall Council,http://opendatacommunities.org/id/metropolitan-district-council/walsall ,WC140-710,31.07.2022,RESOURCES AND TRANSFORMATION CAPITAL,ARCADIS,11/07/2022,"10,000.00",7300-Consultants Fees,CAPITAL,"NEW CONSTRUCTION,CONVERSION & RENOVATION",CAPITAL
Walsall Council,http://opendatacommunities.org/id/metropolitan-district-council/walsall ,WC140-711,31.07.2022,ECONOMY & ENVIRONMENT CAPITAL,ARCADIS,20/07/2022,"5,489.90",7200-Consultants Fees,CAPITAL,"NEW CONSTRUCTION,CONVERSION & RENOVATION",CAPITAL
Walsall Council,http://opendatacommunities.org/id/metropolitan-district-council/walsall ,WC140-712,31.07.2022,RESOURCES AND TRANSFORMATION CAPITAL,ARCADIS,15/07/2022,"54,455.00",7300-Consultants Fees,CAPITAL,"NEW CONSTRUCTION,CONVERSION & RENOVATION",CAPITAL
Walsall Council,http://opendatacommunities.org/id/metropolitan-district-council/walsall ,WC140-713,31.07.2022,"ECONOMY, ENVIRONMENT & COMMUNITIES",ARCHWAY TCS LTD,27/07/2022,251.26,6410-Vehicle Wash Plant Materials,SUPPLIES & SERVICES,EQUIPMENT FURNITURE & MATERIALS,REVENUE
Walsall Council,http://opendatacommunities.org/id/metropolitan-district-council/walsall ,WC140-714,31.07.2022,"ECONOMY, ENVIRONMENT & COMMUNITIES",ARCHWAY TCS LTD,27/07/2022,393.32,6410-Vehicle Wash Plant Materials,SUPPLIES & SERVICES,EQUIPMENT FURNITURE & MATERIALS,REVENUE
Walsall Council,http://opendatacommunities.org/id/metropolitan-district-council/walsall ,WC140-715,31.07.2022,"ECONOMY, ENVIRONMENT & COMMUNITIES",ART UK,21/07/2022,250.00,6414-Events & Visual Arts,SUPPLIES & SERVICES,SERVICES,REVENUE
Walsall Council,http://opendatacommunities.org/id/metropolitan-district-council/walsall ,WC140-716,31.07.2022,CHILDRENS,ASCENDANT SOLUTIONS LTD,22/07/2022,"25,911.00",6633-Computer Equipment,SUPPLIES & SERVICES,COMMUNICATIONS & COMPUTING,REVENUE
Walsall Council,http://opendatacommunities.org/id/metropolitan-district-council/walsall ,WC140-717,31.07.2022,CHILDRENS,ASDA STORES LIMITED,26/07/2022,"2,140.92",6314-Housing Benefits-Transfer Payments,TRANSFER PAYMENTS,HOUSING BENEFITS,REVENUE
Walsall Council,http://opendatacommunities.org/id/metropolitan-district-council/walsall ,WC140-718,31.07.2022,ADULT SOCIAL CARE,ASH GRANGE CARE HOME,05/07/2022,"2,763.80",6541-Nursing EMI,THIRD PARTY PAYMENTS,PRIVATE CONTRACTOR,REVENUE
Walsall Council,http://opendatacommunities.org/id/metropolitan-district-council/walsall ,WC140-719,31.07.2022,ADULT SOCIAL CARE,ASH GRANGE CARE HOME,05/07/2022,"-4,818.00",6541-Residential,THIRD PARTY PAYMENTS,PRIVATE CONTRACTOR,REVENUE
Walsall Council,http://opendatacommunities.org/id/metropolitan-district-council/walsall ,WC140-720,31.07.2022,ADULT SOCIAL CARE,ASH GRANGE CARE HOME,05/07/2022,"2,763.80",6541-Nursing EMI,THIRD PARTY PAYMENTS,PRIVATE CONTRACTOR,REVENUE
Walsall Council,http://opendatacommunities.org/id/metropolitan-district-council/walsall ,WC140-721,31.07.2022,ADULT SOCIAL CARE,ASH GRANGE CARE HOME,05/07/2022,"2,835.20",6541-Nursing,THIRD PARTY PAYMENTS,PRIVATE CONTRACTOR,REVENUE
Walsall Council,http://opendatacommunities.org/id/metropolitan-district-council/walsall ,WC140-722,31.07.2022,ADULT SOCIAL CARE,ASH GRANGE CARE HOME,05/07/2022,"2,656.24",6541-Nursing,THIRD PARTY PAYMENTS,PRIVATE CONTRACTOR,REVENUE
Walsall Council,http://opendatacommunities.org/id/metropolitan-district-council/walsall ,WC140-723,31.07.2022,ADULT SOCIAL CARE,ASH GRANGE CARE HOME,05/07/2022,"1,335.71",6541-Residential & Nursing Care Placements,THIRD PARTY PAYMENTS,PRIVATE CONTRACTOR,REVENUE
Walsall Council,http://opendatacommunities.org/id/metropolitan-district-council/walsall ,WC140-724,31.07.2022,ADULT SOCIAL CARE,ASH GRANGE CARE HOME,05/07/2022,364.29,6541-Residential & Nursing Care Placements,THIRD PARTY PAYMENTS,PRIVATE CONTRACTOR,REVENUE
Walsall Council,http://opendatacommunities.org/id/metropolitan-district-council/walsall ,WC140-725,31.07.2022,ADULT SOCIAL CARE,ASH GRANGE CARE HOME,05/07/2022,"1,092.86",6541-Residential & Nursing Care Placements,THIRD PARTY PAYMENTS,PRIVATE CONTRACTOR,REVENUE
Walsall Council,http://opendatacommunities.org/id/metropolitan-district-council/walsall ,WC140-726,31.07.2022,ADULT SOCIAL CARE,ASH GRANGE CARE HOME,05/07/2022,"2,095.40",6541-Residential,THIRD PARTY PAYMENTS,PRIVATE CONTRACTOR,REVENUE
Walsall Council,http://opendatacommunities.org/id/metropolitan-district-council/walsall ,WC140-727,31.07.2022,ADULT SOCIAL CARE,ASH GRANGE CARE HOME,05/07/2022,"2,456.24",6541-Nursing,THIRD PARTY PAYMENTS,PRIVATE CONTRACTOR,REVENUE
Walsall Council,http://opendatacommunities.org/id/metropolitan-district-council/walsall ,WC140-728,31.07.2022,ADULT SOCIAL CARE,ASH GRANGE CARE HOME,05/07/2022,"2,430.96",6541-Residential,THIRD PARTY PAYMENTS,PRIVATE CONTRACTOR,REVENUE
Walsall Council,http://opendatacommunities.org/id/metropolitan-district-council/walsall ,WC140-729,31.07.2022,ADULT SOCIAL CARE,ASH GRANGE CARE HOME,05/07/2022,"2,230.96",6541-Residential,THIRD PARTY PAYMENTS,PRIVATE CONTRACTOR,REVENUE
Walsall Council,http://opendatacommunities.org/id/metropolitan-district-council/walsall ,WC140-730,31.07.2022,ADULT SOCIAL CARE,ASH GRANGE CARE HOME,05/07/2022,"2,307.14",6541-Residential & Nursing Care Placements,THIRD PARTY PAYMENTS,PRIVATE CONTRACTOR,REVENUE
Walsall Council,http://opendatacommunities.org/id/metropolitan-district-council/walsall ,WC140-731,31.07.2022,ADULT SOCIAL CARE,ASH GRANGE CARE HOME,05/07/2022,"2,456.24",6541-Nursing,THIRD PARTY PAYMENTS,PRIVATE CONTRACTOR,REVENUE
Walsall Council,http://opendatacommunities.org/id/metropolitan-district-council/walsall ,WC140-732,31.07.2022,ADULT SOCIAL CARE,ASH GRANGE CARE HOME,05/07/2022,"2,456.24",6541-Nursing,THIRD PARTY PAYMENTS,PRIVATE CONTRACTOR,REVENUE
Walsall Council,http://opendatacommunities.org/id/metropolitan-district-council/walsall ,WC140-733,31.07.2022,ADULT SOCIAL CARE,ASH GRANGE CARE HOME,05/07/2022,"2,095.40",6541-Residential,THIRD PARTY PAYMENTS,PRIVATE CONTRACTOR,REVENUE
Walsall Council,http://opendatacommunities.org/id/metropolitan-district-council/walsall ,WC140-734,31.07.2022,ADULT SOCIAL CARE,ASH GRANGE CARE HOME,05/07/2022,"2,656.24",6541-Nursing,THIRD PARTY PAYMENTS,PRIVATE CONTRACTOR,REVENUE
Walsall Council,http://opendatacommunities.org/id/metropolitan-district-council/walsall ,WC140-735,31.07.2022,ADULT SOCIAL CARE,ASH GRANGE CARE HOME,05/07/2022,"2,763.80",6541-Nursing EMI,THIRD PARTY PAYMENTS,PRIVATE CONTRACTOR,REVENUE
Walsall Council,http://opendatacommunities.org/id/metropolitan-district-council/walsall ,WC140-736,31.07.2022,ADULT SOCIAL CARE,ASH GRANGE CARE HOME,05/07/2022,"2,456.24",6541-Nursing,THIRD PARTY PAYMENTS,PRIVATE CONTRACTOR,REVENUE
Walsall Council,http://opendatacommunities.org/id/metropolitan-district-council/walsall ,WC140-737,31.07.2022,ADULT SOCIAL CARE,ASH GRANGE CARE HOME,05/07/2022,"2,646.08",6541-Residential,THIRD PARTY PAYMENTS,PRIVATE CONTRACTOR,REVENUE
Walsall Council,http://opendatacommunities.org/id/metropolitan-district-council/walsall ,WC140-738,31.07.2022,ADULT SOCIAL CARE,ASH GRANGE CARE HOME,05/07/2022,"2,756.24",6541-Nursing,THIRD PARTY PAYMENTS,PRIVATE CONTRACTOR,REVENUE
Walsall Council,http://opendatacommunities.org/id/metropolitan-district-council/walsall ,WC140-739,31.07.2022,ADULT SOCIAL CARE,ASH GRANGE CARE HOME,05/07/2022,"2,250.00",6541-Residential & Nursing Care Placements,THIRD PARTY PAYMENTS,PRIVATE CONTRACTOR,REVENUE
Walsall Council,http://opendatacommunities.org/id/metropolitan-district-council/walsall ,WC140-740,31.07.2022,ADULT SOCIAL CARE,ASH GRANGE CARE HOME,05/07/2022,"2,656.24",6541-Nursing,THIRD PARTY PAYMENTS,PRIVATE CONTRACTOR,REVENUE
Walsall Council,http://opendatacommunities.org/id/metropolitan-district-council/walsall ,WC140-741,31.07.2022,ADULT SOCIAL CARE,REDACTED,06/07/2022,"1,429.72",6541-Direct Payment,THIRD PARTY PAYMENTS,PRIVATE CONTRACTOR,REVENUE
Walsall Council,http://opendatacommunities.org/id/metropolitan-district-council/walsall ,WC140-742,31.07.2022,"ECONOMY, ENVIRONMENT & COMMUNITIES",ASKEWS AND HOLTS LIBRARY SERVICES LTD,05/07/2022,541.92,6414-Library Books,SUPPLIES & SERVICES,EQUIPMENT FURNITURE & MATERIALS,REVENUE
Walsall Council,http://opendatacommunities.org/id/metropolitan-district-council/walsall ,WC140-743,31.07.2022,"ECONOMY, ENVIRONMENT & COMMUNITIES",ASKEWS AND HOLTS LIBRARY SERVICES LTD,14/07/2022,400.33,6414-Library Books,SUPPLIES & SERVICES,EQUIPMENT FURNITURE & MATERIALS,REVENUE
Walsall Council,http://opendatacommunities.org/id/metropolitan-district-council/walsall ,WC140-744,31.07.2022,"ECONOMY, ENVIRONMENT & COMMUNITIES",ASKEWS AND HOLTS LIBRARY SERVICES LTD,19/07/2022,-591.79,6414-Library Books,SUPPLIES & SERVICES,EQUIPMENT FURNITURE & MATERIALS,REVENUE
Walsall Council,http://opendatacommunities.org/id/metropolitan-district-council/walsall ,WC140-745,31.07.2022,"ECONOMY, ENVIRONMENT & COMMUNITIES",ASKEWS AND HOLTS LIBRARY SERVICES LTD,19/07/2022,591.79,6414-Library Books,SUPPLIES & SERVICES,EQUIPMENT FURNITURE & MATERIALS,REVENUE
Walsall Council,http://opendatacommunities.org/id/metropolitan-district-council/walsall ,WC140-746,31.07.2022,"ECONOMY, ENVIRONMENT & COMMUNITIES",ASKEWS AND HOLTS LIBRARY SERVICES LTD,22/07/2022,"-1,305.90",6414-Library Books,SUPPLIES & SERVICES,EQUIPMENT FURNITURE & MATERIALS,REVENUE
Walsall Council,http://opendatacommunities.org/id/metropolitan-district-council/walsall ,WC140-747,31.07.2022,"ECONOMY, ENVIRONMENT & COMMUNITIES",ASKEWS AND HOLTS LIBRARY SERVICES LTD,22/07/2022,"1,305.90",6414-Library Books,SUPPLIES & SERVICES,EQUIPMENT FURNITURE & MATERIALS,REVENUE
Walsall Council,http://opendatacommunities.org/id/metropolitan-district-council/walsall ,WC140-748,31.07.2022,ADULT SOCIAL CARE,REDACTED,06/07/2022,761.76,6541-Direct Payment,THIRD PARTY PAYMENTS,PRIVATE CONTRACTOR,REVENUE
Walsall Council,http://opendatacommunities.org/id/metropolitan-district-council/walsall ,WC140-749,31.07.2022,ADULT SOCIAL CARE,ASPECTS CARE LTD,27/07/2022,272.78,6541-Community Supported Living/Supported Accommodation,THIRD PARTY PAYMENTS,PRIVATE CONTRACTOR,REVENUE
Walsall Council,http://opendatacommunities.org/id/metropolitan-district-council/walsall ,WC140-750,31.07.2022,ADULT SOCIAL CARE,ASPECTS CARE LTD,27/07/2022,645.00,6541-Community Supported Living/Supported Accommodation,THIRD PARTY PAYMENTS,PRIVATE CONTRACTOR,REVENUE
Walsall Council,http://opendatacommunities.org/id/metropolitan-district-council/walsall ,WC140-751,31.07.2022,ADULT SOCIAL CARE,ASPECTS CARE LTD,27/07/2022,486.42,6541-Community Supported Living/Supported Accommodation,THIRD PARTY PAYMENTS,PRIVATE CONTRACTOR,REVENUE
Walsall Council,http://opendatacommunities.org/id/metropolitan-district-council/walsall ,WC140-752,31.07.2022,ADULT SOCIAL CARE,ASPECTS CARE LTD,27/07/2022,490.12,6541-Community Supported Living/Supported Accommodation,THIRD PARTY PAYMENTS,PRIVATE CONTRACTOR,REVENUE
Walsall Council,http://opendatacommunities.org/id/metropolitan-district-council/walsall ,WC140-753,31.07.2022,ADULT SOCIAL CARE,ASPECTS CARE LTD,27/07/2022,987.07,6541-Community Supported Living/Supported Accommodation,THIRD PARTY PAYMENTS,PRIVATE CONTRACTOR,REVENUE
Walsall Council,http://opendatacommunities.org/id/metropolitan-district-council/walsall ,WC140-754,31.07.2022,ADULT SOCIAL CARE,ASPECTS CARE LTD,27/07/2022,460.75,6541-Community Supported Living/Supported Accommodation,THIRD PARTY PAYMENTS,PRIVATE CONTRACTOR,REVENUE
Walsall Council,http://opendatacommunities.org/id/metropolitan-district-council/walsall ,WC140-755,31.07.2022,ADULT SOCIAL CARE,ASPECTS CARE LTD,27/07/2022,501.16,6541-Community Supported Living/Supported Accommodation,THIRD PARTY PAYMENTS,PRIVATE CONTRACTOR,REVENUE
Walsall Council,http://opendatacommunities.org/id/metropolitan-district-council/walsall ,WC140-756,31.07.2022,ADULT SOCIAL CARE,ASPECTS CARE LTD,27/07/2022,726.07,6541-Community Supported Living/Supported Accommodation,THIRD PARTY PAYMENTS,PRIVATE CONTRACTOR,REVENUE
Walsall Council,http://opendatacommunities.org/id/metropolitan-district-council/walsall ,WC140-757,31.07.2022,ADULT SOCIAL CARE,ASPECTS CARE LTD,27/07/2022,309.72,6541-Community Supported Living/Supported Accommodation,THIRD PARTY PAYMENTS,PRIVATE CONTRACTOR,REVENUE
Walsall Council,http://opendatacommunities.org/id/metropolitan-district-council/walsall ,WC140-758,31.07.2022,CHILDRENS,ASPIRE PEOPLE LTD.,11/07/2022,468.00,1220-Professional Fees & Services,SUPPLIES & SERVICES,SERVICES,REVENUE
Walsall Council,http://opendatacommunities.org/id/metropolitan-district-council/walsall ,WC140-759,31.07.2022,CHILDRENS,ASPIRE PEOPLE LTD.,20/07/2022,585.00,1220-Professional Fees & Services,SUPPLIES & SERVICES,SERVICES,REVENUE
Walsall Council,http://opendatacommunities.org/id/metropolitan-district-council/walsall ,WC140-760,31.07.2022,CHILDRENS,ASPIRE PEOPLE LTD.,19/07/2022,468.00,1220-Professional Fees & Services,SUPPLIES & SERVICES,SERVICES,REVENUE
Walsall Council,http://opendatacommunities.org/id/metropolitan-district-council/walsall ,WC140-761,31.07.2022,CHILDRENS,ASPIRE PEOPLE LTD.,26/07/2022,585.00,1220-Professional Fees & Services,SUPPLIES & SERVICES,SERVICES,REVENUE
Walsall Council,http://opendatacommunities.org/id/metropolitan-district-council/walsall ,WC140-762,31.07.2022,RESOURCES AND TRANSFORMATION,ASSOCIATION OF ELECTORAL ADMINISTRATORS,06/07/2022,825.00,6610-Advertising Staff Vacancies,INDIRECT EMPLOYEES,ADVERTISING STAFF VACANCIES,REVENUE
Walsall Council,http://opendatacommunities.org/id/metropolitan-district-council/walsall ,WC140-763,31.07.2022,RESOURCES AND TRANSFORMATION CAPITAL,ASTUN TECHNOLOGY LIMITED,20/07/2022,425.00,7300-Consultants Fees,CAPITAL,"NEW CONSTRUCTION,CONVERSION & RENOVATION",CAPITAL
Walsall Council,http://opendatacommunities.org/id/metropolitan-district-council/walsall ,WC140-764,31.07.2022,CHILDRENS,REDACTED,27/07/2022,342.92,6223-Residents Orders,TRANSFER PAYMENTS,CHILDREN SOCIAL SERVICES CLIENT,REVENUE
Walsall Council,http://opendatacommunities.org/id/metropolitan-district-council/walsall ,WC140-765,31.07.2022,CHILDRENS,REDACTED,27/07/2022,281.68,6223-Residents Orders,TRANSFER PAYMENTS,CHILDREN SOCIAL SERVICES CLIENT,REVENUE
Walsall Council,http://opendatacommunities.org/id/metropolitan-district-council/walsall ,WC140-766,31.07.2022,RESOURCES AND TRANSFORMATION,ATKINS LIMITED,12/07/2022,"7,829.00",6310-Consultant Fees,SUPPLIES & SERVICES,SERVICES,REVENUE
Walsall Council,http://opendatacommunities.org/id/metropolitan-district-council/walsall ,WC140-767,31.07.2022,RESOURCES AND TRANSFORMATION CAPITAL,ATKINS LIMITED,12/07/2022,"2,400.00",7300-Site Works Contractors,CAPITAL,"NEW CONSTRUCTION,CONVERSION & RENOVATION",CAPITAL
Walsall Council,http://opendatacommunities.org/id/metropolitan-district-council/walsall ,WC140-768,31.07.2022,RESOURCES AND TRANSFORMATION,ATKINS LIMITED,12/07/2022,"50,000.00",6310-Planned Maintenance,PREMISES,REPAIRS & MAINTENANCE,REVENUE
Walsall Council,http://opendatacommunities.org/id/metropolitan-district-council/walsall ,WC140-769,31.07.2022,ECONOMY & ENVIRONMENT CAPITAL,ATKINS LIMITED,28/07/2022,"1,211.00",7200-Consultants Fees,CAPITAL,"NEW CONSTRUCTION,CONVERSION & RENOVATION",CAPITAL
Walsall Council,http://opendatacommunities.org/id/metropolitan-district-council/walsall ,WC140-770,31.07.2022,CHILDRENS,ATKINSON LEWIS LIMITED,12/07/2022,980.00,6220-School Only Payments - Catering,THIRD PARTY PAYMENTS,INDEPENDENT UNIT WITHIN COUNCIL,REVENUE
Walsall Council,http://opendatacommunities.org/id/metropolitan-district-council/walsall ,WC140-771,31.07.2022,CHILDRENS,ATTACHED CARE LTD,12/07/2022,"39,952.00",6223-External Residential Care-Oth Agency Provision,THIRD PARTY PAYMENTS,PRIVATE CONTRACTOR,REVENUE
Walsall Council,http://opendatacommunities.org/id/metropolitan-district-council/walsall ,WC140-772,31.07.2022,"ECONOMY, ENVIRONMENT & COMMUNITIES",ATTIC 55 LTD T/A MULBERRY STUDIOS UK,26/07/2022,"1,787.28",6313-Grants to Other Orgs,SUPPLIES & SERVICES,GRANTS (EXP) & SUBSCRIPTIONS,REVENUE
Walsall Council,http://opendatacommunities.org/id/metropolitan-district-council/walsall ,WC140-773,31.07.2022,RESOURCES AND TRANSFORMATION,AUDITEL RENTAL & SERVICE LTD,05/07/2022,"6,000.00","6610-Leasing, Hire & Rental of Equipment",SUPPLIES & SERVICES,EQUIPMENT FURNITURE & MATERIALS,REVENUE
Walsall Council,http://opendatacommunities.org/id/metropolitan-district-council/walsall ,WC140-774,31.07.2022,ADULT SOCIAL CARE,REDACTED,06/07/2022,"1,196.80",6541-Direct Payment,THIRD PARTY PAYMENTS,PRIVATE CONTRACTOR,REVENUE
Walsall Council,http://opendatacommunities.org/id/metropolitan-district-council/walsall ,WC140-775,31.07.2022,ADULT SOCIAL CARE,AURORA GRAPHICS & DISPLAYS LTD,11/07/2022,-547.68,6623-Outwork Print & Design,SUPPLIES & SERVICES,PRINTING STATIONERY & GENERAL OFFICE,REVENUE
Walsall Council,http://opendatacommunities.org/id/metropolitan-district-council/walsall ,WC140-776,31.07.2022,ADULT SOCIAL CARE,AURORA GRAPHICS & DISPLAYS LTD,11/07/2022,547.68,6623-Outwork Print & Design,SUPPLIES & SERVICES,PRINTING STATIONERY & GENERAL OFFICE,REVENUE
Walsall Council,http://opendatacommunities.org/id/metropolitan-district-council/walsall ,WC140-777,31.07.2022,ADULT SOCIAL CARE,AUTISM WEST MIDLANDS,05/07/2022,"5,818.64",6541-Residential,THIRD PARTY PAYMENTS,PRIVATE CONTRACTOR,REVENUE
Walsall Council,http://opendatacommunities.org/id/metropolitan-district-council/walsall ,WC140-778,31.07.2022,ADULT SOCIAL CARE,AUTISM WEST MIDLANDS,05/07/2022,"7,529.32",6541-Residential,THIRD PARTY PAYMENTS,PRIVATE CONTRACTOR,REVENUE
Walsall Council,http://opendatacommunities.org/id/metropolitan-district-council/walsall ,WC140-779,31.07.2022,ADULT SOCIAL CARE,AUTISM WEST MIDLANDS,05/07/2022,"20,347.00",6541-Residential,THIRD PARTY PAYMENTS,PRIVATE CONTRACTOR,REVENUE
Walsall Council,http://opendatacommunities.org/id/metropolitan-district-council/walsall ,WC140-780,31.07.2022,"ECONOMY, ENVIRONMENT & COMMUNITIES",AUTOBITS,29/07/2022,250.00,6410-Professional Services-Priv Contractor & Other Agencies,THIRD PARTY PAYMENTS,PRIVATE CONTRACTOR,REVENUE
Walsall Council,http://opendatacommunities.org/id/metropolitan-district-council/walsall ,WC140-781,31.07.2022,ADULT SOCIAL CARE,AVERY HOMES NELSON LIMITED,05/07/2022,"2,095.40",6541-Residential,THIRD PARTY PAYMENTS,PRIVATE CONTRACTOR,REVENUE
Walsall Council,http://opendatacommunities.org/id/metropolitan-district-council/walsall ,WC140-782,31.07.2022,ADULT SOCIAL CARE,AVERY HOMES NELSON LIMITED,05/07/2022,"3,430.96",6541-Residential,THIRD PARTY PAYMENTS,PRIVATE CONTRACTOR,REVENUE
Walsall Council,http://opendatacommunities.org/id/metropolitan-district-council/walsall ,WC140-783,31.07.2022,ADULT SOCIAL CARE,AVERY HOMES NELSON LIMITED,05/07/2022,"2,095.40",6541-Residential,THIRD PARTY PAYMENTS,PRIVATE CONTRACTOR,REVENUE
Walsall Council,http://opendatacommunities.org/id/metropolitan-district-council/walsall ,WC140-784,31.07.2022,ADULT SOCIAL CARE,REDACTED,06/07/2022,"3,444.48",6541-Direct Payment,THIRD PARTY PAYMENTS,PRIVATE CONTRACTOR,REVENUE
Walsall Council,http://opendatacommunities.org/id/metropolitan-district-council/walsall ,WC140-785,31.07.2022,"ECONOMY, ENVIRONMENT & COMMUNITIES",B & S CHAINS LTD,15/07/2022,822.00,6410-Materials,SUPPLIES & SERVICES,EQUIPMENT FURNITURE & MATERIALS,REVENUE
Walsall Council,http://opendatacommunities.org/id/metropolitan-district-council/walsall ,WC140-786,31.07.2022,CHILDRENS,BACHES SOLICITORS,12/07/2022,563.15,6220-School Only Payments - Catering,THIRD PARTY PAYMENTS,INDEPENDENT UNIT WITHIN COUNCIL,REVENUE
Walsall Council,http://opendatacommunities.org/id/metropolitan-district-council/walsall ,WC140-787,31.07.2022,CHILDRENS,BACK CARE SOLUTIONS LTD,22/07/2022,482.00,6314-Stationery & General Office Supplies,SUPPLIES & SERVICES,PRINTING STATIONERY & GENERAL OFFICE,REVENUE
Walsall Council,http://opendatacommunities.org/id/metropolitan-district-council/walsall ,WC140-788,31.07.2022,CHILDRENS,BACK CARE SOLUTIONS LTD,22/07/2022,"1,486.50",6314-Stationery & General Office Supplies,SUPPLIES & SERVICES,PRINTING STATIONERY & GENERAL OFFICE,REVENUE
Walsall Council,http://opendatacommunities.org/id/metropolitan-district-council/walsall ,WC140-789,31.07.2022,RESOURCES AND TRANSFORMATION,BAILY GARNER LLP,12/07/2022,"4,167.85",6310-Planned Maintenance,PREMISES,REPAIRS & MAINTENANCE,REVENUE
Walsall Council,http://opendatacommunities.org/id/metropolitan-district-council/walsall ,WC140-790,31.07.2022,CHILDRENS CAPITAL,BAILY GARNER LLP,15/07/2022,"3,855.00",7150-Site Works Contractors,CAPITAL,"NEW CONSTRUCTION,CONVERSION & RENOVATION",CAPITAL
Walsall Council,http://opendatacommunities.org/id/metropolitan-district-council/walsall ,WC140-791,31.07.2022,"ECONOMY, ENVIRONMENT & COMMUNITIES",BAKER HALL PARTNERSHIP,27/07/2022,"1,033.00",6413-Professional Fees & Services,SUPPLIES & SERVICES,SERVICES,REVENUE
Walsall Council,http://opendatacommunities.org/id/metropolitan-district-council/walsall ,WC140-792,31.07.2022,ADULT SOCIAL CARE,REDACTED,06/07/2022,"3,859.24",6541-Direct Payment,THIRD PARTY PAYMENTS,PRIVATE CONTRACTOR,REVENUE
Walsall Council,http://opendatacommunities.org/id/metropolitan-district-council/walsall ,WC140-793,31.07.2022,CHILDRENS,BANYA FAMILY PLACEMENT AGENCY LTD,12/07/2022,"4,640.36",6223-Independent Foster Care-Oth Agency Provision,THIRD PARTY PAYMENTS,PRIVATE CONTRACTOR,REVENUE
Walsall Council,http://opendatacommunities.org/id/metropolitan-district-council/walsall ,WC140-794,31.07.2022,CHILDRENS,REDACTED,27/07/2022,340.00,6223-Other Expenses,SUPPLIES & SERVICES,EXPENSES,REVENUE
Walsall Council,http://opendatacommunities.org/id/metropolitan-district-council/walsall ,WC140-795,31.07.2022,"ECONOMY, ENVIRONMENT & COMMUNITIES",BARBOUR LOGIC LIMITED,15/07/2022,"7,950.00",6411-Professional Services-Priv Contractor & Other Agencies,THIRD PARTY PAYMENTS,PRIVATE CONTRACTOR,REVENUE
Walsall Council,http://opendatacommunities.org/id/metropolitan-district-council/walsall ,WC140-796,31.07.2022,"ECONOMY, ENVIRONMENT & COMMUNITIES",BARHALE CONSTRUCTION SERVICES LTD,26/07/2022,992.75,6313-Grants to Other Orgs,SUPPLIES & SERVICES,GRANTS (EXP) & SUBSCRIPTIONS,REVENUE
Walsall Council,http://opendatacommunities.org/id/metropolitan-district-council/walsall ,WC140-797,31.07.2022,"ECONOMY, ENVIRONMENT & COMMUNITIES",BARHALE CONSTRUCTION SERVICES LTD,12/07/2022,570.12,6313-Grants to Other Orgs,SUPPLIES & SERVICES,GRANTS (EXP) & SUBSCRIPTIONS,REVENUE
Walsall Council,http://opendatacommunities.org/id/metropolitan-district-council/walsall ,WC140-798,31.07.2022,"ECONOMY, ENVIRONMENT & COMMUNITIES",BARHALE CONSTRUCTION SERVICES LTD,12/07/2022,928.95,6313-Grants to Other Orgs,SUPPLIES & SERVICES,GRANTS (EXP) & SUBSCRIPTIONS,REVENUE
Walsall Council,http://opendatacommunities.org/id/metropolitan-district-council/walsall ,WC140-799,31.07.2022,"ECONOMY, ENVIRONMENT & COMMUNITIES",BARHALE CONSTRUCTION SERVICES LTD,12/07/2022,781.70,6313-Grants to Other Orgs,SUPPLIES & SERVICES,GRANTS (EXP) & SUBSCRIPTIONS,REVENUE
Walsall Council,http://opendatacommunities.org/id/metropolitan-district-council/walsall ,WC140-800,31.07.2022,"ECONOMY, ENVIRONMENT & COMMUNITIES",BARHALE CONSTRUCTION SERVICES LTD,26/07/2022,"1,072.03",6313-Grants to Other Orgs,SUPPLIES & SERVICES,GRANTS (EXP) & SUBSCRIPTIONS,REVENUE
Walsall Council,http://opendatacommunities.org/id/metropolitan-district-council/walsall ,WC140-801,31.07.2022,"ECONOMY, ENVIRONMENT & COMMUNITIES",BARHALE CONSTRUCTION SERVICES LTD,26/07/2022,928.95,6313-Grants to Other Orgs,SUPPLIES & SERVICES,GRANTS (EXP) & SUBSCRIPTIONS,REVENUE
Walsall Council,http://opendatacommunities.org/id/metropolitan-district-council/walsall ,WC140-802,31.07.2022,"ECONOMY, ENVIRONMENT & COMMUNITIES",BARHALE CONSTRUCTION SERVICES LTD,12/07/2022,741.06,6313-Grants to Other Orgs,SUPPLIES & SERVICES,GRANTS (EXP) & SUBSCRIPTIONS,REVENUE
Walsall Council,http://opendatacommunities.org/id/metropolitan-district-council/walsall ,WC140-803,31.07.2022,"ECONOMY, ENVIRONMENT & COMMUNITIES",BARHALE CONSTRUCTION SERVICES LTD,12/07/2022,905.67,6313-Grants to Other Orgs,SUPPLIES & SERVICES,GRANTS (EXP) & SUBSCRIPTIONS,REVENUE
Walsall Council,http://opendatacommunities.org/id/metropolitan-district-council/walsall ,WC140-804,31.07.2022,"ECONOMY, ENVIRONMENT & COMMUNITIES",BARHALE CONSTRUCTION SERVICES LTD,12/07/2022,905.67,6313-Grants to Other Orgs,SUPPLIES & SERVICES,GRANTS (EXP) & SUBSCRIPTIONS,REVENUE
Walsall Council,http://opendatacommunities.org/id/metropolitan-district-council/walsall ,WC140-805,31.07.2022,"ECONOMY, ENVIRONMENT & COMMUNITIES",BARHALE LIMITED,12/07/2022,930.08,6313-Grants to Other Orgs,SUPPLIES & SERVICES,GRANTS (EXP) & SUBSCRIPTIONS,REVENUE
Walsall Council,http://opendatacommunities.org/id/metropolitan-district-council/walsall ,WC140-806,31.07.2022,"ECONOMY, ENVIRONMENT & COMMUNITIES",BARHALE LIMITED,12/07/2022,265.68,6313-Grants to Other Orgs,SUPPLIES & SERVICES,GRANTS (EXP) & SUBSCRIPTIONS,REVENUE
Walsall Council,http://opendatacommunities.org/id/metropolitan-district-council/walsall ,WC140-807,31.07.2022,"ECONOMY, ENVIRONMENT & COMMUNITIES",BARHALE LIMITED,12/07/2022,767.52,6313-Grants to Other Orgs,SUPPLIES & SERVICES,GRANTS (EXP) & SUBSCRIPTIONS,REVENUE
